Workbook

Sheet Read me first_PCV protect (hidden)
A1: Pneumococcal conjugate vaccine choice:
A2: Cost comparison model
A3: User guide
A4: For questions or support, contact PATH's Health Economics & Outcomes Research team: HEOR@path.org
A5: Version 1.0
A6: The Pneumococcal conjugate vaccine choice: Cost comparison model is a simple tool for assessing and comparing costs of PCV vaccination programs with each PCV product available in the global market. It aims to help country-level policy-makers compare products and estimate vaccination program costs for different PCV vaccines, exploring up to six different vaccine options at a time. The tool can be used by any country interested in comparing different PCV vaccine costs, whether or not the country is eligible for co-funding from Gavi, the Vaccine Alliance.
A8: The tool calculates costs annually and for a total period of 10 years. Estimates of vaccine cost (i.e., vaccine and supplies procurement and international shipping) and vaccination program costs (i.e., vaccine cost and cost of delivery) are provided separately for two perspectives: (1) the country perspective and (2) the combined country and Gavi perspective (only relevant for Gavi-eligible countries). The country perspective accounts only for what is paid from the country budget, while the country and Gavi perspective also accounts for Gavi co-financing of vaccines and support grants. All cost data are in US$, and use of local currency requires separate currency conversion before inputing values in relevant fields.
A10: The tool consists of three worksheets:
A11: 1. Model inputs worksheet, where the user decides which vaccines to compare and adjusts data input relevant to country context.
A12: 2. Results worksheet, where the user can consult costing projections.
A13: 3. Charts worksheet, where these same results are displayed as charts.
A15: Disclaimer: The Pneumococcal conjugate vaccine choice: Cost comparison model is a cost calculator that aims to inform vaccine introduction decision-making and product selection. It is important to note that cost is only one consideration, and users involved in decision-making around new vaccine introduction or product selection should always consider other dimensions as well. This model is meant to provide insights into the potential costs of alternative product choices and should not replace detailed budget planning once a product has been selected.
A17: Model inputs worksheet
A18: On this worksheet, all boxes with a yellow background require user inputs. When available, default data are already entered, with the source of information indicated. Note that default data are only relevant for currently Gavi-eligible countries. Countries not eligible for Gavi support should confirm all data inputs individually. The three steps outlined below must be completed in order to obtain results.
A20: Step 1: Immunization program
A21: Enter information related to the start year you want to explore, keeping in mind that this will be the first year of a 10-year program period. Enter the required information on your target population and annual population growth rate.
A23: Enter information related to expected vaccine coverage for dose 1, 2, and 3. You can use coverage estimates from your immunization program monitoring for antigens that are provided at the same time that PCV vaccine is administered. You can also choose to use coverage estimate targets or expected coverage estimates. Note that this will affect the number of doses required to sustain PCV vaccination activities.
A25: Step 2: Co-financing and financial support
A26: Indicate here if your country is currently in the Gavi initial self-financing phase or another transition phase. If your country is not eligible for any Gavi support, then enter 100% to indicate that your country supports the entire cost of vaccine procurement.
A28: If your country is in the Gavi initial self-financing phase, calculations of co-financing will be automatic, displaying co-financing per dose as per Gavi guidelines (i.e., $0.20 per dose for two-dose vaccines and $0.13 per dose for three-dose vaccines).
A30: If your country is currently in another Gavi transition phase (preparatory transition or accelerated transition), enter your country’s co-financing share for each of the 10 years listed. If you are not aware of your country co-financing share, you should contact your Senior Country Manager.
A32: Finally, enter the amount of financial support your country may be eligible to receive for either a Gavi Vaccine Introduction Grant (VIG) or Gavi Switch Grant (SG). A box detailing how to calculate the VIG or SG is available on the right side of the worksheet. You may also consult the Gavi support guidelines for more information.
A33: Gavi support guidelines
A35: Step 3: PCV vaccine options
A36: The tool allows you to compare up to six different vaccine options at once. Use the drop-down menu to select each product you would like to compare. Each selection will automatically populate all of the product-related default data inputs in the rows below. All vaccine characteristics are from the Gavi detailed product profiles, including price per dose, number of doses in the schedule, and wastage rate.
A37: Gavi detailed product profiles
A39: Annual co-financing amount per dose cannot be changed as these are the results of calculations based on the vaccine price and co-financing share provided under Step 2.
A41: Next, adjust the following inputs based on local information:
A42: · Wastage rate: Though the tool extracts standard information for each product, you may want to alter this field with specific information from your country’s immunization program.
A43: · International handling: This is a common UNICEF fee to cover procurement services. It is expressed as a percentage of the vaccine price. Standard rates are available on the UNICEF website.
A44: UNICEF website - handling fees
A45: · International transportation: This corresponds to the cost for international shipping of vaccines and is expressed as a percentage of the vaccine price. Your local UNICEF office may be able to provide background information to help define this input value, using data from earlier shipments and invoices.
A46: · Safety box price: Enter the price of the safety box as used in PCV immunization activities. Standard prices are available on the UNICEF website.
A47: UNICEF website - pricing data
A48: · Safety box/bag volume: The number of doses that a box/bag can contain. This is required in order to calculate how many boxes/bags are required for PCV vaccination activities.
A50: The remaining inputs required on this worksheet are related to vaccine program costs.
A52: For each vaccine being compared, enter the amount budgeted for the one-time introduction or switch costs. This should only include start-up costs, such as expenditures related to microplanning, training, or communication. Typically, this includes expenditures only occurring in the first year to start up the PCV program or switch vaccine products.
A54: All other recurrent costs should be reflected in the incremental cost of delivery per dose for each vaccine being compared. Note that this might vary from one product to another based on product presentation, storage requirements, and ease of administration. You can find data on incremental cost per dose from a range of studies and countries through the Immunization Cost of Delivery Catalogue (IDCC).
A55: Immunization Cost of Delivery Catalogue (IDCC)
A57: Here is a brief explanation of the type of costs to include in this calculation:
A58: · Program costs or incremental financial health system costs refer to all expenditures other than the direct cost of vaccines and commodities. Program costs should include any required expenditures related to staff time, per diem and travel allowances, cold chain equipment, vehicles, transport and fuel, program management, training and capacity building, social mobilization and advocacy, disease surveillance and activities related to adverse events following immunization (AEFI), and waste management.
A59: · Financial costs refer to direct expenditures that will have to happen at the time of immunization activities. For example, this may include injection supplies, per diem or allowances for outreach activities, room rental for training, or similar related costs.
A60: · Incremental costs refer to additional expenditures required for the delivery of PCV vaccine. Any system cost already incurred by the immunization system (shared costs) should be excluded. For example the cost of transporting PCV vaccine should not be included if this is part of the same transport used to deliver other vaccines. Only potential additional trips that may be needed should be included.
A62: After adjusting the data inputs for each vaccine option you want to compare, you will be ready to move to the results worksheet.
A64: Results worksheet
A65: The results worksheet presents cost information annually as well as a total over 10 years for the two different perspectives described above and per each vaccine option indicated in the model inputs worksheet.
A67: Results are displayed in three subsections:
A69: 1. Immunization program
A70: This section provides results in terms of the number of doses delivered and the number of doses required for the PCV vaccination program. Number of doses required equals the number of doses delivered plus the number of doses wasted. This section also calculates the 10-year and annual requirements in terms of cold chain volume, accounting for each vaccine cold chain vaccine volume per dose multiplied by the total number of doses required. Please be aware that this total volume should be used only as an estimated indication as it will vary depending on the number of vaccine shipments per year and the country’s vaccine distribution system. Also, please note that some vaccines require negative cold chain at the central level and others include components that can be stored outside of the positive cold chain.
A72: 2. Country cost
A73: This section provides cost from only the country’s perspective. Vaccine cost, corresponding to vaccine and commodities procurement, is provided separately from total vaccination program cost, which includes vaccine costs and incremental health system costs.
A75: 3. Country and Gavi cost
A76: This section provides cost from both the country and Gavi perspectives (and is only relevant for Gavi-eligible countries). The subcategories are similar to what is found in the country cost subsection.
A78: Note: Conditional formatting is used in subsections 2 and 3 to highlight 10-year cost cells for the least costly vaccine option (dark green color) to the most costly vaccine option (yellow color).
A80: Charts worksheet
A81: The charts worksheet provides a graphic representation of the same results seen on the previous worksheet. The same perspectives and subcategories are reported here. After completing your first analysis, if you make changes on the model inputs worksheet, the results and charts worksheets will automatically update with the new results.
A83: Calculation formulas used in the cost comparison tool
A84: Number of doses delivered = Birth cohort x coverage D1 + birth cohort x coverage D2 + birth cohort x coverage D3
A85: Total doses required = Number of doses delivered x wastage factor
A86: Total cold chain volume required = Cold chain volume per dose in cm3 x total doses required
A87: Wastage factor = (1 / (1 - wastage rate))
A88: Vaccine cost (country cost) = Total doses required x (co-financing amount per dose + co-financing amount per dose x international handling + co-financing amount per dose x international transportation) + (number of doses delivered / volume of safety box x price of safety box)
A89: Vaccination program cost (country cost) = Vaccine cost + number of doses delivered x incremental cost of delivery per dose + introduction or switching costs - VIG or SG (only in Year 1)
A90: Vaccine cost (country + Gavi cost) = Total doses required x (vaccine price per dose + vaccine price per dose x international handling + vaccine price per dose x international transportation) + (number of doses delivered / volume of safety box x price of safety box)
A91: Vaccination program cost (country + Gavi cost) = Vaccine cost + number of doses delivered x incremental cost of delivery per dose + introduction or switching costs (only in Year 1)

Sheet Read me first
B1: Human papillomavirus (HPV) vaccine cost calculator
B3: User guide
B4: For questions or support, contact PATH's Health Economics & Outcomes Research team: HEOR@path.org
C5: Version 1.0 (January 2022)
B6: The human papillomavirus (HPV) vaccine cost calculator is a simple tool for assessing and comparing costs of HPV vaccination programs with each HPV product available in the global market. It aims to help country-level policy-makers compare products and estimate vaccination program costs for different HPV vaccines, exploring up to six different vaccine options at a time. The tool can be used by any country interested in comparing different HPV vaccine costs, whether or not the country is eligible for co-funding from Gavi, the Vaccine Alliance.
B8: The tool calculates costs annually and for a total period of 10 years. Estimates of vaccine cost (i.e., vaccine and supplies procurement and international shipping) and vaccination program costs (i.e., vaccine cost and cost of delivery) are provided separately for two perspectives: (1) the country perspective and (2) the combined country and Gavi perspective (only relevant for Gavi-eligible countries). The country perspective accounts only for what is paid from the country budget, while the country and Gavi perspective also accounts for Gavi co-financing of vaccines and support grants. All cost data are in US$, and use of local currency requires separate currency conversion before inputing values in relevant fields.
B10: Disclaimer: The human papillomavirus vaccine cost calculator is a tool that aims to inform vaccine introduction decision-making and product selection. It is important to note that cost is only one consideration, and users involved in decision-making around new vaccine introduction or product selection should always consider other dimensions as well. This tool is meant to provide insights into the potential costs of alternative product choices and should not replace cost-effectiveness modeling (value assessment) or detailed budget planning once a product has been selected.
B11: Model Overview
B13: The tool consists of three worksheets:
B14: 1. Model inputs worksheet, where the user decides which vaccines to compare and adjusts data inputs relevant to country context and HPV program.
B15: 2. Results worksheet, where the user can consult costing projections. There are three separate results worksheets for each program population (girls 9-14 years old, boys, and girls 15+ and women).
B16: 3. Charts worksheet, where these same results are displayed as charts.
B18: Model inputs worksheet
B19: On this worksheet, the user is asked to set up the tool to reflect the local HPV program and vaccine products of interest. Upon opening, the tool includes example inputs. However, all example inputs should be updated to reflect the local population, program, and inputs. The legend below explains the types of cells in the model inputs worksheet. The Steps for Using Tool described below must be completed in order to obtain results.
B20: Legend
C21: Blue boxes indicate a dropdown menu from which the user can select a pre-specified choice. Click on the blue box and a dropdown arrow will appear. Clicking on the arrow will allow the user to select from a menu of options.
C22: Yellow boxes require user inputs. Example data are included in the model, but this information should be revised to reflect the local HPV program and inputs.
C23: White cells include information that is fixed and cannot be changed by the user.
B25: Steps for Using Tool
B26: Please choose "Enable macros" or "Enable content" upon opening this workbook.
B27: Step 1: Define the target population(s)
B28: Step 1 allows the user to define the populations they would like to include in the analysis. The recommended target population for the HPV vaccine, girls 9-14 years old, is always included in the analysis. For each additional target population listed in Step 1 (girls 9-14 years old, boys, and girls 15+ years old and women), select whether to include that population in the vaccine program by selecting "Yes" or "No" from the adjacent dropdown menus. The tool will only ask for information on and calculate results for target populations that are selected for inclusion.
B30: Step 2: Characterize the immunization program For each selected target population, complete the following information:
B31: Start year: Enter information related to the start year you want to explore, keeping in mind that this will be the first year of a 10-year program period. Enter the required information on your target population and annual population growth rate.
B32: Cohort type, age and target population size: Enter information on the age and size of each target population. For the girls 9-14 years old population only, enter age and target population size by type of cohort: single-aged cohort (e.g., routine), and multi-aged cohort (e.g., one-time campaign). If no multi-aged cohort is anticipated, enter target population size as 0 for each year.
B33: Delivery options: Enter the proportion of individuals reached via each delivery location (school, facility, or outreach). These entries must total 100%.
B34: Expected coverage by dose: Enter information related to expected vaccine coverage for dose 1, 2, and 3, as appropriate based on the immunization schedule of the target population. Because coverage by delivery location may vary, please enter coverage estimates for each delivery location. You can choose to use planned coverage target estimates, expected coverage estimates or actual coverage from past cohorts. Note that coverage estimates will affect the number of doses required to sustain HPV vaccination activities. If a particular dose (e.g., dose 3) is not part of your immunization schedule, enter 0 for the expected coverage across all delivery locations.
B36: Step 3: Co-financing and financial support
B37: Please note this tool only accounts for Gavi support for vaccination among girls 9-14 years old based on current Gavi vaccination funding guidelines.
B38: Gavi eligibility: First, indicate whether your country is Gavi-eligible by selecting "Yes" or "No" from the drop down menu. If yes, there will be an opportunity to add co-financing and financial support information for the target population of girls 9-14 years old. If no, 100% of program and vaccine costs will be assigned to the country.
B40: Co-financing for Gavi-eligible countries:
A41: Co-financing for Gavi-eligible countries: | B41: 1. If your country is Gavi eligible, indicate the country's Gavi transition phase by selecting the appropriate option in the drop-down menu.
B42: ="2. If you select 'Initial self-financing', country co-financing will be assumed to be $"&TEXT(cofin,"0#.#0")&" per dose each year." -> 2. If you select 'Initial self-financing', country co-financing will be assumed to be $0.20 per dose each year.
B43: 3. If your country is currently in another Gavi transition phase (preparatory transition or accelerated transition), select "Other transition phase" and enter your country’s co-financing share for each of the 10 years listed. If you are not aware of your country co-financing share, you should contact your Gavi Senior Country Manager.
B44: 4. Enter the amount of financial support your country may be eligible to receive for either a Gavi Vaccine Introduction Grant (VIG) or Campaign Operational Support Grant (Ops). A box detailing how to calculate the VIG or Ops grant is available on the right side of the worksheet. You may also consult the Gavi support and vaccine funding guidelines for more information. Finally, enter the proportion of vaccine product cost covered by Gavi for multi-aged cohort doses (if applicable).
B45: Gavi support guidelines (August 2021)
B46: Gavi vaccine funding guidelines (August 2021)
B47: Step 4: HPV vaccine options
B48: The tool allows you to compare up to six different vaccine options at once including a placeholder for vaccines not yet available. Use the drop-down menu under each Option 1-6 (in cells C117:AK117) to select each product you would like to compare. This section incorporates product-specific characteristics, including price per dose, number of doses in the schedule, and wastage rate. In this section, many input values may be similar across product choices but inputs need to be entered for each vaccine option. See the Gavi detailed product profiles for more information on each vaccine option.
B49: Gavi detailed product profiles
B50: · Vaccine price and co-financing sections:
B51: For Gavi countries, the vaccine price per dose to countries for programs targeting girls is automatically populated based on known or indicative tenders (current as of December 2021). Gavi does not provide subsidies for doses delivered to boys or girls 15+ years old and women; for these populations, enter the vaccine price you can access for each vaccine product option.
B52: For non-Gavi countries, indicate the vaccine price you can access for each vaccine product option and target population included in the vaccine program. Information on vaccine price paid by other countries is available from the WHO/MI4A database .
B53: WHO/MI4A Vaccine Purchase Database
B54: For additional information on HPV vaccines, read the initial WHO Position paper (2017) and updated conclusions and recommendations from the Strategic Advisory Group of Experts (SAGE) on Immunization report (2019).
B55: Position paper on HPV vaccines (May 2017)
B56: SAGE Report (2019)
B58: Annual co-financing amount per dose cannot be changed as these are the results of calculations based on the vaccine price and co-financing share provided under Step 3.
B59: Next, adjust the following inputs based on local information for each target population included in the program:
B60: · Number of doses in schedule: Indicate the number of doses to be given to each population in the program by selecting from the relevant drop down menus.
B61: · Wastage rate: An example wastage rate (e.g. 5%) is included as a default estimate for each vaccine product, however, this estimates should be revised to reflect the local program. If available, the Gavi-indicated wastage rate is auto-populated in the notes sidebar to support customization of this input parameter for each vaccine. However, if local wastage rates are available from your country’s immunization program, please revise to reflect local estimates.
B62: · International handling: This is a common UNICEF fee to cover procurement services. It is expressed as a percentage of the vaccine price. Standard rates are available on the UNICEF website and included as defaults in the tool, but this input may be revised as necessary to better reflect the local program.
B63: UNICEF website - handling fees
B64: · International transportation: This corresponds to the cost for international shipping of vaccines and is expressed as a percentage of the vaccine price. An example % is included as a default parameter. Your local UNICEF office may be able to provide background information to help define this input value, using data from earlier shipments and invoices.
B65: · Safety box price: Enter the price of the safety box as used in HPV immunization activities. Standard prices are available on the UNICEF website.
B66: UNICEF website - pricing data
B67: · Safety box/bag volume: The number of doses that a box/bag can contain. This is required in order to calculate how many boxes/bags are required for HPV vaccination activities. An example price per box and volume are included based on standard estimates from UNICEF but may need to be updated to better reflect the local program.
B68: · Syringe price: Enter the price of syringes as used in HPV immunization activities. Standard prices are available on the UNICEF website. The 2020 UNICEF mean price is included as a default but may need to be updated to reflect local procurement prices.
B69: UNICEF website - pricing data
B71: The remaining inputs required on this worksheet are related to vaccine program costs.
B73: · Vaccination program costs
B74: Vaccination program costs include vaccine introduction costs and incremental health system costs or incremental cost of delivery per dose:
B75: Introduction costs include one-time costs of introducing the program in the first year (or switching products after the first year). This should only include start-up costs such as expenditures related to microplanning, initial training, or communication. Typically, this includes expenditures only occurring in the first year to start up the HPV program (may be applicable to single-aged cohort and multi-aged cohort or just the single-aged cohort, depending on program) or switch vaccine products (applicable to single-aged cohort only). For each vaccine being compared, enter the amount budgeted for the one-time introduction costs.
B76: The incremental cost of delivery per dose refers to all additional expenditures required to deliver vaccines, other than the one-time introduction costs and the direct cost of vaccines procurement and commodities. These include additional required expenditures related to staff, per diem, travel allowances, cold chain equipment, vehicles, transport and fuel, program management, ongoing training and capacity building, ongoing social mobilization and advocacy, disease surveillance and activities related to adverse events following immunization (AEFI), and waste management. Any system cost already incurred by the immunization system (shared costs) should be excluded. For example the cost of transporting HPV vaccine should not be included if this is part of the same transport used to deliver other vaccines. Only potential additional trips that may be needed should be included. Note that the incremental delivery costs might vary from one product to another based on product presentation, storage requirements, and ease of administration. Importantly, delivery costs differ based on the program approach (school-based, facility-based, outreach). Please enter costs specific to each approach used by the program or enter $0 for any approach not used. You can find data on incremental cost per dose from a range of studies and countries through the Immunization Delivery Cost Catalogue (IDCC).
B77: Immunization Delivery Cost Catalogue (IDCC)
B79: After adjusting the data inputs for each vaccine option you want to compare, you will be ready to move to the results worksheet.
B81: Results worksheet
B82: There are three separate results worksheets for each program population (girls 9-14 years old, boys, and girls 15+ and women). Each results worksheet presents cost information annually as well as a total over 10 years for the two different perspectives described above and per each vaccine option indicated in the model inputs worksheet.
B84: For each vaccine option, results are displayed in three subsections:
B85: 1. Immunization program
B86: This section provides results in terms of the number of doses delivered and the number of doses required for the HPV vaccination program for that target population. Number of doses required equals the number of doses delivered plus the number of doses wasted.
B88: 2. Country costs
B89: This section provides costs from only the country’s perspective. Vaccine cost, corresponding to vaccine and commodities procurement, is provided separately from total vaccination program cost, which includes vaccine costs and incremental health system costs.
B91: 3. Country and Gavi costs
B92: This section provides costs from both the country and Gavi perspectives (and is only relevant for Gavi-eligible countries). The subcategories are similar to what is found in the country cost subsection.
B94: Note: Conditional formatting is used in subsections 2 (country costs) and 3 (country + Gavi costs) to highlight 10-year cost cells for the least costly vaccine option (dark green color) to the most costly vaccine option (yellow color).
B96: Charts worksheet
B97: The charts worksheets provide a graphical representation of the same results seen on the results worksheets. The same perspectives and subcategories are reported here. After completing your first analysis, if you make changes on the model inputs worksheet, the results and charts worksheets will automatically update with the new results.
B99: Calculation formulas used in the cost tool*†
B100: Number of doses delivered = Target cohort(s) x delivery location-weighted coverage dose 1 + target cohort(s) x delivery location-weighted coverage dose 2 + target cohort(s) x delivery location-weighted coverage dose 3 (Note: delivery location = school, facility or outreach)
B101: Total doses required = Number of doses delivered x wastage factor
B102: Wastage factor = (1 / (1 - wastage rate))
B103: Vaccine cost (country cost) = Total doses required x (co-financing amount per dose + co-financing amount per dose x international handling + co-financing amount per dose x international transportation) + (number of doses delivered / volume of safety box x price of safety box) + (number of doses delivered x price of syringe)
B104: Vaccination program cost (country cost) = Vaccine cost + number of doses delivered x incremental cost of delivery per dose + introduction or switching costs - any subsidies (e.g., VIG/Ops grants, multi-age cohort cost per dose)
B105: Vaccine cost (country + Gavi cost) = Total doses required x (vaccine price per dose + vaccine price per dose x international handling + vaccine price per dose x international transportation) + (number of doses delivered / volume of safety box x price of safety box) + (number of doses delivered x price of syringe)
B106: Vaccination program cost (country + Gavi cost) = Vaccine cost + number of doses delivered x incremental cost of delivery per dose + introduction or switching costs
B108: * x = multiply
B109: †Note that for the program for girls 9-14 years old, estimates reflect the cohorts indicated (e.g., single-aged cohort only if no multi-aged cohort is included or combined single-aged cohort and a one-time multi-aged cohort).

Sheet Model inputs
A1: Human papillomavirus (HPV) vaccine cost calculator | J1: Version 1.0 / December 2021
A2: A simplified model to assess and compare costs of HPV vaccination programs with each HPV vaccine product available in the global market | J2: For questions or support, contact PATH's Health Economics and Outcomes Research team: HEOR@path.org
C5: The HPV vaccine cost calculator is a tool that helps countries compare products and estimated vaccination program costs for different HPV vaccines, exploring up to six different vaccine options at a time. Costs are calculated annually and for a total period of 10 years. All boxes with a yellow background require user inputs and blue boxes require the user to select from a drop-down menu (click on the cell to activate the dropdown). When available, default data are already entered, with the source of information indicated; however, data should be updated to reflect the local program. Note that default data are for currently Gavi-eligible countries. Countries not eligible for Gavi support should confirm all data inputs individually. The tool generates projected costs based on the best currently available information for each vaccine. All cost data are in US$, and use of local currency requires separate currency conversion to US$ before inputing values in relevant fields.
C10: â START HERE â | F10: Please be sure to complete all inputs on this tab for the following four steps before going to the Results tab:
C11: STEP 1: DEFINE THE TARGET POPULATION(S) | F11: - Step 1: Define the target populations(s)
C12: Target population | D12: Included in vaccine program? | F12: - Step 2: Characterize the immunization program
F13: - Step 3: Co-financing and financial support
C14: Girls <15 years old (Included for all analyses) | D14: Yes | F14: - Step 4: HPV vaccine options
C16: Boys | D16: Yes | F16: Disclaimer: The HPV vaccine cost calculator is a tool that aims to inform vaccine introduction decision-making and product selection. It is important to note that cost is only one consideration, and users involved in decision-making around vaccine introduction or product selection should always consider other dimensions as well. This tool is meant to provide insights into the potential costs of alternative product choices and should not replace cost-effectiveness modeling (value assessment) or detailed budget planning once a product has been selected.
C18: Girls 15+ years and women | D18: Yes
C20: STEP 2. CHARACTERIZE THE IMMUNIZATION PROGRAM
B22: GIRLS 9-14 YEARS OLD | C22: HPV VACCINATION AMONG GIRLS 9-14 YEARS OLD
C23: Start year (year 1) | E23: 2022 | K23: Single-aged cohort (SAC) is the routine immunization cohort to be vaccinated annually. Multi-aged cohort (MAC) is a group of girls in addition to the routine cohort who will be immunized on a one-time basis (most frequently the first year of the immunization program). Select the MAC age range by selecting the youngest MAC age ("Age from") in cell H26 to the oldest MAC age included ("To") in cell J26. Enter the anticipated target population size (children per year) for each program year for the SAC and MAC populations. If no MAC is anticipated, enter target population size as 0 for each year.
C24: Cohort type | E24: Single-aged cohort (SAC) | H24: Multi-aged cohort (MAC)
E25: For single-aged cohort (routine) | H25: Age from | I25: For multi-aged cohort (one-time campaign) | J25: To
E26: Age | F26: Target population size | H26: 10 | I26: Target population size | J26: 14
C27: =E23 -> 2022 | E27: 9 | F27: 100000 | H27: 400000
C28: =C27+1 -> 2023 | E28: 9 | F28: 100000 | H28: 0
C29: =C28+1 -> 2024 | E29: 9 | F29: 100000 | H29: 0
C30: 2025 | E30: 9 | F30: 100000 | H30: 0
C31: 2026 | E31: 9 | F31: 100000 | H31: 0
C32: 2027 | E32: 9 | F32: 100000 | H32: 0
C33: 2028 | E33: 9 | F33: 100000 | H33: 0
C34: 2029 | E34: 9 | F34: 100000 | H34: 0
C35: 2030 | E35: 9 | F35: 100000 | H35: 0
C36: 2031 | E36: 9 | F36: 100000 | H36: 0
C37: Delivery options | E37: School | F37: Facility | G37: Outreach | H37: School | I37: Facility | J37: Outreach
E38: 0.25 | F38: 0.25 | G38: 0.5 | H38: 0.9 | I38: 0.1 | J38: 0 | K38: For both the SAC and MAC, enter the proportion of girls reached through each location (must total 100%)
C39: Expected coverage dose 1 | E39: 0.75 | F39: 0.8 | G39: 0.8 | H39: 0.75 | I39: 0.8 | J39: 0.8 | K39: Annual coverage for dose 1 by delivery location. Where possible, historical program data should be used to reflect the most likely coverage estimates.
C40: Expected coverage dose 2 | E40: 0.7 | F40: 0.75 | G40: 0.75 | H40: 0.7 | I40: 0.75 | J40: 0.75 | K40: Annual coverage by delivery location. If fewer than 2 doses are given, enter 0%. Note: This is total dose 2 coverage and not proportion of the dose 1 population. Dose 2 coverage is typically lower than dose 1 due to attrition. Where possible, historical program data should be used to reflect the most likely coverage estimates.
C41: Expected coverage dose 3 | E41: 0 | F41: 0 | G41: 0 | H41: 0 | I41: 0 | J41: 0 | K41: Annual coverage by delivery location. If fewer than 3 doses are given, enter 0%. Note: This is total dose 3 coverage and not proportion of the dose 2 population. Dose 3 coverage is typically lower than dose 2 due to attrition. Where possible, historical program data should be used to reflect the most likely coverage estimates.
B43: BOYS | C43: HPV VACCINATION AMONG ADDITIONAL POPULATIONS: BOYS
C44: Start year (year 1) | E44: 2022
E45: Age | F45: Target population size | H45: Select the target age for immunization in the blue drop down cells under "Age". In the yellow cells, enter the anticipated target population size for each program year. If no vaccination among this population is anticipated in a given year, select "NA" for age and enter 0 for target population size for that year.
C46: =E44 -> 2022 | E46: 9 | F46: 100000
C47: =C46+1 -> 2023 | E47: 9 | F47: 100000
C48: =C47+1 -> 2024 | E48: 9 | F48: 100000
C49: 2025 | E49: 9 | F49: 100000
C50: 2026 | E50: 9 | F50: 100000
C51: 2027 | E51: 9 | F51: 100000
C52: 2028 | E52: 9 | F52: 100000
C53: 2029 | E53: 9 | F53: 100000
C54: 2030 | E54: 9 | F54: 100000
C55: 2031 | E55: 9 | F55: 100000
C56: Delivery options | E56: School | F56: Facility | G56: Outreach
E57: 0.7 | F57: 0.15 | G57: 0.15 | H57: Enter the proportion reached through each location (must total 100%)
C58: Expected coverage dose 1 | E58: 0.75 | F58: 0.8 | G58: 0.8 | H58: Annual coverage for dose 1 by delivery location. Where possible, historical program data should be used to reflect the most likely coverage estimates.
C59: Expected coverage dose 2 | E59: 0.7 | F59: 0.75 | G59: 0.75 | H59: Annual coverage by delivery location. If fewer than 2 doses are given, enter 0%. Note: This is total dose 2 coverage and not proportion of the dose 1 population. Dose 2 coverage is typically lower than dose 1 due to attrition. Where possible, historical program data should be used to reflect the most likely coverage estimates.
C60: Expected coverage dose 3 | E60: 0 | F60: 0 | G60: 0 | H60: Annual coverage by delivery location. If fewer than 3 doses are given, enter 0%. Note: This is total dose 3 coverage and not proportion of the dose 2 population. Dose 3 coverage is typically lower than dose 2 due to attrition. Where possible, historical program data should be used to reflect the most likely coverage estimates.
B62: GIRLS 15+ AND WOMEN | C62: HPV VACCINATION AMONG ADDITIONAL POPULATIONS: GIRLS 15+ AND WOMEN
C63: Start year (year 1) | E63: 2022
E64: Target population size | H64: In the yellow cells, enter the anticipated target population size for each program year. If no vaccination among this population is anticipated in a given year, enter 0 for that year.
C65: =E63 -> 2022 | E65: 1000
C66: =C65+1 -> 2023 | E66: 1000
C67: =C66+1 -> 2024 | E67: 1000
C68: 2025 | E68: 1000
C69: 2026 | E69: 2800
C70: 2027 | E70: 3000
C71: 2028 | E71: 3200
C72: 2029 | E72: 3400
C73: 2030 | E73: 3600
C74: 2031 | E74: 3800
C75: Delivery options | E75: School | F75: Facility | G75: Outreach
E76: 0.7 | F76: 0.15 | G76: 0.15 | H76: Enter the proportion reached through each location (must total 100%)
C77: Expected coverage dose 1 | E77: 0.75 | F77: 0.8 | G77: 0.8 | H77: Annual coverage for dose 1 by delivery location. Where possible, historical program data should be used to reflect the most likely coverage estimates.
C78: Expected coverage dose 2 | E78: 0.7 | F78: 0.75 | G78: 0.75 | H78: Annual coverage by delivery location. If fewer than 2 doses are given, enter 0%. Note: This is total dose 2 coverage and not proportion of the dose 1 population. Dose 2 coverage is typically lower than dose 1 due to attrition. Where possible, historical program data should be used to reflect the most likely coverage estimates.
C79: Expected coverage dose 3 | E79: 0.65 | F79: 0.7 | G79: 0.7 | H79: Annual coverage by delivery location. If fewer than 3 doses are given, enter 0%. Note: This is total dose 3 coverage and not proportion of the dose 2 population. Dose 3 coverage is typically lower than dose 2 due to attrition. Where possible, historical program data should be used to reflect the most likely coverage estimates.
C82: STEP 3: GAVI ELIGIBILITY AND CO-FINANCING | J82: Gavi Support Guidelines
C83: Please note this tool only accounts for Gavi support for vaccination among girls 9-14 years old based on current Gavi vaccination funding guidelines. Within this age range, countries may request support for a single age cohort to be vaccinated annually in routine immunization, either with or without additional multi-age cohorts. See side box and link below for additional support guidelines and information. | J83: Gavi support for HPV vaccination varies based on the country's Gavi transition phase and implementation strategy:
C85: https://www.gavi.org/sites/default/files/support/Vaccine_FundingGuidelines.pdf | J85: 1. Routine immunization among a single-aged cohort only:
C86: Is this country Gavi eligible? | D86: Yes | E86: If yes, there will be an opportunity to add co-financing and financial support information for the girls program. If no, 100% of program and vaccine costs will be assigned to country. | J86: VIG provided at $2.40 per target girl in routine cohort or a lump sum of $100,000, whichever is higher, in year of introduction.
J87: 2. Routine annual immunization among a single-aged cohort with additional one-time vaccination of a multi-age cohort ("MAC"):
C88: CO-FINANCING AND FINANCIAL SUPPORT FOR PROGRAM FOR GIRLS 9-14 YEARS OLD ONLY
E89: Notes | J89: VIG provided at $2.40 per target girl in routine cohort or a lump sum of $100,000, whichever is higher, in year of introduction.
C90: Gavi transition phase | D90: Other transition phase | E90: Please select the appropriate option in drop-down menu to the left. If you select 'Initial self-financing', country co-financing will be assumed to be $0.20 per dose each year. If you select 'Other transition phase', fill in the country co-financing share for each year listed below. The details in this section apply only to the girls program. | J90: Operational Support Grant is provided to countries that choose to include one-time vaccination of additional girls 9-14 years old that are not part of the routine cohort (i.e., a MAC). This grant is provided only in the year of the MAC and the per-dose amount varies by the country's Gavi transition phase as follows:
C91: Country co-financing share
C92: =E23 -> 2022 | D92: 0.15 | E92: % of vaccine price per dose or "price fraction" Not used if you selected "Initial self-financing phase" above. If you don't know your country co-financing share, contact your SCM. If your country is scheduled to move from initial self-financing to preparatory transition during the 10-year period, contact HEOR@path.org to discuss how to set up the model.
C93: =C92+1 -> 2023 | D93: 0.25 | J93: a. Initial-self financing pase: $0.65 per dose
C94: 2024 | D94: 0.3 | J94: b. Preparatory transition phase: $0.55 per dose
C95: 2025 | D95: 0.35 | J95: c. Accelerated transition phase: $0.45 per dose
C96: 2026 | D96: 0.4 | J96: Countries including a one-time MAC receive vaccine supply for the additional girls at no cost in the year of the MAC. Standard country co-financing for the routine cohort vaccine supply is required.
C97: 2027 | D97: 0.5
C98: 2028 | D98: 0.6
C99: 2029 | D99: 0.7
C100: 2030 | D100: 0.8 | J100: Please note that Gavi funding is provided only for vaccination of girls 9-14 years. Countries interested in vaccinating other populations (girls 15+ and women; boys) may still receive the VIG and/or Operational Support Grant for support in vaccinating girls 9-14 years, but will be required to cover the full operational and vaccine costs of reaching any additional populations included in the country's HPV immunization strategy.
C101: 2031 | D101: 1
C102: Gavi Vaccine Introduction Grant (VIG) per dose for SAC in the first year | D102: 2.4 | E102: VIGs are one-time subsidies provided by Gavi to offset a share of the costs related to introducing a new vaccine; standard country co-financing for vaccine supply is required. See side box for additional information.
C103: Gavi Campaign Operational Support (Ops) Grant per dose for MAC in the MAC year only | D103: 0.55 | E103: The Ops Grant is provided to countries that choose to include one-time vaccination of additional girls 9-14 years old that are not part of the routine cohort (i.e., the MAC). This grant is provided only in the year of the multi-age cohort for operational costs. See side box for additional information and current support.
C106: Gavi subsidy for multi-aged cohort doses (% cost coverage per dose) | D106: 1 | E106: This covers the vaccine product cost for MAC doses during the MAC year only. Note that this input should only be changed from 100% if Gavi will not be subsidizing the country's MAC doses in full.
C111: STEP 4: HPV VACCINE OPTIONS
C112: For detailed HPV vaccine profiles visit:
C113: Gavi website
C114: VACCINE COST | O114: VACCINE COST | AA114: VACCINE COST
C116: OPTION 1 | I116: OPTION 2 | O116: OPTION 3 | U116: OPTION 4 | AA116: OPTION 5 | AG116: OPTION 6
C117: Select vaccine and presentation >>> | D117: Cecolin, bivalent | I117: Select vaccine and presentation >>> | J117: Cecolin, bivalent | O117: Select vaccine and presentation >>> | P117: Cervarix, bivalent, 10 | U117: Select vaccine and presentation >>> | V117: Gardasil-4, quadrivalent | AA117: Select vaccine and presentation >>> | AB117: Gardasil-9, nonavalent | AG117: Select vaccine and presentation >>> | AH117: Future vaccine to be defined by user (e.g. Zerun, bivalent)
D119: Girls 9-14 program | E119: Boys program | F119: Girls 15+ and women program | J119: Girls 9-14 program | K119: Boys program | L119: Girls 15+ and women program | P119: Girls 9-14 program | Q119: Boys program | R119: Girls 15+ and women program | V119: Girls 9-14 program | W119: Boys program | X119: Girls 15+ and women program | AB119: Girls 9-14 program | AC119: Boys program | AD119: Girls 15+ and women program | AH119: Girls 9-14 program | AI119: Boys program | AJ119: Girls 15+ and women program
C120: Total vaccine price per dose | D120: 4.5 | E120: 10 | F120: 10 | G120: Default data for the girls program is based on known or indicative Gavi tenders for this product. Cecolin, bivalent: $3.00 per dose Cervarix, bivalent: $5.18 per dose Cervarix, bivalent, 10: unknown Gardasil-4, quadrivalent: $4.50 per doce Gardasil-9, nonavalent: $6.90 per doce Future vaccine: unknown These prices should be updated to reflect expected local procurement prices for non-Gavi countries. For future products or products where Gavi tenders are not known, example estimates are provided as defaults (to be updated for analysis). Default pricing for boys and women are stylistic examples only and need to be updated by the user. If no programs are in place for boys or girls 15+ and women, then no data can be entered in those columns. | I120: Total vaccine price per dose | J120: 5.18 | K120: 10 | L120: 10 | M120: Default data for the girls program is based on known or indicative Gavi tenders for this product. Cecolin, bivalent: $3.00 per dose Cervarix, bivalent: $5.18 per dose Cervarix, bivalent, 10: unknown Gardasil-4, quadrivalent: $4.50 per doce Gardasil-9, nonavalent: $6.90 per doce Future vaccine: unknown These prices should be updated to reflect expected local procurement prices for non-Gavi countries. For future products or products where Gavi tenders are not known, example estimates are provided as defaults (to be updated for analysis). Default pricing for boys and women are stylistic examples only and need to be updated by the user. If no programs are in place for boys or girls 15+ and women, then no data can be entered in those columns. | O120: Total vaccine price per dose | P120: 3 | Q120: 10 | R120: 10 | S120: Default data for the girls program is based on known or indicative Gavi tenders for this product. Cecolin, bivalent: $3.00 per dose Cervarix, bivalent: $5.18 per dose Cervarix, bivalent, 10: unknown Gardasil-4, quadrivalent: $4.50 per doce Gardasil-9, nonavalent: $6.90 per doce Future vaccine: unknown These prices should be updated to reflect expected local procurement prices for non-Gavi countries. For future products or products where Gavi tenders are not known, example estimates are provided as defaults (to be updated for analysis). Default pricing for boys and women are stylistic examples only and need to be updated by the user. If no programs are in place for boys or girls 15+ and women, then no data can be entered in those columns. | U120: Total vaccine price per dose | V120: 5.18 | W120: 10 | X120: 10 | Y120: Default data for the girls program is based on known or indicative Gavi tenders for this product. Cecolin, bivalent: $3.00 per dose Cervarix, bivalent: $5.18 per dose Cervarix, bivalent, 10: unknown Gardasil-4, quadrivalent: $4.50 per doce Gardasil-9, nonavalent: $6.90 per doce Future vaccine: unknown These prices should be updated to reflect expected local procurement prices for non-Gavi countries. For future products or products where Gavi tenders are not known, example estimates are provided as defaults (to be updated for analysis). Default pricing for boys and women are stylistic examples only and need to be updated by the user. If no programs are in place for boys or girls 15+ and women, then no data can be entered in those columns. | AA120: Total vaccine price per dose | AB120: 6.9 | AC120: 10 | AD120: 10 | AE120: Default data for the girls program is based on known or indicative Gavi tenders for this product. Cecolin, bivalent: $3.00 per dose Cervarix, bivalent: $5.18 per dose Cervarix, bivalent, 10: unknown Gardasil-4, quadrivalent: $4.50 per doce Gardasil-9, nonavalent: $6.90 per doce Future vaccine: unknown These prices should be updated to reflect expected local procurement prices for non-Gavi countries. For future products or products where Gavi tenders are not known, example estimates are provided as defaults (to be updated for analysis). Default pricing for boys and women are stylistic examples only and need to be updated by the user. If no programs are in place for boys or girls 15+ and women, then no data can be entered in those columns. | AG120: Total vaccine price per dose | AH120: 3 | AI120: 3 | AJ120: 3 | AK120: Default data for the girls program is based on known or indicative Gavi tenders for this product. Cecolin, bivalent: $3.00 per dose Cervarix, bivalent: $5.18 per dose Cervarix, bivalent, 10: unknown Gardasil-4, quadrivalent: $4.50 per doce Gardasil-9, nonavalent: $6.90 per doce Future vaccine: unknown These prices should be updated to reflect expected local procurement prices for non-Gavi countries. For future products or products where Gavi tenders are not known, example estimates are provided as defaults (to be updated for analysis). Default pricing for boys and women are stylistic examples only and need to be updated by the user. If no programs are in place for boys or girls 15+ and women, then no data can be entered in those columns.
C121: Country financing share per dose | I121: Co-financing amount per dose | O121: Co-financing amount per dose | U121: Co-financing amount per dose | AA121: Co-financing amount per dose | AG121: Co-financing amount per dose
C122: =$E$23 -> 2022 | D122: =IF($D$86="No",D$120,IF($D$90="Other transition phase",$D92*D$120,IF(AND(D$132=2,$D$90="Initial self-financing phase"),0.2,0.2))) -> 0.675 | E122: =$E$120 -> 10 | F122: =$F$120 -> 10 | G122: - | I122: =$E$23 -> 2022 | J122: =IF($D$86="No",J$120,IF($D$90="Other transition phase",$D92*J$120,IF(AND(J$132=2,$D$90="Initial self-financing phase"),0.2,0.2))) -> 0.777 | K122: =$K$120 -> 10 | L122: =$L$120 -> 10 | M122: - | O122: =$E$23 -> 2022 | P122: =IF($D$86="No",P$120,IF($D$90="Other transition phase",$D92*P$120,IF(AND(P$132=2,$D$90="Initial self-financing phase"),0.2,0.2))) -> 0.45 | Q122: =$Q$120 -> 10 | R122: =$R$120 -> 10 | S122: - | U122: =$E$23 -> 2022 | V122: =IF($D$86="No",V$120,IF($D$90="Other transition phase",$D92*V$120,IF(AND(V$132=2,$D$90="Initial self-financing phase"),0.2,0.2))) -> 0.777 | W122: =$W$120 -> 10 | X122: =$X$120 -> 10 | Y122: - | AA122: =$E$23 -> 2022 | AB122: =IF($D$86="No",AB$120,IF($D$90="Other transition phase",$D92*AB$120,IF(AND(AB$132=2,$D$90="Initial self-financing phase"),0.2,0.2))) -> 1.035 | AC122: =$AC$120 -> 10 | AD122: =$AD$120 -> 10 | AE122: - | AG122: =$E$23 -> 2022 | AH122: =IF($D$86="No",AH$120,IF($D$90="Other transition phase",$D92*AH$120,IF(AND(AH$132=2,$D$90="Initial self-financing phase"),0.2,0.2))) -> 0.45 | AI122: =$AI$120 -> 3 | AJ122: =$AJ$120 -> 3 | AK122: -
C123: =C122+1 -> 2023 | D123: =IF($D$86="No",D$120,IF($D$90="Other transition phase",$D93*D$120,IF(AND(D$132=2,$D$90="Initial self-financing phase"),0.2,0.2))) -> 1.125 | E123: =$E$120 -> 10 | F123: =$F$120 -> 10 | G123: - | I123: =I122+1 -> 2023 | J123: =IF($D$86="No",J$120,IF($D$90="Other transition phase",$D93*J$120,IF(AND(J$132=2,$D$90="Initial self-financing phase"),0.2,0.2))) -> 1.295 | K123: =$K$120 -> 10 | L123: =$L$120 -> 10 | M123: - | O123: =O122+1 -> 2023 | P123: =IF($D$86="No",P$120,IF($D$90="Other transition phase",$D93*P$120,IF(AND(P$132=2,$D$90="Initial self-financing phase"),0.2,0.2))) -> 0.75 | Q123: =$Q$120 -> 10 | R123: =$R$120 -> 10 | S123: - | U123: =U122+1 -> 2023 | V123: =IF($D$86="No",V$120,IF($D$90="Other transition phase",$D93*V$120,IF(AND(V$132=2,$D$90="Initial self-financing phase"),0.2,0.2))) -> 1.295 | W123: =$W$120 -> 10 | X123: =$X$120 -> 10 | Y123: - | AA123: =AA122+1 -> 2023 | AB123: =IF($D$86="No",AB$120,IF($D$90="Other transition phase",$D93*AB$120,IF(AND(AB$132=2,$D$90="Initial self-financing phase"),0.2,0.2))) -> 1.725 | AC123: =$AC$120 -> 10 | AD123: =$AD$120 -> 10 | AE123: - | AG123: =AG122+1 -> 2023 | AH123: =IF($D$86="No",AH$120,IF($D$90="Other transition phase",$D93*AH$120,IF(AND(AH$132=2,$D$90="Initial self-financing phase"),0.2,0.2))) -> 0.75 | AI123: =$AI$120 -> 3 | AJ123: =$AJ$120 -> 3 | AK123: -
C124: =C123+1 -> 2024 | D124: 1.35 | E124: 10 | F124: 10 | G124: - | I124: =I123+1 -> 2024 | J124: 1.554 | K124: 10 | L124: 10 | M124: - | O124: =O123+1 -> 2024 | P124: 0.9 | Q124: 10 | R124: 10 | S124: - | U124: =U123+1 -> 2024 | V124: 1.554 | W124: 10 | X124: 10 | Y124: - | AA124: =AA123+1 -> 2024 | AB124: 2.07 | AC124: 10 | AD124: 10 | AE124: - | AG124: =AG123+1 -> 2024 | AH124: 0.9 | AI124: 3 | AJ124: 3 | AK124: -
C125: 2025 | D125: 1.575 | E125: 10 | F125: 10 | G125: - | I125: 2025 | J125: 1.813 | K125: 10 | L125: 10 | M125: - | O125: 2025 | P125: 1.05 | Q125: 10 | R125: 10 | S125: - | U125: 2025 | V125: 1.813 | W125: 10 | X125: 10 | Y125: - | AA125: 2025 | AB125: 2.415 | AC125: 10 | AD125: 10 | AE125: - | AG125: 2025 | AH125: 1.05 | AI125: 3 | AJ125: 3 | AK125: -
C126: 2026 | D126: 1.8 | E126: 10 | F126: 10 | G126: - | I126: 2026 | J126: 2.072 | K126: 10 | L126: 10 | M126: - | O126: 2026 | P126: 1.2 | Q126: 10 | R126: 10 | S126: - | U126: 2026 | V126: 2.072 | W126: 10 | X126: 10 | Y126: - | AA126: 2026 | AB126: 2.76 | AC126: 10 | AD126: 10 | AE126: - | AG126: 2026 | AH126: 1.2 | AI126: 3 | AJ126: 3 | AK126: -
C127: 2027 | D127: 2.25 | E127: 10 | F127: 10 | G127: - | I127: 2027 | J127: 2.59 | K127: 10 | L127: 10 | M127: - | O127: 2027 | P127: 1.5 | Q127: 10 | R127: 10 | S127: - | U127: 2027 | V127: 2.59 | W127: 10 | X127: 10 | Y127: - | AA127: 2027 | AB127: 3.45 | AC127: 10 | AD127: 10 | AE127: - | AG127: 2027 | AH127: 1.5 | AI127: 3 | AJ127: 3 | AK127: -
C128: 2028 | D128: 2.7 | E128: 10 | F128: 10 | G128: - | I128: 2028 | J128: 3.108 | K128: 10 | L128: 10 | M128: - | O128: 2028 | P128: 1.8 | Q128: 10 | R128: 10 | S128: - | U128: 2028 | V128: 3.108 | W128: 10 | X128: 10 | Y128: - | AA128: 2028 | AB128: 4.14 | AC128: 10 | AD128: 10 | AE128: - | AG128: 2028 | AH128: 1.8 | AI128: 3 | AJ128: 3 | AK128: -
C129: 2029 | D129: 3.15 | E129: 10 | F129: 10 | G129: - | I129: 2029 | J129: 3.626 | K129: 10 | L129: 10 | M129: - | O129: 2029 | P129: 2.1 | Q129: 10 | R129: 10 | S129: - | U129: 2029 | V129: 3.626 | W129: 10 | X129: 10 | Y129: - | AA129: 2029 | AB129: 4.83 | AC129: 10 | AD129: 10 | AE129: - | AG129: 2029 | AH129: 2.1 | AI129: 3 | AJ129: 3 | AK129: -
C130: 2030 | D130: 3.6 | E130: 10 | F130: 10 | G130: - | I130: 2030 | J130: 4.144 | K130: 10 | L130: 10 | M130: - | O130: 2030 | P130: 2.4 | Q130: 10 | R130: 10 | S130: - | U130: 2030 | V130: 4.144 | W130: 10 | X130: 10 | Y130: - | AA130: 2030 | AB130: 5.52 | AC130: 10 | AD130: 10 | AE130: - | AG130: 2030 | AH130: 2.4 | AI130: 3 | AJ130: 3 | AK130: -
C131: 2031 | D131: 4.5 | E131: 10 | F131: 10 | G131: - | I131: 2031 | J131: 5.18 | K131: 10 | L131: 10 | M131: - | O131: 2031 | P131: 3 | Q131: 10 | R131: 10 | S131: - | U131: 2031 | V131: 5.18 | W131: 10 | X131: 10 | Y131: - | AA131: 2031 | AB131: 6.9 | AC131: 10 | AD131: 10 | AE131: - | AG131: 2031 | AH131: 3 | AI131: 3 | AJ131: 3 | AK131: -
C132: Number of doses in schedule | D132: 2 | E132: 2 | F132: 3 | G132: NOTE TO PROGRAMMER: THIS ROW IS NOT IN USE. | I132: Number of doses in schedule | J132: 2 | K132: 2 | L132: 3 | M132: NOTE TO PROGRAMMER: THIS ROW IS NOT IN USE. | O132: Number of doses in schedule | P132: 2 | Q132: 2 | R132: 3 | S132: NOTE TO PROGRAMMER: THIS ROW IS NOT IN USE. | U132: Number of doses in schedule | V132: 2 | W132: 2 | X132: 3 | Y132: NOTE TO PROGRAMMER: THIS ROW IS NOT IN USE. | AA132: Number of doses in schedule | AB132: 2 | AC132: 2 | AD132: 3 | AE132: NOTE TO PROGRAMMER: THIS ROW IS NOT IN USE. | AG132: Number of doses in schedule | AH132: 2 | AI132: 2 | AJ132: 3 | AK132: NOTE TO PROGRAMMER: THIS ROW IS NOT IN USE.
C133: Wastage rate | D133: 0.05 | E133: 0.05 | F133: 0.05 | G133: The following wastage estimates are indicated per Gavi’s HPV Vaccine Profile (May 2021). Cecolin, bivalent: 5% Cervarix, bivalent: 10% Cervarix, bivalent, 10: no estimate reported Gardasil-4, quadrivalent: 5% Gardasil-9, nonavalent: 5% Future vaccine: no estimate reported User can input this value or use local estimates. | I133: Wastage rate | J133: 0.05 | K133: 0.05 | L133: 0.05 | M133: The following wastage estimates are indicated per Gavi’s HPV Vaccine Profile (May 2021). Cecolin, bivalent: 5% Cervarix, bivalent: 10% Cervarix, bivalent, 10: no estimate reported Gardasil-4, quadrivalent: 5% Gardasil-9, nonavalent: 5% Future vaccine: no estimate reported User can input this value or use local estimates. | O133: Wastage rate | P133: 0.05 | Q133: 0.05 | R133: 0.05 | S133: The following wastage estimates are indicated per Gavi’s HPV Vaccine Profile (May 2021). Cecolin, bivalent: 5% Cervarix, bivalent: 10% Cervarix, bivalent, 10: no estimate reported Gardasil-4, quadrivalent: 5% Gardasil-9, nonavalent: 5% Future vaccine: no estimate reported User can input this value or use local estimates. | U133: Wastage rate | V133: 0.05 | W133: 0.05 | X133: 0.05 | Y133: The following wastage estimates are indicated per Gavi’s HPV Vaccine Profile (May 2021). Cecolin, bivalent: 5% Cervarix, bivalent: 10% Cervarix, bivalent, 10: no estimate reported Gardasil-4, quadrivalent: 5% Gardasil-9, nonavalent: 5% Future vaccine: no estimate reported User can input this value or use local estimates. | AA133: Wastage rate | AB133: 0.05 | AC133: 0.05 | AD133: 0.05 | AE133: The following wastage estimates are indicated per Gavi’s HPV Vaccine Profile (May 2021). Cecolin, bivalent: 5% Cervarix, bivalent: 10% Cervarix, bivalent, 10: no estimate reported Gardasil-4, quadrivalent: 5% Gardasil-9, nonavalent: 5% Future vaccine: no estimate reported User can input this value or use local estimates. | AG133: Wastage rate | AH133: 0.05 | AI133: 0.05 | AJ133: 0.05 | AK133: The following wastage estimates are indicated per Gavi’s HPV Vaccine Profile (May 2021). Cecolin, bivalent: 5% Cervarix, bivalent: 10% Cervarix, bivalent, 10: no estimate reported Gardasil-4, quadrivalent: 5% Gardasil-9, nonavalent: 5% Future vaccine: no estimate reported User can input this value or use local estimates.
C134: Wastage factor | D134: =(1/(1-D133)) -> 1.052631579 | E134: =(1/(1-E133)) -> 1.052631579 | F134: =(1/(1-F133)) -> 1.052631579 | G134: https://www.gavi.org/sites/default/files/support/Gavi_HPV_vaccine_profiles.pdf | I134: Wastage factor | J134: =(1/(1-J133)) -> 1.052631579 | K134: =(1/(1-K133)) -> 1.052631579 | L134: =(1/(1-L133)) -> 1.052631579 | M134: https://www.gavi.org/sites/default/files/support/Gavi_HPV_vaccine_profiles.pdf | O134: Wastage factor | P134: =(1/(1-P133)) -> 1.052631579 | Q134: =(1/(1-Q133)) -> 1.052631579 | R134: =(1/(1-R133)) -> 1.052631579 | S134: https://www.gavi.org/sites/default/files/support/Gavi_HPV_vaccine_profiles.pdf | U134: Wastage factor | V134: =(1/(1-V133)) -> 1.052631579 | W134: =(1/(1-W133)) -> 1.052631579 | X134: =(1/(1-X133)) -> 1.052631579 | Y134: https://www.gavi.org/sites/default/files/support/Gavi_HPV_vaccine_profiles.pdf | AA134: Wastage factor | AB134: =(1/(1-AB133)) -> 1.052631579 | AC134: =(1/(1-AC133)) -> 1.052631579 | AD134: =(1/(1-AD133)) -> 1.052631579 | AE134: https://www.gavi.org/sites/default/files/support/Gavi_HPV_vaccine_profiles.pdf | AG134: Wastage factor | AH134: =(1/(1-AH133)) -> 1.052631579 | AI134: =(1/(1-AI133)) -> 1.052631579 | AJ134: =(1/(1-AJ133)) -> 1.052631579 | AK134: https://www.gavi.org/sites/default/files/support/Gavi_HPV_vaccine_profiles.pdf
C135: International handling | D135: 0.03 | G135: as a % of vaccine price; Default: UNICEF % for LDCs is 4%; Default for new vaccines is 3% | I135: International handling | J135: 0.03 | M135: as a % of vaccine price; Default: UNICEF % for LDCs is 4%; Default for new vaccines is 3% | O135: International handling | P135: 0.03 | S135: as a % of vaccine price; Default: UNICEF % for LDCs is 4%; Default for new vaccines is 3% | U135: International handling | V135: 0.03 | Y135: as a % of vaccine price; Default: UNICEF % for LDCs is 4%; Default for new vaccines is 3% | AA135: International handling | AB135: 0.03 | AE135: as a % of vaccine price; Default: UNICEF % for LDCs is 4%; Default for new vaccines is 3% | AG135: International handling | AH135: 0.03 | AK135: as a % of vaccine price; Default: UNICEF % for LDCs is 4%; Default for new vaccines is 3%
C136: International transportation | D136: 0.07 | G136: as a % of vaccine price; Default: example % | I136: International transportation | J136: 0.07 | M136: as a % of vaccine price; Default: UNICEF % for LDCs | O136: International transportation | P136: 0.07 | S136: as a % of vaccine price; Default: UNICEF % for LDCs | U136: International transportation | V136: 0.07 | Y136: as a % of vaccine price; Default: UNICEF % for LDCs | AA136: International transportation | AB136: 0.07 | AE136: as a % of vaccine price; Default: UNICEF % for LDCs | AG136: International transportation | AH136: 0.07 | AK136: as a % of vaccine price; Default: UNICEF % for LDCs
C137: Safety box price | D137: 0.57 | G137: Default: UNICEF mean price (2020) | I137: Safety box price | J137: 0.57 | M137: Default: UNICEF mean price (2020) | O137: Safety box price | P137: 0.57 | S137: Default: UNICEF mean price (2020) | U137: Safety box price | V137: 0.57 | Y137: Default: UNICEF mean price (2020) | AA137: Safety box price | AB137: 0.57 | AE137: Default: UNICEF mean price (2020) | AG137: Safety box price | AH137: 0.57 | AK137: Default: UNICEF mean price (2020)
C138: Safety box volume | D138: 100 | G138: No. of doses per safety box/bag | I138: Safety box volume | J138: 100 | M138: No. of doses per safety box/bag | O138: Safety box volume | P138: 100 | S138: No. of doses per safety box/bag | U138: Safety box volume | V138: 100 | Y138: No. of doses per safety box/bag | AA138: Safety box volume | AB138: 100 | AE138: No. of doses per safety box/bag | AG138: Safety box volume | AH138: 100 | AK138: No. of doses per safety box/bag
C139: Syringe price | D139: 0.04 | G139: Default: UNICEF mean price (2020) | I139: Syringe price | J139: 0.04 | M139: Default: UNICEF mean price (2020) | O139: Syringe price | P139: 0.04 | S139: Default: UNICEF mean price (2020) | U139: Syringe price | V139: 0.04 | Y139: Default: UNICEF mean price (2020) | AA139: Syringe price | AB139: 0.04 | AE139: Default: UNICEF mean price (2020) | AG139: Syringe price | AH139: 0.04 | AK139: Default: UNICEF mean price (2020)
C141: PROGRAM COSTS | O141: PROGRAM COSTS | AA141: PROGRAM COSTS
C143: Introduction costs include start-up costs such as expenditures related to microplanning, initial training, or communication. Typically, this includes expenditures only occurring in the first year to start up the HPV program (may be applicable to single-aged cohort and multi-aged cohort or just the single-aged cohort, depending on program) or switch vaccine products (applicable to single-aged cohort only). For each vaccine being compared, enter the amount budgeted for the one-time introduction costs. The incremental cost of delivery per dose refers to all additional expenditures required to deliver vaccines, other than the one-time introduction costs and the direct cost of vaccines procurement and commodities. These include additional required expenditures related to staff, per diem, travel allowances, cold chain equipment, vehicles, transport and fuel, program management, ongoing training and capacity building, ongoing social mobilization and advocacy, disease surveillance and activities related to adverse events following immunization (AEFI), and waste management. Any system cost already incurred by the immunization system (shared costs) should be excluded. For example the cost of transporting HPV vaccine should not be included if this is part of the same transport used to deliver other vaccines. Only potential additional trips that may be needed should be included. Note that the incremental delivery costs might vary from one product to another based on product presentation, storage requirements, and ease of administration. Importantly, delivery costs differ based on the program approach (school-based, facility-based, outreach). Please enter costs specific to each approach used by the program or enter $0 for any approach not used. Inputs below are included as stylistic examples and should be updated to reflect the local program. You can find data on incremental cost per dose from a range of studies and countries through the Immunization Delivery Cost Catalogue (IDCC). | O143: Introduction costs include start-up costs, such as expenditures related to microplanning, initial training, or communication. Typically, this includes expenditures only occurring in the first year to start up the HPV program (may be applicable to single-aged cohort and multi-aged cohort or just the single-aged cohort, depending on program) or switch vaccine products (applicable to single-aged cohort only). For each vaccine being compared, enter the amount budgeted for the one-time introduction costs. The incremental cost of delivery per dose refers to all additional expenditures required to deliver vaccines, other than the one-time introduction costs and the direct cost of vaccines procurement and commodities. These include additional required expenditures related to staff, per diem, travel allowances, cold chain equipment, vehicles, transport and fuel, program management, ongoing training and capacity building, ongoing social mobilization and advocacy, disease surveillance and activities related to adverse events following immunization (AEFI), and waste management. Any system cost already incurred by the immunization system (shared costs) should be excluded. For example the cost of transporting HPV vaccine should not be included if this is part of the same transport used to deliver other vaccines. Only potential additional trips that may be needed should be included. Note that the incremental delivery costs might vary from one product to another based on product presentation, storage requirements, and ease of administration. Importantly, delivery costs differ based on the program approach (school-based, facility-based, outreach). Please enter costs specific to each approach used by the program or enter $0 for any approach not used. Inputs below are included as stylistic examples and should be updated to reflect the local program. You can find data on incremental cost per dose from a range of studies and countries through the Immunization Delivery Cost Catalogue (IDCC). | AA143: Introduction costs include start-up costs, such as expenditures related to microplanning, initial training, or communication. Typically, this includes expenditures only occurring in the first year to start up the HPV program (may be applicable to single-aged cohort and multi-aged cohort or just the single-aged cohort, depending on program) or switch vaccine products (applicable to single-aged cohort only). For each vaccine being compared, enter the amount budgeted for the one-time introduction costs. The incremental cost of delivery per dose refers to all additional expenditures required to deliver vaccines, other than the one-time introduction costs and the direct cost of vaccines procurement and commodities. These include additional required expenditures related to staff, per diem, travel allowances, cold chain equipment, vehicles, transport and fuel, program management, ongoing training and capacity building, ongoing social mobilization and advocacy, disease surveillance and activities related to adverse events following immunization (AEFI), and waste management. Any system cost already incurred by the immunization system (shared costs) should be excluded. For example the cost of transporting HPV vaccine should not be included if this is part of the same transport used to deliver other vaccines. Only potential additional trips that may be needed should be included. Note that the incremental delivery costs might vary from one product to another based on product presentation, storage requirements, and ease of administration. Importantly, delivery costs differ based on the program approach (school-based, facility-based, outreach). Please enter costs specific to each approach used by the program or enter $0 for any approach not used. Inputs below are included as stylistic examples and should be updated to reflect the local program. You can find data on incremental cost per dose from a range of studies and countries through the Immunization Delivery Cost Catalogue (IDCC).
C145: One-time introduction cost or switch cost for single-aged cohort | D145: 50000 | E145: 50000 | F145: 50000 | G145: Inputs should be updated to reflect local program costs using a lump sum or budget in first year, varied by cohorts, as applicable. If no MAC is used, enter $0 for that value. | I145: One-time introduction or switch for single-aged cohort | J145: 50000 | K145: 50000 | L145: 50000 | M145: Inputs should be updated to reflect local program costs using a lump sum or budget in first year, varied by cohorts, as applicable. If no MAC is used, enter $0 for that value. | O145: One-time introduction or switch for single-aged cohort | P145: 50000 | Q145: 50000 | R145: 50000 | S145: Inputs should be updated to reflect local program costs using a lump sum or budget in first year, varied by cohorts, as applicable. If no MAC is used, enter $0 for that value. | U145: One-time introduction or switch for single-aged cohort | V145: 50000 | W145: 50000 | X145: 50000 | Y145: Inputs should be updated to reflect local program costs using a lump sum or budget in first year, varied by cohorts, as applicable. If no MAC is used, enter $0 for that value. | AA145: One-time introduction or switch for single-aged cohort | AB145: 50000 | AC145: 50000 | AD145: 50000 | AE145: Inputs should be updated to reflect local program costs using a lump sum or budget in first year, varied by cohorts, as applicable. If no MAC is used, enter $0 for that value. | AG145: One-time introduction or switch for single-aged cohort | AH145: 50000 | AI145: 50000 | AJ145: 50000 | AK145: Inputs should be updated to reflect local program costs using a lump sum or budget in first year, varied by cohorts, as applicable. If no MAC is used, enter $0 for that value.
C146: One-time introduction cost for multi-aged cohort | D146: 100000 | E146: N/A | F146: N/A | I146: One-time introduction for multi-aged cohort | J146: 100000 | K146: N/A | L146: N/A | O146: One-time introduction for multi-aged cohort | P146: 100000 | Q146: N/A | R146: N/A | U146: One-time introduction for multi-aged cohort | V146: 100000 | W146: N/A | X146: N/A | AA146: One-time introduction for multi-aged cohort | AB146: 100000 | AC146: N/A | AD146: N/A | AG146: One-time introduction for multi-aged cohort | AH146: 100000 | AI146: N/A | AJ146: N/A
C147: Incremental cost of delivery per dose: school | D147: 1.5 | E147: 1.5 | F147: 1.5 | G147: $ per dose delivered; potential source of data: the immunization delivery cost catalogue linked below, varied by delivery options: school, facility, outreach. Inputs should be updated to reflect local program costs. | I147: Incremental cost of delivery per dose: school | J147: 1.5 | K147: 1.5 | L147: 1.5 | M147: $ per dose delivered; potential source of data: the immunization delivery cost catalogue linked below, varied by delivery options: school, facility, outreach. Inputs should be updated to reflect local program costs. | O147: Incremental cost of delivery per dose: school | P147: 1.5 | Q147: 1.5 | R147: 1.5 | S147: $ per dose delivered; potential source of data: the immunization delivery cost catalogue linked below, varied by delivery options: school, facility, outreach. Inputs should be updated to reflect local program costs. | U147: Incremental cost of delivery per dose: school | V147: 1.5 | W147: 1.5 | X147: 1.5 | Y147: $ per dose delivered; potential source of data: the immunization delivery cost catalogue linked below, varied by delivery options: school, facility, outreach. Inputs should be updated to reflect local program costs. | AA147: Incremental cost of delivery per dose: school | AB147: 1.5 | AC147: 1.5 | AD147: 1.5 | AE147: $ per dose delivered; potential source of data: the immunization delivery cost catalogue linked below, varied by delivery options: school, facility, outreach. Inputs should be updated to reflect local program costs. | AG147: Incremental cost of delivery per dose: school | AH147: 1.5 | AI147: 1.5 | AJ147: 1.5 | AK147: $ per dose delivered; potential source of data: the immunization delivery cost catalogue linked below, varied by delivery options: school, facility, outreach. Inputs should be updated to reflect local program costs.
C148: Incremental cost of delivery per dose: facility | D148: 1.5 | E148: 1.5 | F148: 1.5 | I148: Incremental cost of delivery per dose: facility | J148: 1.5 | K148: 1.5 | L148: 1.5 | O148: Incremental cost of delivery per dose: facility | P148: 1.5 | Q148: 1.5 | R148: 1.5 | U148: Incremental cost of delivery per dose: facility | V148: 1.5 | W148: 1.5 | X148: 1.5 | AA148: Incremental cost of delivery per dose: facility | AB148: 1.5 | AC148: 1.5 | AD148: 1.5 | AG148: Incremental cost of delivery per dose: facility | AH148: 1.5 | AI148: 1.5 | AJ148: 1.5
C149: Incremental cost of delivery per dose: outreach | D149: 1.5 | E149: 1.5 | F149: 1.5 | I149: Incremental cost of delivery per dose: outreach | J149: 1.5 | K149: 1.5 | L149: 1.5 | O149: Incremental cost of delivery per dose: outreach | P149: 1.5 | Q149: 1.5 | R149: 1.5 | U149: Incremental cost of delivery per dose: outreach | V149: 1.5 | W149: 1.5 | X149: 1.5 | AA149: Incremental cost of delivery per dose: outreach | AB149: 1.5 | AC149: 1.5 | AD149: 1.5 | AG149: Incremental cost of delivery per dose: outreach | AH149: 1.5 | AI149: 1.5 | AJ149: 1.5
G150: IDCC | M150: IDCC | S150: IDCC | Y150: IDCC | AE150: IDCC | AK150: IDCC

Sheet Dashboard (hidden)
A1: HPV Vaccine Product Cost Calculator

Sheet Sheet1 (hidden)
A1: STEP 1: IMMUNIZATION PROGRAM
A2: Start year | B2: 2022
A3: Sex | B3: Grils | E3: Boys | H3: Not including women program
A4: Cohort choice | B4: Single-aged cohort | E4: Single-aged cohort | I4: Single-aged cohort: 9 yrs; Multi-aged cohort: 10-14 yrs
A5: Target population | B5: 300000 | E5: 100000 | H5: 0 | I5: children per year
A6: Annual population growth rate | B6: 0.03 | E6: 0.02 | H6: 0 | I6: %
A7: Delivery options | B7: School | C7: Facility | D7: Outreach | E7: School | F7: Facility | G7: Outreach
B8: 0.3 | C8: 0.4 | D8: 0.3 | E8: 0.3 | F8: 0.4 | G8: 0.3 | H8: 0
A9: Expected coverage dose 1 | B9: 0.75 | C9: 0.3 | D9: 0.75 | E9: 0.75 | F9: 0.3 | G9: 0.75 | H9: 0 | I9: annual coverage
A10: Expected coverage dose 2 | B10: 1 | C10: 1 | D10: 1 | E10: 1 | F10: 1 | G10: 1 | H10: 0 | I10: annual coverage
A11: Expected coverage dose 3 | B11: 0 | C11: 0 | D11: 0 | E11: 0 | F11: 0 | G11: 0 | H11: 0 | I11: annual coverage
A15: Cohort choice | B15: Single-aged cohort (first year and follow-on years) | E15: 9 years old | F15: Enter information about age gorup
B16: Multi-aged cohort (first year only) | E16: 10-14 years old
A17: Target population for single-aged cohort or in year one | B17: 100 | C17: --> year 1 * dose 1; year 2*dose2 | D17: --> subsequent years: 100+growth rate *dose 1 | F17: dose 1 at jan 1st; dose 2 6 months
A18: Additional target population for multi-aged cohort in year 1 | B18: 500 | C18: --> year 1*dose 1; year 2*dose 2 | D18: --> subsequent years: 0 | F18: dose 1 at jan 1st; dose 2 following january
A22: Target population for single-aged cohort or in year one | D22: 100 | G22: --> year 1 * dose 1; year 2*dose2 | H22: --> subsequent years: 100+growth rate *dose 1
A23: Additional target population for multi-aged cohort in year 1 | D23: 500 | G23: --> year 1*dose 1; year 2*dose 2 | H23: --> subsequent years: 0
A25: Muti-aged cohort | B25: 2022 | C25: Population coverage rate | D25: 0.9
A26: Age | B26: 9 | C26: 10 | D26: 11 | E26: 12 | F26: 13 | G26: 14
A27: Population | B27: 100 | C27: 100 | D27: 100 | E27: 100 | F27: 100 | G27: 100
A28: Growth rate | B28: 0.3
A29: Year
A30: 1 | B30: =B27*$D$25 -> 90 | C30: 90 | D30: 90 | E30: 90 | F30: 90 | G30: 90
A31: 2 | B31: =B27*(1+B28)*$D$25 -> 117 | C31: =(C27*(1+$B$28)-C30)*$D$25 -> 36 | D31: =(D27*(1+$B$28)-D30)*$D$25 -> 36 | E31: =(E27*(1+$B$28)-E30)*$D$25 -> 36 | F31: =(F27*(1+$B$28)-F30)*$D$25 -> 36 | G31: =(G27*(1+$B$28)-G30)*$D$25 -> 36
A32: 3 | B32: =B31*(1+$B$28)*$D$25 -> 136.89 | C32: =(C27*(1+$B$28)^2-C31-D31)*$D$25 -> 87.3 | D32: =(D27*(1+$B$28)^2-D31-E31)*$D$25 -> 87.3 | E32: =(E27*(1+$B$28)^2-E31-F31)*$D$25 -> 87.3 | F32: =(F27*(1+$B$28)^2-F31-G31)*$D$25 -> 87.3 | G32: =(G27*(1+$B$28)^2-G31-H31)*$D$25 -> 119.7
A33: 4
A34: 5
A35: 6
A36: 7
A37: 8
A38: 9
A39: 10
A40: 11
A41: 12

Sheet HPV results (girls 9-14)
B1: RESULTS Program for Girls 9-14 Years Old | X1: RESULTS Program for Girls 9-14 Years Old
B3: Conditional formatting highlights 10-year cost cells from the least costly (green color) to the most costly (yellow color) option
B5: ='Model inputs'!D$117 -> Cecolin, bivalent | I5: ='Model inputs'!J$117 -> Cecolin, bivalent | P5: ='Model inputs'!P$117 -> Cervarix, bivalent, 10 | X5: ='Model inputs'!V$117 -> Gardasil-4, quadrivalent | AE5: ='Model inputs'!AB$117 -> Gardasil-9, nonavalent | AL5: ='Model inputs'!AH$117 -> Future vaccine to be defined by user (e.g. Zerun, bivalent)
B7: IMMUNIZATION PROGRAM | D7: Helper Calculations (to be hidden) | I7: IMMUNIZATION PROGRAM | K7: Helper Calculations (to be hidden) | P7: IMMUNIZATION PROGRAM | R7: Helper Calculations (to be hidden) | X7: IMMUNIZATION PROGRAM | Z7: Helper Calculations (to be hidden) | AE7: IMMUNIZATION PROGRAM | AG7: Helper Calculations (to be hidden) | AL7: IMMUNIZATION PROGRAM | AN7: Helper Calculations (to be hidden)
B8: Number of doses delivered | D8: Single aged cohort | E8: MAC | I8: Number of doses delivered | K8: Single aged cohort | L8: MAC | P8: Number of doses delivered | R8: Single aged cohort | S8: MAC | X8: Number of doses delivered | Z8: Single aged cohort | AA8: MAC | AE8: Number of doses delivered | AG8: Single aged cohort | AH8: MAC | AL8: Number of doses delivered | AN8: Single aged cohort | AO8: MAC
B9: Total for 10 years | C9: =SUM(C10:C19) -> 1883750 | D9: =SUM(D10:D19) -> 1368750 | E9: =SUM(E10:E19) -> 515000 | I9: Total for 10 years | J9: =SUM(J10:J19) -> 1883750 | K9: =SUM(K10:K19) -> 1368750 | L9: =SUM(L10:L19) -> 515000 | P9: Total for 10 years | Q9: =SUM(Q10:Q19) -> 1883750 | R9: =SUM(R10:R19) -> 1368750 | S9: =SUM(S10:S19) -> 515000 | X9: Total for 10 years | Y9: =SUM(Y10:Y19) -> 1883750 | Z9: =SUM(Z10:Z19) -> 1368750 | AA9: =SUM(AA10:AA19) -> 515000 | AE9: Total for 10 years | AF9: =SUM(AF10:AF19) -> 1883750 | AG9: =SUM(AG10:AG19) -> 1368750 | AH9: =SUM(AH10:AH19) -> 515000 | AL9: Total for 10 years | AM9: =SUM(AM10:AM19) -> 1883750 | AN9: =SUM(AN10:AN19) -> 1368750 | AO9: =SUM(AO10:AO19) -> 515000
B10: ='Model inputs'!$C27 -> 2022 | C10: =SUM(D10:E10) -> 651875 | D10: ='Model inputs'!$F27*('Model inputs'!$E$38*('Model inputs'!$E$39+'Model inputs'!$E$39*'Model inputs'!$E$40+'Model inputs'!$E$39*'Model inputs'!$E$40*'Model inputs'!$E$41)+'Model inputs'!$F$38*('Model inputs'!$F$39+'Model inputs'!$F$39*'Model inputs'!$F$40+'Model inputs'!$F$39*'Model inputs'!$F$40*'Model inputs'!$F$41)+'Model inputs'!$G$38*('Model inputs'!$G$39+'Model inputs'!$G$39*'Model inputs'!$G$40+'Model inputs'!$G$39*'Model inputs'!$G$40*'Model inputs'!$G$41)) -> 136875 | E10: ='Model inputs'!$H27*('Model inputs'!$H$38*('Model inputs'!$H$39+'Model inputs'!$H$39*'Model inputs'!$H$40+'Model inputs'!$H$39*'Model inputs'!$H$40*'Model inputs'!$H$41)+'Model inputs'!$I$38*('Model inputs'!$I$39+'Model inputs'!$I$39*'Model inputs'!$I$40+'Model inputs'!$I$39*'Model inputs'!$I$40*'Model inputs'!$I$41)+'Model inputs'!$J$38*('Model inputs'!$J$39+'Model inputs'!$J$39*'Model inputs'!$J$40+'Model inputs'!$J$39*'Model inputs'!$J$40*'Model inputs'!$J$41)) -> 515000 | I10: ='Model inputs'!$C27 -> 2022 | J10: =SUM(K10:L10) -> 651875 | K10: ='Model inputs'!$F27*('Model inputs'!$E$38*('Model inputs'!$E$39+'Model inputs'!$E$39*'Model inputs'!$E$40+'Model inputs'!$E$39*'Model inputs'!$E$40*'Model inputs'!$E$41)+'Model inputs'!$F$38*('Model inputs'!$F$39+'Model inputs'!$F$39*'Model inputs'!$F$40+'Model inputs'!$F$39*'Model inputs'!$F$40*'Model inputs'!$F$41)+'Model inputs'!$G$38*('Model inputs'!$G$39+'Model inputs'!$G$39*'Model inputs'!$G$40+'Model inputs'!$G$39*'Model inputs'!$G$40*'Model inputs'!$G$41)) -> 136875 | L10: ='Model inputs'!$H27*('Model inputs'!$H$38*('Model inputs'!$H$39+'Model inputs'!$H$39*'Model inputs'!$H$40+'Model inputs'!$H$39*'Model inputs'!$H$40*'Model inputs'!$H$41)+'Model inputs'!$I$38*('Model inputs'!$I$39+'Model inputs'!$I$39*'Model inputs'!$I$40+'Model inputs'!$I$39*'Model inputs'!$I$40*'Model inputs'!$I$41)+'Model inputs'!$J$38*('Model inputs'!$J$39+'Model inputs'!$J$39*'Model inputs'!$J$40+'Model inputs'!$J$39*'Model inputs'!$J$40*'Model inputs'!$J$41)) -> 515000 | P10: ='Model inputs'!$C27 -> 2022 | Q10: =SUM(R10:S10) -> 651875 | R10: ='Model inputs'!$F27*('Model inputs'!$E$38*('Model inputs'!$E$39+'Model inputs'!$E$39*'Model inputs'!$E$40+'Model inputs'!$E$39*'Model inputs'!$E$40*'Model inputs'!$E$41)+'Model inputs'!$F$38*('Model inputs'!$F$39+'Model inputs'!$F$39*'Model inputs'!$F$40+'Model inputs'!$F$39*'Model inputs'!$F$40*'Model inputs'!$F$41)+'Model inputs'!$G$38*('Model inputs'!$G$39+'Model inputs'!$G$39*'Model inputs'!$G$40+'Model inputs'!$G$39*'Model inputs'!$G$40*'Model inputs'!$G$41)) -> 136875 | S10: ='Model inputs'!$H27*('Model inputs'!$H$38*('Model inputs'!$H$39+'Model inputs'!$H$39*'Model inputs'!$H$40+'Model inputs'!$H$39*'Model inputs'!$H$40*'Model inputs'!$H$41)+'Model inputs'!$I$38*('Model inputs'!$I$39+'Model inputs'!$I$39*'Model inputs'!$I$40+'Model inputs'!$I$39*'Model inputs'!$I$40*'Model inputs'!$I$41)+'Model inputs'!$J$38*('Model inputs'!$J$39+'Model inputs'!$J$39*'Model inputs'!$J$40+'Model inputs'!$J$39*'Model inputs'!$J$40*'Model inputs'!$J$41)) -> 515000 | X10: ='Model inputs'!$C27 -> 2022 | Y10: =SUM(Z10:AA10) -> 651875 | Z10: ='Model inputs'!$F27*('Model inputs'!$E$38*('Model inputs'!$E$39+'Model inputs'!$E$39*'Model inputs'!$E$40+'Model inputs'!$E$39*'Model inputs'!$E$40*'Model inputs'!$E$41)+'Model inputs'!$F$38*('Model inputs'!$F$39+'Model inputs'!$F$39*'Model inputs'!$F$40+'Model inputs'!$F$39*'Model inputs'!$F$40*'Model inputs'!$F$41)+'Model inputs'!$G$38*('Model inputs'!$G$39+'Model inputs'!$G$39*'Model inputs'!$G$40+'Model inputs'!$G$39*'Model inputs'!$G$40*'Model inputs'!$G$41)) -> 136875 | AA10: ='Model inputs'!$H27*('Model inputs'!$H$38*('Model inputs'!$H$39+'Model inputs'!$H$39*'Model inputs'!$H$40+'Model inputs'!$H$39*'Model inputs'!$H$40*'Model inputs'!$H$41)+'Model inputs'!$I$38*('Model inputs'!$I$39+'Model inputs'!$I$39*'Model inputs'!$I$40+'Model inputs'!$I$39*'Model inputs'!$I$40*'Model inputs'!$I$41)+'Model inputs'!$J$38*('Model inputs'!$J$39+'Model inputs'!$J$39*'Model inputs'!$J$40+'Model inputs'!$J$39*'Model inputs'!$J$40*'Model inputs'!$J$41)) -> 515000 | AE10: ='Model inputs'!$C27 -> 2022 | AF10: =SUM(AG10:AH10) -> 651875 | AG10: ='Model inputs'!$F27*('Model inputs'!$E$38*('Model inputs'!$E$39+'Model inputs'!$E$39*'Model inputs'!$E$40+'Model inputs'!$E$39*'Model inputs'!$E$40*'Model inputs'!$E$41)+'Model inputs'!$F$38*('Model inputs'!$F$39+'Model inputs'!$F$39*'Model inputs'!$F$40+'Model inputs'!$F$39*'Model inputs'!$F$40*'Model inputs'!$F$41)+'Model inputs'!$G$38*('Model inputs'!$G$39+'Model inputs'!$G$39*'Model inputs'!$G$40+'Model inputs'!$G$39*'Model inputs'!$G$40*'Model inputs'!$G$41)) -> 136875 | AH10: ='Model inputs'!$H27*('Model inputs'!$H$38*('Model inputs'!$H$39+'Model inputs'!$H$39*'Model inputs'!$H$40+'Model inputs'!$H$39*'Model inputs'!$H$40*'Model inputs'!$H$41)+'Model inputs'!$I$38*('Model inputs'!$I$39+'Model inputs'!$I$39*'Model inputs'!$I$40+'Model inputs'!$I$39*'Model inputs'!$I$40*'Model inputs'!$I$41)+'Model inputs'!$J$38*('Model inputs'!$J$39+'Model inputs'!$J$39*'Model inputs'!$J$40+'Model inputs'!$J$39*'Model inputs'!$J$40*'Model inputs'!$J$41)) -> 515000 | AL10: ='Model inputs'!$C27 -> 2022 | AM10: =SUM(AN10:AO10) -> 651875 | AN10: ='Model inputs'!$F27*('Model inputs'!$E$38*('Model inputs'!$E$39+'Model inputs'!$E$39*'Model inputs'!$E$40+'Model inputs'!$E$39*'Model inputs'!$E$40*'Model inputs'!$E$41)+'Model inputs'!$F$38*('Model inputs'!$F$39+'Model inputs'!$F$39*'Model inputs'!$F$40+'Model inputs'!$F$39*'Model inputs'!$F$40*'Model inputs'!$F$41)+'Model inputs'!$G$38*('Model inputs'!$G$39+'Model inputs'!$G$39*'Model inputs'!$G$40+'Model inputs'!$G$39*'Model inputs'!$G$40*'Model inputs'!$G$41)) -> 136875 | AO10: ='Model inputs'!$H27*('Model inputs'!$H$38*('Model inputs'!$H$39+'Model inputs'!$H$39*'Model inputs'!$H$40+'Model inputs'!$H$39*'Model inputs'!$H$40*'Model inputs'!$H$41)+'Model inputs'!$I$38*('Model inputs'!$I$39+'Model inputs'!$I$39*'Model inputs'!$I$40+'Model inputs'!$I$39*'Model inputs'!$I$40*'Model inputs'!$I$41)+'Model inputs'!$J$38*('Model inputs'!$J$39+'Model inputs'!$J$39*'Model inputs'!$J$40+'Model inputs'!$J$39*'Model inputs'!$J$40*'Model inputs'!$J$41)) -> 515000
B11: ='Model inputs'!$C28 -> 2023 | C11: =SUM(D11:E11) -> 136875 | D11: ='Model inputs'!$F28*('Model inputs'!$E$38*('Model inputs'!$E$39+'Model inputs'!$E$39*'Model inputs'!$E$40+'Model inputs'!$E$39*'Model inputs'!$E$40*'Model inputs'!$E$41)+'Model inputs'!$F$38*('Model inputs'!$F$39+'Model inputs'!$F$39*'Model inputs'!$F$40+'Model inputs'!$F$39*'Model inputs'!$F$40*'Model inputs'!$F$41)+'Model inputs'!$G$38*('Model inputs'!$G$39+'Model inputs'!$G$39*'Model inputs'!$G$40+'Model inputs'!$G$39*'Model inputs'!$G$40*'Model inputs'!$G$41)) -> 136875 | E11: ='Model inputs'!$H28*('Model inputs'!$H$38*('Model inputs'!$H$39+'Model inputs'!$H$39*'Model inputs'!$H$40+'Model inputs'!$H$39*'Model inputs'!$H$40*'Model inputs'!$H$41)+'Model inputs'!$I$38*('Model inputs'!$I$39+'Model inputs'!$I$39*'Model inputs'!$I$40+'Model inputs'!$I$39*'Model inputs'!$I$40*'Model inputs'!$I$41)+'Model inputs'!$J$38*('Model inputs'!$J$39+'Model inputs'!$J$39*'Model inputs'!$J$40+'Model inputs'!$J$39*'Model inputs'!$J$40*'Model inputs'!$J$41)) -> 0 | I11: ='Model inputs'!$C28 -> 2023 | J11: =SUM(K11:L11) -> 136875 | K11: ='Model inputs'!$F28*('Model inputs'!$E$38*('Model inputs'!$E$39+'Model inputs'!$E$39*'Model inputs'!$E$40+'Model inputs'!$E$39*'Model inputs'!$E$40*'Model inputs'!$E$41)+'Model inputs'!$F$38*('Model inputs'!$F$39+'Model inputs'!$F$39*'Model inputs'!$F$40+'Model inputs'!$F$39*'Model inputs'!$F$40*'Model inputs'!$F$41)+'Model inputs'!$G$38*('Model inputs'!$G$39+'Model inputs'!$G$39*'Model inputs'!$G$40+'Model inputs'!$G$39*'Model inputs'!$G$40*'Model inputs'!$G$41)) -> 136875 | L11: ='Model inputs'!$H28*('Model inputs'!$H$38*('Model inputs'!$H$39+'Model inputs'!$H$39*'Model inputs'!$H$40+'Model inputs'!$H$39*'Model inputs'!$H$40*'Model inputs'!$H$41)+'Model inputs'!$I$38*('Model inputs'!$I$39+'Model inputs'!$I$39*'Model inputs'!$I$40+'Model inputs'!$I$39*'Model inputs'!$I$40*'Model inputs'!$I$41)+'Model inputs'!$J$38*('Model inputs'!$J$39+'Model inputs'!$J$39*'Model inputs'!$J$40+'Model inputs'!$J$39*'Model inputs'!$J$40*'Model inputs'!$J$41)) -> 0 | P11: ='Model inputs'!$C28 -> 2023 | Q11: =SUM(R11:S11) -> 136875 | R11: ='Model inputs'!$F28*('Model inputs'!$E$38*('Model inputs'!$E$39+'Model inputs'!$E$39*'Model inputs'!$E$40+'Model inputs'!$E$39*'Model inputs'!$E$40*'Model inputs'!$E$41)+'Model inputs'!$F$38*('Model inputs'!$F$39+'Model inputs'!$F$39*'Model inputs'!$F$40+'Model inputs'!$F$39*'Model inputs'!$F$40*'Model inputs'!$F$41)+'Model inputs'!$G$38*('Model inputs'!$G$39+'Model inputs'!$G$39*'Model inputs'!$G$40+'Model inputs'!$G$39*'Model inputs'!$G$40*'Model inputs'!$G$41)) -> 136875 | S11: ='Model inputs'!$H28*('Model inputs'!$H$38*('Model inputs'!$H$39+'Model inputs'!$H$39*'Model inputs'!$H$40+'Model inputs'!$H$39*'Model inputs'!$H$40*'Model inputs'!$H$41)+'Model inputs'!$I$38*('Model inputs'!$I$39+'Model inputs'!$I$39*'Model inputs'!$I$40+'Model inputs'!$I$39*'Model inputs'!$I$40*'Model inputs'!$I$41)+'Model inputs'!$J$38*('Model inputs'!$J$39+'Model inputs'!$J$39*'Model inputs'!$J$40+'Model inputs'!$J$39*'Model inputs'!$J$40*'Model inputs'!$J$41)) -> 0 | X11: ='Model inputs'!$C28 -> 2023 | Y11: =SUM(Z11:AA11) -> 136875 | Z11: ='Model inputs'!$F28*('Model inputs'!$E$38*('Model inputs'!$E$39+'Model inputs'!$E$39*'Model inputs'!$E$40+'Model inputs'!$E$39*'Model inputs'!$E$40*'Model inputs'!$E$41)+'Model inputs'!$F$38*('Model inputs'!$F$39+'Model inputs'!$F$39*'Model inputs'!$F$40+'Model inputs'!$F$39*'Model inputs'!$F$40*'Model inputs'!$F$41)+'Model inputs'!$G$38*('Model inputs'!$G$39+'Model inputs'!$G$39*'Model inputs'!$G$40+'Model inputs'!$G$39*'Model inputs'!$G$40*'Model inputs'!$G$41)) -> 136875 | AA11: ='Model inputs'!$H28*('Model inputs'!$H$38*('Model inputs'!$H$39+'Model inputs'!$H$39*'Model inputs'!$H$40+'Model inputs'!$H$39*'Model inputs'!$H$40*'Model inputs'!$H$41)+'Model inputs'!$I$38*('Model inputs'!$I$39+'Model inputs'!$I$39*'Model inputs'!$I$40+'Model inputs'!$I$39*'Model inputs'!$I$40*'Model inputs'!$I$41)+'Model inputs'!$J$38*('Model inputs'!$J$39+'Model inputs'!$J$39*'Model inputs'!$J$40+'Model inputs'!$J$39*'Model inputs'!$J$40*'Model inputs'!$J$41)) -> 0 | AE11: ='Model inputs'!$C28 -> 2023 | AF11: =SUM(AG11:AH11) -> 136875 | AG11: ='Model inputs'!$F28*('Model inputs'!$E$38*('Model inputs'!$E$39+'Model inputs'!$E$39*'Model inputs'!$E$40+'Model inputs'!$E$39*'Model inputs'!$E$40*'Model inputs'!$E$41)+'Model inputs'!$F$38*('Model inputs'!$F$39+'Model inputs'!$F$39*'Model inputs'!$F$40+'Model inputs'!$F$39*'Model inputs'!$F$40*'Model inputs'!$F$41)+'Model inputs'!$G$38*('Model inputs'!$G$39+'Model inputs'!$G$39*'Model inputs'!$G$40+'Model inputs'!$G$39*'Model inputs'!$G$40*'Model inputs'!$G$41)) -> 136875 | AH11: ='Model inputs'!$H28*('Model inputs'!$H$38*('Model inputs'!$H$39+'Model inputs'!$H$39*'Model inputs'!$H$40+'Model inputs'!$H$39*'Model inputs'!$H$40*'Model inputs'!$H$41)+'Model inputs'!$I$38*('Model inputs'!$I$39+'Model inputs'!$I$39*'Model inputs'!$I$40+'Model inputs'!$I$39*'Model inputs'!$I$40*'Model inputs'!$I$41)+'Model inputs'!$J$38*('Model inputs'!$J$39+'Model inputs'!$J$39*'Model inputs'!$J$40+'Model inputs'!$J$39*'Model inputs'!$J$40*'Model inputs'!$J$41)) -> 0 | AL11: ='Model inputs'!$C28 -> 2023 | AM11: =SUM(AN11:AO11) -> 136875 | AN11: ='Model inputs'!$F28*('Model inputs'!$E$38*('Model inputs'!$E$39+'Model inputs'!$E$39*'Model inputs'!$E$40+'Model inputs'!$E$39*'Model inputs'!$E$40*'Model inputs'!$E$41)+'Model inputs'!$F$38*('Model inputs'!$F$39+'Model inputs'!$F$39*'Model inputs'!$F$40+'Model inputs'!$F$39*'Model inputs'!$F$40*'Model inputs'!$F$41)+'Model inputs'!$G$38*('Model inputs'!$G$39+'Model inputs'!$G$39*'Model inputs'!$G$40+'Model inputs'!$G$39*'Model inputs'!$G$40*'Model inputs'!$G$41)) -> 136875 | AO11: ='Model inputs'!$H28*('Model inputs'!$H$38*('Model inputs'!$H$39+'Model inputs'!$H$39*'Model inputs'!$H$40+'Model inputs'!$H$39*'Model inputs'!$H$40*'Model inputs'!$H$41)+'Model inputs'!$I$38*('Model inputs'!$I$39+'Model inputs'!$I$39*'Model inputs'!$I$40+'Model inputs'!$I$39*'Model inputs'!$I$40*'Model inputs'!$I$41)+'Model inputs'!$J$38*('Model inputs'!$J$39+'Model inputs'!$J$39*'Model inputs'!$J$40+'Model inputs'!$J$39*'Model inputs'!$J$40*'Model inputs'!$J$41)) -> 0
B12: ='Model inputs'!$C29 -> 2024 | C12: 136875 | D12: ='Model inputs'!$F29*('Model inputs'!$E$38*('Model inputs'!$E$39+'Model inputs'!$E$39*'Model inputs'!$E$40+'Model inputs'!$E$39*'Model inputs'!$E$40*'Model inputs'!$E$41)+'Model inputs'!$F$38*('Model inputs'!$F$39+'Model inputs'!$F$39*'Model inputs'!$F$40+'Model inputs'!$F$39*'Model inputs'!$F$40*'Model inputs'!$F$41)+'Model inputs'!$G$38*('Model inputs'!$G$39+'Model inputs'!$G$39*'Model inputs'!$G$40+'Model inputs'!$G$39*'Model inputs'!$G$40*'Model inputs'!$G$41)) -> 136875 | E12: ='Model inputs'!$H29*('Model inputs'!$H$38*('Model inputs'!$H$39+'Model inputs'!$H$39*'Model inputs'!$H$40+'Model inputs'!$H$39*'Model inputs'!$H$40*'Model inputs'!$H$41)+'Model inputs'!$I$38*('Model inputs'!$I$39+'Model inputs'!$I$39*'Model inputs'!$I$40+'Model inputs'!$I$39*'Model inputs'!$I$40*'Model inputs'!$I$41)+'Model inputs'!$J$38*('Model inputs'!$J$39+'Model inputs'!$J$39*'Model inputs'!$J$40+'Model inputs'!$J$39*'Model inputs'!$J$40*'Model inputs'!$J$41)) -> 0 | I12: ='Model inputs'!$C29 -> 2024 | J12: 136875 | K12: ='Model inputs'!$F29*('Model inputs'!$E$38*('Model inputs'!$E$39+'Model inputs'!$E$39*'Model inputs'!$E$40+'Model inputs'!$E$39*'Model inputs'!$E$40*'Model inputs'!$E$41)+'Model inputs'!$F$38*('Model inputs'!$F$39+'Model inputs'!$F$39*'Model inputs'!$F$40+'Model inputs'!$F$39*'Model inputs'!$F$40*'Model inputs'!$F$41)+'Model inputs'!$G$38*('Model inputs'!$G$39+'Model inputs'!$G$39*'Model inputs'!$G$40+'Model inputs'!$G$39*'Model inputs'!$G$40*'Model inputs'!$G$41)) -> 136875 | L12: ='Model inputs'!$H29*('Model inputs'!$H$38*('Model inputs'!$H$39+'Model inputs'!$H$39*'Model inputs'!$H$40+'Model inputs'!$H$39*'Model inputs'!$H$40*'Model inputs'!$H$41)+'Model inputs'!$I$38*('Model inputs'!$I$39+'Model inputs'!$I$39*'Model inputs'!$I$40+'Model inputs'!$I$39*'Model inputs'!$I$40*'Model inputs'!$I$41)+'Model inputs'!$J$38*('Model inputs'!$J$39+'Model inputs'!$J$39*'Model inputs'!$J$40+'Model inputs'!$J$39*'Model inputs'!$J$40*'Model inputs'!$J$41)) -> 0 | P12: ='Model inputs'!$C29 -> 2024 | Q12: 136875 | R12: ='Model inputs'!$F29*('Model inputs'!$E$38*('Model inputs'!$E$39+'Model inputs'!$E$39*'Model inputs'!$E$40+'Model inputs'!$E$39*'Model inputs'!$E$40*'Model inputs'!$E$41)+'Model inputs'!$F$38*('Model inputs'!$F$39+'Model inputs'!$F$39*'Model inputs'!$F$40+'Model inputs'!$F$39*'Model inputs'!$F$40*'Model inputs'!$F$41)+'Model inputs'!$G$38*('Model inputs'!$G$39+'Model inputs'!$G$39*'Model inputs'!$G$40+'Model inputs'!$G$39*'Model inputs'!$G$40*'Model inputs'!$G$41)) -> 136875 | S12: ='Model inputs'!$H29*('Model inputs'!$H$38*('Model inputs'!$H$39+'Model inputs'!$H$39*'Model inputs'!$H$40+'Model inputs'!$H$39*'Model inputs'!$H$40*'Model inputs'!$H$41)+'Model inputs'!$I$38*('Model inputs'!$I$39+'Model inputs'!$I$39*'Model inputs'!$I$40+'Model inputs'!$I$39*'Model inputs'!$I$40*'Model inputs'!$I$41)+'Model inputs'!$J$38*('Model inputs'!$J$39+'Model inputs'!$J$39*'Model inputs'!$J$40+'Model inputs'!$J$39*'Model inputs'!$J$40*'Model inputs'!$J$41)) -> 0 | X12: ='Model inputs'!$C29 -> 2024 | Y12: 136875 | Z12: ='Model inputs'!$F29*('Model inputs'!$E$38*('Model inputs'!$E$39+'Model inputs'!$E$39*'Model inputs'!$E$40+'Model inputs'!$E$39*'Model inputs'!$E$40*'Model inputs'!$E$41)+'Model inputs'!$F$38*('Model inputs'!$F$39+'Model inputs'!$F$39*'Model inputs'!$F$40+'Model inputs'!$F$39*'Model inputs'!$F$40*'Model inputs'!$F$41)+'Model inputs'!$G$38*('Model inputs'!$G$39+'Model inputs'!$G$39*'Model inputs'!$G$40+'Model inputs'!$G$39*'Model inputs'!$G$40*'Model inputs'!$G$41)) -> 136875 | AA12: ='Model inputs'!$H29*('Model inputs'!$H$38*('Model inputs'!$H$39+'Model inputs'!$H$39*'Model inputs'!$H$40+'Model inputs'!$H$39*'Model inputs'!$H$40*'Model inputs'!$H$41)+'Model inputs'!$I$38*('Model inputs'!$I$39+'Model inputs'!$I$39*'Model inputs'!$I$40+'Model inputs'!$I$39*'Model inputs'!$I$40*'Model inputs'!$I$41)+'Model inputs'!$J$38*('Model inputs'!$J$39+'Model inputs'!$J$39*'Model inputs'!$J$40+'Model inputs'!$J$39*'Model inputs'!$J$40*'Model inputs'!$J$41)) -> 0 | AE12: ='Model inputs'!$C29 -> 2024 | AF12: 136875 | AG12: ='Model inputs'!$F29*('Model inputs'!$E$38*('Model inputs'!$E$39+'Model inputs'!$E$39*'Model inputs'!$E$40+'Model inputs'!$E$39*'Model inputs'!$E$40*'Model inputs'!$E$41)+'Model inputs'!$F$38*('Model inputs'!$F$39+'Model inputs'!$F$39*'Model inputs'!$F$40+'Model inputs'!$F$39*'Model inputs'!$F$40*'Model inputs'!$F$41)+'Model inputs'!$G$38*('Model inputs'!$G$39+'Model inputs'!$G$39*'Model inputs'!$G$40+'Model inputs'!$G$39*'Model inputs'!$G$40*'Model inputs'!$G$41)) -> 136875 | AH12: ='Model inputs'!$H29*('Model inputs'!$H$38*('Model inputs'!$H$39+'Model inputs'!$H$39*'Model inputs'!$H$40+'Model inputs'!$H$39*'Model inputs'!$H$40*'Model inputs'!$H$41)+'Model inputs'!$I$38*('Model inputs'!$I$39+'Model inputs'!$I$39*'Model inputs'!$I$40+'Model inputs'!$I$39*'Model inputs'!$I$40*'Model inputs'!$I$41)+'Model inputs'!$J$38*('Model inputs'!$J$39+'Model inputs'!$J$39*'Model inputs'!$J$40+'Model inputs'!$J$39*'Model inputs'!$J$40*'Model inputs'!$J$41)) -> 0 | AL12: ='Model inputs'!$C29 -> 2024 | AM12: 136875 | AN12: ='Model inputs'!$F29*('Model inputs'!$E$38*('Model inputs'!$E$39+'Model inputs'!$E$39*'Model inputs'!$E$40+'Model inputs'!$E$39*'Model inputs'!$E$40*'Model inputs'!$E$41)+'Model inputs'!$F$38*('Model inputs'!$F$39+'Model inputs'!$F$39*'Model inputs'!$F$40+'Model inputs'!$F$39*'Model inputs'!$F$40*'Model inputs'!$F$41)+'Model inputs'!$G$38*('Model inputs'!$G$39+'Model inputs'!$G$39*'Model inputs'!$G$40+'Model inputs'!$G$39*'Model inputs'!$G$40*'Model inputs'!$G$41)) -> 136875 | AO12: ='Model inputs'!$H29*('Model inputs'!$H$38*('Model inputs'!$H$39+'Model inputs'!$H$39*'Model inputs'!$H$40+'Model inputs'!$H$39*'Model inputs'!$H$40*'Model inputs'!$H$41)+'Model inputs'!$I$38*('Model inputs'!$I$39+'Model inputs'!$I$39*'Model inputs'!$I$40+'Model inputs'!$I$39*'Model inputs'!$I$40*'Model inputs'!$I$41)+'Model inputs'!$J$38*('Model inputs'!$J$39+'Model inputs'!$J$39*'Model inputs'!$J$40+'Model inputs'!$J$39*'Model inputs'!$J$40*'Model inputs'!$J$41)) -> 0
B13: ='Model inputs'!$C30 -> 2025 | C13: 136875 | D13: ='Model inputs'!$F30*('Model inputs'!$E$38*('Model inputs'!$E$39+'Model inputs'!$E$39*'Model inputs'!$E$40+'Model inputs'!$E$39*'Model inputs'!$E$40*'Model inputs'!$E$41)+'Model inputs'!$F$38*('Model inputs'!$F$39+'Model inputs'!$F$39*'Model inputs'!$F$40+'Model inputs'!$F$39*'Model inputs'!$F$40*'Model inputs'!$F$41)+'Model inputs'!$G$38*('Model inputs'!$G$39+'Model inputs'!$G$39*'Model inputs'!$G$40+'Model inputs'!$G$39*'Model inputs'!$G$40*'Model inputs'!$G$41)) -> 136875 | E13: ='Model inputs'!$H30*('Model inputs'!$H$38*('Model inputs'!$H$39+'Model inputs'!$H$39*'Model inputs'!$H$40+'Model inputs'!$H$39*'Model inputs'!$H$40*'Model inputs'!$H$41)+'Model inputs'!$I$38*('Model inputs'!$I$39+'Model inputs'!$I$39*'Model inputs'!$I$40+'Model inputs'!$I$39*'Model inputs'!$I$40*'Model inputs'!$I$41)+'Model inputs'!$J$38*('Model inputs'!$J$39+'Model inputs'!$J$39*'Model inputs'!$J$40+'Model inputs'!$J$39*'Model inputs'!$J$40*'Model inputs'!$J$41)) -> 0 | I13: ='Model inputs'!$C30 -> 2025 | J13: 136875 | K13: ='Model inputs'!$F30*('Model inputs'!$E$38*('Model inputs'!$E$39+'Model inputs'!$E$39*'Model inputs'!$E$40+'Model inputs'!$E$39*'Model inputs'!$E$40*'Model inputs'!$E$41)+'Model inputs'!$F$38*('Model inputs'!$F$39+'Model inputs'!$F$39*'Model inputs'!$F$40+'Model inputs'!$F$39*'Model inputs'!$F$40*'Model inputs'!$F$41)+'Model inputs'!$G$38*('Model inputs'!$G$39+'Model inputs'!$G$39*'Model inputs'!$G$40+'Model inputs'!$G$39*'Model inputs'!$G$40*'Model inputs'!$G$41)) -> 136875 | L13: ='Model inputs'!$H30*('Model inputs'!$H$38*('Model inputs'!$H$39+'Model inputs'!$H$39*'Model inputs'!$H$40+'Model inputs'!$H$39*'Model inputs'!$H$40*'Model inputs'!$H$41)+'Model inputs'!$I$38*('Model inputs'!$I$39+'Model inputs'!$I$39*'Model inputs'!$I$40+'Model inputs'!$I$39*'Model inputs'!$I$40*'Model inputs'!$I$41)+'Model inputs'!$J$38*('Model inputs'!$J$39+'Model inputs'!$J$39*'Model inputs'!$J$40+'Model inputs'!$J$39*'Model inputs'!$J$40*'Model inputs'!$J$41)) -> 0 | P13: ='Model inputs'!$C30 -> 2025 | Q13: 136875 | R13: ='Model inputs'!$F30*('Model inputs'!$E$38*('Model inputs'!$E$39+'Model inputs'!$E$39*'Model inputs'!$E$40+'Model inputs'!$E$39*'Model inputs'!$E$40*'Model inputs'!$E$41)+'Model inputs'!$F$38*('Model inputs'!$F$39+'Model inputs'!$F$39*'Model inputs'!$F$40+'Model inputs'!$F$39*'Model inputs'!$F$40*'Model inputs'!$F$41)+'Model inputs'!$G$38*('Model inputs'!$G$39+'Model inputs'!$G$39*'Model inputs'!$G$40+'Model inputs'!$G$39*'Model inputs'!$G$40*'Model inputs'!$G$41)) -> 136875 | S13: ='Model inputs'!$H30*('Model inputs'!$H$38*('Model inputs'!$H$39+'Model inputs'!$H$39*'Model inputs'!$H$40+'Model inputs'!$H$39*'Model inputs'!$H$40*'Model inputs'!$H$41)+'Model inputs'!$I$38*('Model inputs'!$I$39+'Model inputs'!$I$39*'Model inputs'!$I$40+'Model inputs'!$I$39*'Model inputs'!$I$40*'Model inputs'!$I$41)+'Model inputs'!$J$38*('Model inputs'!$J$39+'Model inputs'!$J$39*'Model inputs'!$J$40+'Model inputs'!$J$39*'Model inputs'!$J$40*'Model inputs'!$J$41)) -> 0 | X13: ='Model inputs'!$C30 -> 2025 | Y13: 136875 | Z13: ='Model inputs'!$F30*('Model inputs'!$E$38*('Model inputs'!$E$39+'Model inputs'!$E$39*'Model inputs'!$E$40+'Model inputs'!$E$39*'Model inputs'!$E$40*'Model inputs'!$E$41)+'Model inputs'!$F$38*('Model inputs'!$F$39+'Model inputs'!$F$39*'Model inputs'!$F$40+'Model inputs'!$F$39*'Model inputs'!$F$40*'Model inputs'!$F$41)+'Model inputs'!$G$38*('Model inputs'!$G$39+'Model inputs'!$G$39*'Model inputs'!$G$40+'Model inputs'!$G$39*'Model inputs'!$G$40*'Model inputs'!$G$41)) -> 136875 | AA13: ='Model inputs'!$H30*('Model inputs'!$H$38*('Model inputs'!$H$39+'Model inputs'!$H$39*'Model inputs'!$H$40+'Model inputs'!$H$39*'Model inputs'!$H$40*'Model inputs'!$H$41)+'Model inputs'!$I$38*('Model inputs'!$I$39+'Model inputs'!$I$39*'Model inputs'!$I$40+'Model inputs'!$I$39*'Model inputs'!$I$40*'Model inputs'!$I$41)+'Model inputs'!$J$38*('Model inputs'!$J$39+'Model inputs'!$J$39*'Model inputs'!$J$40+'Model inputs'!$J$39*'Model inputs'!$J$40*'Model inputs'!$J$41)) -> 0 | AE13: ='Model inputs'!$C30 -> 2025 | AF13: 136875 | AG13: ='Model inputs'!$F30*('Model inputs'!$E$38*('Model inputs'!$E$39+'Model inputs'!$E$39*'Model inputs'!$E$40+'Model inputs'!$E$39*'Model inputs'!$E$40*'Model inputs'!$E$41)+'Model inputs'!$F$38*('Model inputs'!$F$39+'Model inputs'!$F$39*'Model inputs'!$F$40+'Model inputs'!$F$39*'Model inputs'!$F$40*'Model inputs'!$F$41)+'Model inputs'!$G$38*('Model inputs'!$G$39+'Model inputs'!$G$39*'Model inputs'!$G$40+'Model inputs'!$G$39*'Model inputs'!$G$40*'Model inputs'!$G$41)) -> 136875 | AH13: ='Model inputs'!$H30*('Model inputs'!$H$38*('Model inputs'!$H$39+'Model inputs'!$H$39*'Model inputs'!$H$40+'Model inputs'!$H$39*'Model inputs'!$H$40*'Model inputs'!$H$41)+'Model inputs'!$I$38*('Model inputs'!$I$39+'Model inputs'!$I$39*'Model inputs'!$I$40+'Model inputs'!$I$39*'Model inputs'!$I$40*'Model inputs'!$I$41)+'Model inputs'!$J$38*('Model inputs'!$J$39+'Model inputs'!$J$39*'Model inputs'!$J$40+'Model inputs'!$J$39*'Model inputs'!$J$40*'Model inputs'!$J$41)) -> 0 | AL13: ='Model inputs'!$C30 -> 2025 | AM13: 136875 | AN13: ='Model inputs'!$F30*('Model inputs'!$E$38*('Model inputs'!$E$39+'Model inputs'!$E$39*'Model inputs'!$E$40+'Model inputs'!$E$39*'Model inputs'!$E$40*'Model inputs'!$E$41)+'Model inputs'!$F$38*('Model inputs'!$F$39+'Model inputs'!$F$39*'Model inputs'!$F$40+'Model inputs'!$F$39*'Model inputs'!$F$40*'Model inputs'!$F$41)+'Model inputs'!$G$38*('Model inputs'!$G$39+'Model inputs'!$G$39*'Model inputs'!$G$40+'Model inputs'!$G$39*'Model inputs'!$G$40*'Model inputs'!$G$41)) -> 136875 | AO13: ='Model inputs'!$H30*('Model inputs'!$H$38*('Model inputs'!$H$39+'Model inputs'!$H$39*'Model inputs'!$H$40+'Model inputs'!$H$39*'Model inputs'!$H$40*'Model inputs'!$H$41)+'Model inputs'!$I$38*('Model inputs'!$I$39+'Model inputs'!$I$39*'Model inputs'!$I$40+'Model inputs'!$I$39*'Model inputs'!$I$40*'Model inputs'!$I$41)+'Model inputs'!$J$38*('Model inputs'!$J$39+'Model inputs'!$J$39*'Model inputs'!$J$40+'Model inputs'!$J$39*'Model inputs'!$J$40*'Model inputs'!$J$41)) -> 0
B14: ='Model inputs'!$C31 -> 2026 | C14: 136875 | D14: ='Model inputs'!$F31*('Model inputs'!$E$38*('Model inputs'!$E$39+'Model inputs'!$E$39*'Model inputs'!$E$40+'Model inputs'!$E$39*'Model inputs'!$E$40*'Model inputs'!$E$41)+'Model inputs'!$F$38*('Model inputs'!$F$39+'Model inputs'!$F$39*'Model inputs'!$F$40+'Model inputs'!$F$39*'Model inputs'!$F$40*'Model inputs'!$F$41)+'Model inputs'!$G$38*('Model inputs'!$G$39+'Model inputs'!$G$39*'Model inputs'!$G$40+'Model inputs'!$G$39*'Model inputs'!$G$40*'Model inputs'!$G$41)) -> 136875 | E14: ='Model inputs'!$H31*('Model inputs'!$H$38*('Model inputs'!$H$39+'Model inputs'!$H$39*'Model inputs'!$H$40+'Model inputs'!$H$39*'Model inputs'!$H$40*'Model inputs'!$H$41)+'Model inputs'!$I$38*('Model inputs'!$I$39+'Model inputs'!$I$39*'Model inputs'!$I$40+'Model inputs'!$I$39*'Model inputs'!$I$40*'Model inputs'!$I$41)+'Model inputs'!$J$38*('Model inputs'!$J$39+'Model inputs'!$J$39*'Model inputs'!$J$40+'Model inputs'!$J$39*'Model inputs'!$J$40*'Model inputs'!$J$41)) -> 0 | I14: ='Model inputs'!$C31 -> 2026 | J14: 136875 | K14: ='Model inputs'!$F31*('Model inputs'!$E$38*('Model inputs'!$E$39+'Model inputs'!$E$39*'Model inputs'!$E$40+'Model inputs'!$E$39*'Model inputs'!$E$40*'Model inputs'!$E$41)+'Model inputs'!$F$38*('Model inputs'!$F$39+'Model inputs'!$F$39*'Model inputs'!$F$40+'Model inputs'!$F$39*'Model inputs'!$F$40*'Model inputs'!$F$41)+'Model inputs'!$G$38*('Model inputs'!$G$39+'Model inputs'!$G$39*'Model inputs'!$G$40+'Model inputs'!$G$39*'Model inputs'!$G$40*'Model inputs'!$G$41)) -> 136875 | L14: ='Model inputs'!$H31*('Model inputs'!$H$38*('Model inputs'!$H$39+'Model inputs'!$H$39*'Model inputs'!$H$40+'Model inputs'!$H$39*'Model inputs'!$H$40*'Model inputs'!$H$41)+'Model inputs'!$I$38*('Model inputs'!$I$39+'Model inputs'!$I$39*'Model inputs'!$I$40+'Model inputs'!$I$39*'Model inputs'!$I$40*'Model inputs'!$I$41)+'Model inputs'!$J$38*('Model inputs'!$J$39+'Model inputs'!$J$39*'Model inputs'!$J$40+'Model inputs'!$J$39*'Model inputs'!$J$40*'Model inputs'!$J$41)) -> 0 | P14: ='Model inputs'!$C31 -> 2026 | Q14: 136875 | R14: ='Model inputs'!$F31*('Model inputs'!$E$38*('Model inputs'!$E$39+'Model inputs'!$E$39*'Model inputs'!$E$40+'Model inputs'!$E$39*'Model inputs'!$E$40*'Model inputs'!$E$41)+'Model inputs'!$F$38*('Model inputs'!$F$39+'Model inputs'!$F$39*'Model inputs'!$F$40+'Model inputs'!$F$39*'Model inputs'!$F$40*'Model inputs'!$F$41)+'Model inputs'!$G$38*('Model inputs'!$G$39+'Model inputs'!$G$39*'Model inputs'!$G$40+'Model inputs'!$G$39*'Model inputs'!$G$40*'Model inputs'!$G$41)) -> 136875 | S14: ='Model inputs'!$H31*('Model inputs'!$H$38*('Model inputs'!$H$39+'Model inputs'!$H$39*'Model inputs'!$H$40+'Model inputs'!$H$39*'Model inputs'!$H$40*'Model inputs'!$H$41)+'Model inputs'!$I$38*('Model inputs'!$I$39+'Model inputs'!$I$39*'Model inputs'!$I$40+'Model inputs'!$I$39*'Model inputs'!$I$40*'Model inputs'!$I$41)+'Model inputs'!$J$38*('Model inputs'!$J$39+'Model inputs'!$J$39*'Model inputs'!$J$40+'Model inputs'!$J$39*'Model inputs'!$J$40*'Model inputs'!$J$41)) -> 0 | X14: ='Model inputs'!$C31 -> 2026 | Y14: 136875 | Z14: ='Model inputs'!$F31*('Model inputs'!$E$38*('Model inputs'!$E$39+'Model inputs'!$E$39*'Model inputs'!$E$40+'Model inputs'!$E$39*'Model inputs'!$E$40*'Model inputs'!$E$41)+'Model inputs'!$F$38*('Model inputs'!$F$39+'Model inputs'!$F$39*'Model inputs'!$F$40+'Model inputs'!$F$39*'Model inputs'!$F$40*'Model inputs'!$F$41)+'Model inputs'!$G$38*('Model inputs'!$G$39+'Model inputs'!$G$39*'Model inputs'!$G$40+'Model inputs'!$G$39*'Model inputs'!$G$40*'Model inputs'!$G$41)) -> 136875 | AA14: ='Model inputs'!$H31*('Model inputs'!$H$38*('Model inputs'!$H$39+'Model inputs'!$H$39*'Model inputs'!$H$40+'Model inputs'!$H$39*'Model inputs'!$H$40*'Model inputs'!$H$41)+'Model inputs'!$I$38*('Model inputs'!$I$39+'Model inputs'!$I$39*'Model inputs'!$I$40+'Model inputs'!$I$39*'Model inputs'!$I$40*'Model inputs'!$I$41)+'Model inputs'!$J$38*('Model inputs'!$J$39+'Model inputs'!$J$39*'Model inputs'!$J$40+'Model inputs'!$J$39*'Model inputs'!$J$40*'Model inputs'!$J$41)) -> 0 | AE14: ='Model inputs'!$C31 -> 2026 | AF14: 136875 | AG14: ='Model inputs'!$F31*('Model inputs'!$E$38*('Model inputs'!$E$39+'Model inputs'!$E$39*'Model inputs'!$E$40+'Model inputs'!$E$39*'Model inputs'!$E$40*'Model inputs'!$E$41)+'Model inputs'!$F$38*('Model inputs'!$F$39+'Model inputs'!$F$39*'Model inputs'!$F$40+'Model inputs'!$F$39*'Model inputs'!$F$40*'Model inputs'!$F$41)+'Model inputs'!$G$38*('Model inputs'!$G$39+'Model inputs'!$G$39*'Model inputs'!$G$40+'Model inputs'!$G$39*'Model inputs'!$G$40*'Model inputs'!$G$41)) -> 136875 | AH14: ='Model inputs'!$H31*('Model inputs'!$H$38*('Model inputs'!$H$39+'Model inputs'!$H$39*'Model inputs'!$H$40+'Model inputs'!$H$39*'Model inputs'!$H$40*'Model inputs'!$H$41)+'Model inputs'!$I$38*('Model inputs'!$I$39+'Model inputs'!$I$39*'Model inputs'!$I$40+'Model inputs'!$I$39*'Model inputs'!$I$40*'Model inputs'!$I$41)+'Model inputs'!$J$38*('Model inputs'!$J$39+'Model inputs'!$J$39*'Model inputs'!$J$40+'Model inputs'!$J$39*'Model inputs'!$J$40*'Model inputs'!$J$41)) -> 0 | AL14: ='Model inputs'!$C31 -> 2026 | AM14: 136875 | AN14: ='Model inputs'!$F31*('Model inputs'!$E$38*('Model inputs'!$E$39+'Model inputs'!$E$39*'Model inputs'!$E$40+'Model inputs'!$E$39*'Model inputs'!$E$40*'Model inputs'!$E$41)+'Model inputs'!$F$38*('Model inputs'!$F$39+'Model inputs'!$F$39*'Model inputs'!$F$40+'Model inputs'!$F$39*'Model inputs'!$F$40*'Model inputs'!$F$41)+'Model inputs'!$G$38*('Model inputs'!$G$39+'Model inputs'!$G$39*'Model inputs'!$G$40+'Model inputs'!$G$39*'Model inputs'!$G$40*'Model inputs'!$G$41)) -> 136875 | AO14: ='Model inputs'!$H31*('Model inputs'!$H$38*('Model inputs'!$H$39+'Model inputs'!$H$39*'Model inputs'!$H$40+'Model inputs'!$H$39*'Model inputs'!$H$40*'Model inputs'!$H$41)+'Model inputs'!$I$38*('Model inputs'!$I$39+'Model inputs'!$I$39*'Model inputs'!$I$40+'Model inputs'!$I$39*'Model inputs'!$I$40*'Model inputs'!$I$41)+'Model inputs'!$J$38*('Model inputs'!$J$39+'Model inputs'!$J$39*'Model inputs'!$J$40+'Model inputs'!$J$39*'Model inputs'!$J$40*'Model inputs'!$J$41)) -> 0
B15: ='Model inputs'!$C32 -> 2027 | C15: 136875 | D15: ='Model inputs'!$F32*('Model inputs'!$E$38*('Model inputs'!$E$39+'Model inputs'!$E$39*'Model inputs'!$E$40+'Model inputs'!$E$39*'Model inputs'!$E$40*'Model inputs'!$E$41)+'Model inputs'!$F$38*('Model inputs'!$F$39+'Model inputs'!$F$39*'Model inputs'!$F$40+'Model inputs'!$F$39*'Model inputs'!$F$40*'Model inputs'!$F$41)+'Model inputs'!$G$38*('Model inputs'!$G$39+'Model inputs'!$G$39*'Model inputs'!$G$40+'Model inputs'!$G$39*'Model inputs'!$G$40*'Model inputs'!$G$41)) -> 136875 | E15: ='Model inputs'!$H32*('Model inputs'!$H$38*('Model inputs'!$H$39+'Model inputs'!$H$39*'Model inputs'!$H$40+'Model inputs'!$H$39*'Model inputs'!$H$40*'Model inputs'!$H$41)+'Model inputs'!$I$38*('Model inputs'!$I$39+'Model inputs'!$I$39*'Model inputs'!$I$40+'Model inputs'!$I$39*'Model inputs'!$I$40*'Model inputs'!$I$41)+'Model inputs'!$J$38*('Model inputs'!$J$39+'Model inputs'!$J$39*'Model inputs'!$J$40+'Model inputs'!$J$39*'Model inputs'!$J$40*'Model inputs'!$J$41)) -> 0 | I15: ='Model inputs'!$C32 -> 2027 | J15: 136875 | K15: ='Model inputs'!$F32*('Model inputs'!$E$38*('Model inputs'!$E$39+'Model inputs'!$E$39*'Model inputs'!$E$40+'Model inputs'!$E$39*'Model inputs'!$E$40*'Model inputs'!$E$41)+'Model inputs'!$F$38*('Model inputs'!$F$39+'Model inputs'!$F$39*'Model inputs'!$F$40+'Model inputs'!$F$39*'Model inputs'!$F$40*'Model inputs'!$F$41)+'Model inputs'!$G$38*('Model inputs'!$G$39+'Model inputs'!$G$39*'Model inputs'!$G$40+'Model inputs'!$G$39*'Model inputs'!$G$40*'Model inputs'!$G$41)) -> 136875 | L15: ='Model inputs'!$H32*('Model inputs'!$H$38*('Model inputs'!$H$39+'Model inputs'!$H$39*'Model inputs'!$H$40+'Model inputs'!$H$39*'Model inputs'!$H$40*'Model inputs'!$H$41)+'Model inputs'!$I$38*('Model inputs'!$I$39+'Model inputs'!$I$39*'Model inputs'!$I$40+'Model inputs'!$I$39*'Model inputs'!$I$40*'Model inputs'!$I$41)+'Model inputs'!$J$38*('Model inputs'!$J$39+'Model inputs'!$J$39*'Model inputs'!$J$40+'Model inputs'!$J$39*'Model inputs'!$J$40*'Model inputs'!$J$41)) -> 0 | P15: ='Model inputs'!$C32 -> 2027 | Q15: 136875 | R15: ='Model inputs'!$F32*('Model inputs'!$E$38*('Model inputs'!$E$39+'Model inputs'!$E$39*'Model inputs'!$E$40+'Model inputs'!$E$39*'Model inputs'!$E$40*'Model inputs'!$E$41)+'Model inputs'!$F$38*('Model inputs'!$F$39+'Model inputs'!$F$39*'Model inputs'!$F$40+'Model inputs'!$F$39*'Model inputs'!$F$40*'Model inputs'!$F$41)+'Model inputs'!$G$38*('Model inputs'!$G$39+'Model inputs'!$G$39*'Model inputs'!$G$40+'Model inputs'!$G$39*'Model inputs'!$G$40*'Model inputs'!$G$41)) -> 136875 | S15: ='Model inputs'!$H32*('Model inputs'!$H$38*('Model inputs'!$H$39+'Model inputs'!$H$39*'Model inputs'!$H$40+'Model inputs'!$H$39*'Model inputs'!$H$40*'Model inputs'!$H$41)+'Model inputs'!$I$38*('Model inputs'!$I$39+'Model inputs'!$I$39*'Model inputs'!$I$40+'Model inputs'!$I$39*'Model inputs'!$I$40*'Model inputs'!$I$41)+'Model inputs'!$J$38*('Model inputs'!$J$39+'Model inputs'!$J$39*'Model inputs'!$J$40+'Model inputs'!$J$39*'Model inputs'!$J$40*'Model inputs'!$J$41)) -> 0 | X15: ='Model inputs'!$C32 -> 2027 | Y15: 136875 | Z15: ='Model inputs'!$F32*('Model inputs'!$E$38*('Model inputs'!$E$39+'Model inputs'!$E$39*'Model inputs'!$E$40+'Model inputs'!$E$39*'Model inputs'!$E$40*'Model inputs'!$E$41)+'Model inputs'!$F$38*('Model inputs'!$F$39+'Model inputs'!$F$39*'Model inputs'!$F$40+'Model inputs'!$F$39*'Model inputs'!$F$40*'Model inputs'!$F$41)+'Model inputs'!$G$38*('Model inputs'!$G$39+'Model inputs'!$G$39*'Model inputs'!$G$40+'Model inputs'!$G$39*'Model inputs'!$G$40*'Model inputs'!$G$41)) -> 136875 | AA15: ='Model inputs'!$H32*('Model inputs'!$H$38*('Model inputs'!$H$39+'Model inputs'!$H$39*'Model inputs'!$H$40+'Model inputs'!$H$39*'Model inputs'!$H$40*'Model inputs'!$H$41)+'Model inputs'!$I$38*('Model inputs'!$I$39+'Model inputs'!$I$39*'Model inputs'!$I$40+'Model inputs'!$I$39*'Model inputs'!$I$40*'Model inputs'!$I$41)+'Model inputs'!$J$38*('Model inputs'!$J$39+'Model inputs'!$J$39*'Model inputs'!$J$40+'Model inputs'!$J$39*'Model inputs'!$J$40*'Model inputs'!$J$41)) -> 0 | AE15: ='Model inputs'!$C32 -> 2027 | AF15: 136875 | AG15: ='Model inputs'!$F32*('Model inputs'!$E$38*('Model inputs'!$E$39+'Model inputs'!$E$39*'Model inputs'!$E$40+'Model inputs'!$E$39*'Model inputs'!$E$40*'Model inputs'!$E$41)+'Model inputs'!$F$38*('Model inputs'!$F$39+'Model inputs'!$F$39*'Model inputs'!$F$40+'Model inputs'!$F$39*'Model inputs'!$F$40*'Model inputs'!$F$41)+'Model inputs'!$G$38*('Model inputs'!$G$39+'Model inputs'!$G$39*'Model inputs'!$G$40+'Model inputs'!$G$39*'Model inputs'!$G$40*'Model inputs'!$G$41)) -> 136875 | AH15: ='Model inputs'!$H32*('Model inputs'!$H$38*('Model inputs'!$H$39+'Model inputs'!$H$39*'Model inputs'!$H$40+'Model inputs'!$H$39*'Model inputs'!$H$40*'Model inputs'!$H$41)+'Model inputs'!$I$38*('Model inputs'!$I$39+'Model inputs'!$I$39*'Model inputs'!$I$40+'Model inputs'!$I$39*'Model inputs'!$I$40*'Model inputs'!$I$41)+'Model inputs'!$J$38*('Model inputs'!$J$39+'Model inputs'!$J$39*'Model inputs'!$J$40+'Model inputs'!$J$39*'Model inputs'!$J$40*'Model inputs'!$J$41)) -> 0 | AL15: ='Model inputs'!$C32 -> 2027 | AM15: 136875 | AN15: ='Model inputs'!$F32*('Model inputs'!$E$38*('Model inputs'!$E$39+'Model inputs'!$E$39*'Model inputs'!$E$40+'Model inputs'!$E$39*'Model inputs'!$E$40*'Model inputs'!$E$41)+'Model inputs'!$F$38*('Model inputs'!$F$39+'Model inputs'!$F$39*'Model inputs'!$F$40+'Model inputs'!$F$39*'Model inputs'!$F$40*'Model inputs'!$F$41)+'Model inputs'!$G$38*('Model inputs'!$G$39+'Model inputs'!$G$39*'Model inputs'!$G$40+'Model inputs'!$G$39*'Model inputs'!$G$40*'Model inputs'!$G$41)) -> 136875 | AO15: ='Model inputs'!$H32*('Model inputs'!$H$38*('Model inputs'!$H$39+'Model inputs'!$H$39*'Model inputs'!$H$40+'Model inputs'!$H$39*'Model inputs'!$H$40*'Model inputs'!$H$41)+'Model inputs'!$I$38*('Model inputs'!$I$39+'Model inputs'!$I$39*'Model inputs'!$I$40+'Model inputs'!$I$39*'Model inputs'!$I$40*'Model inputs'!$I$41)+'Model inputs'!$J$38*('Model inputs'!$J$39+'Model inputs'!$J$39*'Model inputs'!$J$40+'Model inputs'!$J$39*'Model inputs'!$J$40*'Model inputs'!$J$41)) -> 0
B16: ='Model inputs'!$C33 -> 2028 | C16: 136875 | D16: ='Model inputs'!$F33*('Model inputs'!$E$38*('Model inputs'!$E$39+'Model inputs'!$E$39*'Model inputs'!$E$40+'Model inputs'!$E$39*'Model inputs'!$E$40*'Model inputs'!$E$41)+'Model inputs'!$F$38*('Model inputs'!$F$39+'Model inputs'!$F$39*'Model inputs'!$F$40+'Model inputs'!$F$39*'Model inputs'!$F$40*'Model inputs'!$F$41)+'Model inputs'!$G$38*('Model inputs'!$G$39+'Model inputs'!$G$39*'Model inputs'!$G$40+'Model inputs'!$G$39*'Model inputs'!$G$40*'Model inputs'!$G$41)) -> 136875 | E16: ='Model inputs'!$H33*('Model inputs'!$H$38*('Model inputs'!$H$39+'Model inputs'!$H$39*'Model inputs'!$H$40+'Model inputs'!$H$39*'Model inputs'!$H$40*'Model inputs'!$H$41)+'Model inputs'!$I$38*('Model inputs'!$I$39+'Model inputs'!$I$39*'Model inputs'!$I$40+'Model inputs'!$I$39*'Model inputs'!$I$40*'Model inputs'!$I$41)+'Model inputs'!$J$38*('Model inputs'!$J$39+'Model inputs'!$J$39*'Model inputs'!$J$40+'Model inputs'!$J$39*'Model inputs'!$J$40*'Model inputs'!$J$41)) -> 0 | I16: ='Model inputs'!$C33 -> 2028 | J16: 136875 | K16: ='Model inputs'!$F33*('Model inputs'!$E$38*('Model inputs'!$E$39+'Model inputs'!$E$39*'Model inputs'!$E$40+'Model inputs'!$E$39*'Model inputs'!$E$40*'Model inputs'!$E$41)+'Model inputs'!$F$38*('Model inputs'!$F$39+'Model inputs'!$F$39*'Model inputs'!$F$40+'Model inputs'!$F$39*'Model inputs'!$F$40*'Model inputs'!$F$41)+'Model inputs'!$G$38*('Model inputs'!$G$39+'Model inputs'!$G$39*'Model inputs'!$G$40+'Model inputs'!$G$39*'Model inputs'!$G$40*'Model inputs'!$G$41)) -> 136875 | L16: ='Model inputs'!$H33*('Model inputs'!$H$38*('Model inputs'!$H$39+'Model inputs'!$H$39*'Model inputs'!$H$40+'Model inputs'!$H$39*'Model inputs'!$H$40*'Model inputs'!$H$41)+'Model inputs'!$I$38*('Model inputs'!$I$39+'Model inputs'!$I$39*'Model inputs'!$I$40+'Model inputs'!$I$39*'Model inputs'!$I$40*'Model inputs'!$I$41)+'Model inputs'!$J$38*('Model inputs'!$J$39+'Model inputs'!$J$39*'Model inputs'!$J$40+'Model inputs'!$J$39*'Model inputs'!$J$40*'Model inputs'!$J$41)) -> 0 | P16: ='Model inputs'!$C33 -> 2028 | Q16: 136875 | R16: ='Model inputs'!$F33*('Model inputs'!$E$38*('Model inputs'!$E$39+'Model inputs'!$E$39*'Model inputs'!$E$40+'Model inputs'!$E$39*'Model inputs'!$E$40*'Model inputs'!$E$41)+'Model inputs'!$F$38*('Model inputs'!$F$39+'Model inputs'!$F$39*'Model inputs'!$F$40+'Model inputs'!$F$39*'Model inputs'!$F$40*'Model inputs'!$F$41)+'Model inputs'!$G$38*('Model inputs'!$G$39+'Model inputs'!$G$39*'Model inputs'!$G$40+'Model inputs'!$G$39*'Model inputs'!$G$40*'Model inputs'!$G$41)) -> 136875 | S16: ='Model inputs'!$H33*('Model inputs'!$H$38*('Model inputs'!$H$39+'Model inputs'!$H$39*'Model inputs'!$H$40+'Model inputs'!$H$39*'Model inputs'!$H$40*'Model inputs'!$H$41)+'Model inputs'!$I$38*('Model inputs'!$I$39+'Model inputs'!$I$39*'Model inputs'!$I$40+'Model inputs'!$I$39*'Model inputs'!$I$40*'Model inputs'!$I$41)+'Model inputs'!$J$38*('Model inputs'!$J$39+'Model inputs'!$J$39*'Model inputs'!$J$40+'Model inputs'!$J$39*'Model inputs'!$J$40*'Model inputs'!$J$41)) -> 0 | X16: ='Model inputs'!$C33 -> 2028 | Y16: 136875 | Z16: ='Model inputs'!$F33*('Model inputs'!$E$38*('Model inputs'!$E$39+'Model inputs'!$E$39*'Model inputs'!$E$40+'Model inputs'!$E$39*'Model inputs'!$E$40*'Model inputs'!$E$41)+'Model inputs'!$F$38*('Model inputs'!$F$39+'Model inputs'!$F$39*'Model inputs'!$F$40+'Model inputs'!$F$39*'Model inputs'!$F$40*'Model inputs'!$F$41)+'Model inputs'!$G$38*('Model inputs'!$G$39+'Model inputs'!$G$39*'Model inputs'!$G$40+'Model inputs'!$G$39*'Model inputs'!$G$40*'Model inputs'!$G$41)) -> 136875 | AA16: ='Model inputs'!$H33*('Model inputs'!$H$38*('Model inputs'!$H$39+'Model inputs'!$H$39*'Model inputs'!$H$40+'Model inputs'!$H$39*'Model inputs'!$H$40*'Model inputs'!$H$41)+'Model inputs'!$I$38*('Model inputs'!$I$39+'Model inputs'!$I$39*'Model inputs'!$I$40+'Model inputs'!$I$39*'Model inputs'!$I$40*'Model inputs'!$I$41)+'Model inputs'!$J$38*('Model inputs'!$J$39+'Model inputs'!$J$39*'Model inputs'!$J$40+'Model inputs'!$J$39*'Model inputs'!$J$40*'Model inputs'!$J$41)) -> 0 | AE16: ='Model inputs'!$C33 -> 2028 | AF16: 136875 | AG16: ='Model inputs'!$F33*('Model inputs'!$E$38*('Model inputs'!$E$39+'Model inputs'!$E$39*'Model inputs'!$E$40+'Model inputs'!$E$39*'Model inputs'!$E$40*'Model inputs'!$E$41)+'Model inputs'!$F$38*('Model inputs'!$F$39+'Model inputs'!$F$39*'Model inputs'!$F$40+'Model inputs'!$F$39*'Model inputs'!$F$40*'Model inputs'!$F$41)+'Model inputs'!$G$38*('Model inputs'!$G$39+'Model inputs'!$G$39*'Model inputs'!$G$40+'Model inputs'!$G$39*'Model inputs'!$G$40*'Model inputs'!$G$41)) -> 136875 | AH16: ='Model inputs'!$H33*('Model inputs'!$H$38*('Model inputs'!$H$39+'Model inputs'!$H$39*'Model inputs'!$H$40+'Model inputs'!$H$39*'Model inputs'!$H$40*'Model inputs'!$H$41)+'Model inputs'!$I$38*('Model inputs'!$I$39+'Model inputs'!$I$39*'Model inputs'!$I$40+'Model inputs'!$I$39*'Model inputs'!$I$40*'Model inputs'!$I$41)+'Model inputs'!$J$38*('Model inputs'!$J$39+'Model inputs'!$J$39*'Model inputs'!$J$40+'Model inputs'!$J$39*'Model inputs'!$J$40*'Model inputs'!$J$41)) -> 0 | AL16: ='Model inputs'!$C33 -> 2028 | AM16: 136875 | AN16: ='Model inputs'!$F33*('Model inputs'!$E$38*('Model inputs'!$E$39+'Model inputs'!$E$39*'Model inputs'!$E$40+'Model inputs'!$E$39*'Model inputs'!$E$40*'Model inputs'!$E$41)+'Model inputs'!$F$38*('Model inputs'!$F$39+'Model inputs'!$F$39*'Model inputs'!$F$40+'Model inputs'!$F$39*'Model inputs'!$F$40*'Model inputs'!$F$41)+'Model inputs'!$G$38*('Model inputs'!$G$39+'Model inputs'!$G$39*'Model inputs'!$G$40+'Model inputs'!$G$39*'Model inputs'!$G$40*'Model inputs'!$G$41)) -> 136875 | AO16: ='Model inputs'!$H33*('Model inputs'!$H$38*('Model inputs'!$H$39+'Model inputs'!$H$39*'Model inputs'!$H$40+'Model inputs'!$H$39*'Model inputs'!$H$40*'Model inputs'!$H$41)+'Model inputs'!$I$38*('Model inputs'!$I$39+'Model inputs'!$I$39*'Model inputs'!$I$40+'Model inputs'!$I$39*'Model inputs'!$I$40*'Model inputs'!$I$41)+'Model inputs'!$J$38*('Model inputs'!$J$39+'Model inputs'!$J$39*'Model inputs'!$J$40+'Model inputs'!$J$39*'Model inputs'!$J$40*'Model inputs'!$J$41)) -> 0
B17: ='Model inputs'!$C34 -> 2029 | C17: 136875 | D17: ='Model inputs'!$F34*('Model inputs'!$E$38*('Model inputs'!$E$39+'Model inputs'!$E$39*'Model inputs'!$E$40+'Model inputs'!$E$39*'Model inputs'!$E$40*'Model inputs'!$E$41)+'Model inputs'!$F$38*('Model inputs'!$F$39+'Model inputs'!$F$39*'Model inputs'!$F$40+'Model inputs'!$F$39*'Model inputs'!$F$40*'Model inputs'!$F$41)+'Model inputs'!$G$38*('Model inputs'!$G$39+'Model inputs'!$G$39*'Model inputs'!$G$40+'Model inputs'!$G$39*'Model inputs'!$G$40*'Model inputs'!$G$41)) -> 136875 | E17: ='Model inputs'!$H34*('Model inputs'!$H$38*('Model inputs'!$H$39+'Model inputs'!$H$39*'Model inputs'!$H$40+'Model inputs'!$H$39*'Model inputs'!$H$40*'Model inputs'!$H$41)+'Model inputs'!$I$38*('Model inputs'!$I$39+'Model inputs'!$I$39*'Model inputs'!$I$40+'Model inputs'!$I$39*'Model inputs'!$I$40*'Model inputs'!$I$41)+'Model inputs'!$J$38*('Model inputs'!$J$39+'Model inputs'!$J$39*'Model inputs'!$J$40+'Model inputs'!$J$39*'Model inputs'!$J$40*'Model inputs'!$J$41)) -> 0 | I17: ='Model inputs'!$C34 -> 2029 | J17: 136875 | K17: ='Model inputs'!$F34*('Model inputs'!$E$38*('Model inputs'!$E$39+'Model inputs'!$E$39*'Model inputs'!$E$40+'Model inputs'!$E$39*'Model inputs'!$E$40*'Model inputs'!$E$41)+'Model inputs'!$F$38*('Model inputs'!$F$39+'Model inputs'!$F$39*'Model inputs'!$F$40+'Model inputs'!$F$39*'Model inputs'!$F$40*'Model inputs'!$F$41)+'Model inputs'!$G$38*('Model inputs'!$G$39+'Model inputs'!$G$39*'Model inputs'!$G$40+'Model inputs'!$G$39*'Model inputs'!$G$40*'Model inputs'!$G$41)) -> 136875 | L17: ='Model inputs'!$H34*('Model inputs'!$H$38*('Model inputs'!$H$39+'Model inputs'!$H$39*'Model inputs'!$H$40+'Model inputs'!$H$39*'Model inputs'!$H$40*'Model inputs'!$H$41)+'Model inputs'!$I$38*('Model inputs'!$I$39+'Model inputs'!$I$39*'Model inputs'!$I$40+'Model inputs'!$I$39*'Model inputs'!$I$40*'Model inputs'!$I$41)+'Model inputs'!$J$38*('Model inputs'!$J$39+'Model inputs'!$J$39*'Model inputs'!$J$40+'Model inputs'!$J$39*'Model inputs'!$J$40*'Model inputs'!$J$41)) -> 0 | P17: ='Model inputs'!$C34 -> 2029 | Q17: 136875 | R17: ='Model inputs'!$F34*('Model inputs'!$E$38*('Model inputs'!$E$39+'Model inputs'!$E$39*'Model inputs'!$E$40+'Model inputs'!$E$39*'Model inputs'!$E$40*'Model inputs'!$E$41)+'Model inputs'!$F$38*('Model inputs'!$F$39+'Model inputs'!$F$39*'Model inputs'!$F$40+'Model inputs'!$F$39*'Model inputs'!$F$40*'Model inputs'!$F$41)+'Model inputs'!$G$38*('Model inputs'!$G$39+'Model inputs'!$G$39*'Model inputs'!$G$40+'Model inputs'!$G$39*'Model inputs'!$G$40*'Model inputs'!$G$41)) -> 136875 | S17: ='Model inputs'!$H34*('Model inputs'!$H$38*('Model inputs'!$H$39+'Model inputs'!$H$39*'Model inputs'!$H$40+'Model inputs'!$H$39*'Model inputs'!$H$40*'Model inputs'!$H$41)+'Model inputs'!$I$38*('Model inputs'!$I$39+'Model inputs'!$I$39*'Model inputs'!$I$40+'Model inputs'!$I$39*'Model inputs'!$I$40*'Model inputs'!$I$41)+'Model inputs'!$J$38*('Model inputs'!$J$39+'Model inputs'!$J$39*'Model inputs'!$J$40+'Model inputs'!$J$39*'Model inputs'!$J$40*'Model inputs'!$J$41)) -> 0 | X17: ='Model inputs'!$C34 -> 2029 | Y17: 136875 | Z17: ='Model inputs'!$F34*('Model inputs'!$E$38*('Model inputs'!$E$39+'Model inputs'!$E$39*'Model inputs'!$E$40+'Model inputs'!$E$39*'Model inputs'!$E$40*'Model inputs'!$E$41)+'Model inputs'!$F$38*('Model inputs'!$F$39+'Model inputs'!$F$39*'Model inputs'!$F$40+'Model inputs'!$F$39*'Model inputs'!$F$40*'Model inputs'!$F$41)+'Model inputs'!$G$38*('Model inputs'!$G$39+'Model inputs'!$G$39*'Model inputs'!$G$40+'Model inputs'!$G$39*'Model inputs'!$G$40*'Model inputs'!$G$41)) -> 136875 | AA17: ='Model inputs'!$H34*('Model inputs'!$H$38*('Model inputs'!$H$39+'Model inputs'!$H$39*'Model inputs'!$H$40+'Model inputs'!$H$39*'Model inputs'!$H$40*'Model inputs'!$H$41)+'Model inputs'!$I$38*('Model inputs'!$I$39+'Model inputs'!$I$39*'Model inputs'!$I$40+'Model inputs'!$I$39*'Model inputs'!$I$40*'Model inputs'!$I$41)+'Model inputs'!$J$38*('Model inputs'!$J$39+'Model inputs'!$J$39*'Model inputs'!$J$40+'Model inputs'!$J$39*'Model inputs'!$J$40*'Model inputs'!$J$41)) -> 0 | AE17: ='Model inputs'!$C34 -> 2029 | AF17: 136875 | AG17: ='Model inputs'!$F34*('Model inputs'!$E$38*('Model inputs'!$E$39+'Model inputs'!$E$39*'Model inputs'!$E$40+'Model inputs'!$E$39*'Model inputs'!$E$40*'Model inputs'!$E$41)+'Model inputs'!$F$38*('Model inputs'!$F$39+'Model inputs'!$F$39*'Model inputs'!$F$40+'Model inputs'!$F$39*'Model inputs'!$F$40*'Model inputs'!$F$41)+'Model inputs'!$G$38*('Model inputs'!$G$39+'Model inputs'!$G$39*'Model inputs'!$G$40+'Model inputs'!$G$39*'Model inputs'!$G$40*'Model inputs'!$G$41)) -> 136875 | AH17: ='Model inputs'!$H34*('Model inputs'!$H$38*('Model inputs'!$H$39+'Model inputs'!$H$39*'Model inputs'!$H$40+'Model inputs'!$H$39*'Model inputs'!$H$40*'Model inputs'!$H$41)+'Model inputs'!$I$38*('Model inputs'!$I$39+'Model inputs'!$I$39*'Model inputs'!$I$40+'Model inputs'!$I$39*'Model inputs'!$I$40*'Model inputs'!$I$41)+'Model inputs'!$J$38*('Model inputs'!$J$39+'Model inputs'!$J$39*'Model inputs'!$J$40+'Model inputs'!$J$39*'Model inputs'!$J$40*'Model inputs'!$J$41)) -> 0 | AL17: ='Model inputs'!$C34 -> 2029 | AM17: 136875 | AN17: ='Model inputs'!$F34*('Model inputs'!$E$38*('Model inputs'!$E$39+'Model inputs'!$E$39*'Model inputs'!$E$40+'Model inputs'!$E$39*'Model inputs'!$E$40*'Model inputs'!$E$41)+'Model inputs'!$F$38*('Model inputs'!$F$39+'Model inputs'!$F$39*'Model inputs'!$F$40+'Model inputs'!$F$39*'Model inputs'!$F$40*'Model inputs'!$F$41)+'Model inputs'!$G$38*('Model inputs'!$G$39+'Model inputs'!$G$39*'Model inputs'!$G$40+'Model inputs'!$G$39*'Model inputs'!$G$40*'Model inputs'!$G$41)) -> 136875 | AO17: ='Model inputs'!$H34*('Model inputs'!$H$38*('Model inputs'!$H$39+'Model inputs'!$H$39*'Model inputs'!$H$40+'Model inputs'!$H$39*'Model inputs'!$H$40*'Model inputs'!$H$41)+'Model inputs'!$I$38*('Model inputs'!$I$39+'Model inputs'!$I$39*'Model inputs'!$I$40+'Model inputs'!$I$39*'Model inputs'!$I$40*'Model inputs'!$I$41)+'Model inputs'!$J$38*('Model inputs'!$J$39+'Model inputs'!$J$39*'Model inputs'!$J$40+'Model inputs'!$J$39*'Model inputs'!$J$40*'Model inputs'!$J$41)) -> 0
B18: ='Model inputs'!$C35 -> 2030 | C18: 136875 | D18: ='Model inputs'!$F35*('Model inputs'!$E$38*('Model inputs'!$E$39+'Model inputs'!$E$39*'Model inputs'!$E$40+'Model inputs'!$E$39*'Model inputs'!$E$40*'Model inputs'!$E$41)+'Model inputs'!$F$38*('Model inputs'!$F$39+'Model inputs'!$F$39*'Model inputs'!$F$40+'Model inputs'!$F$39*'Model inputs'!$F$40*'Model inputs'!$F$41)+'Model inputs'!$G$38*('Model inputs'!$G$39+'Model inputs'!$G$39*'Model inputs'!$G$40+'Model inputs'!$G$39*'Model inputs'!$G$40*'Model inputs'!$G$41)) -> 136875 | E18: ='Model inputs'!$H35*('Model inputs'!$H$38*('Model inputs'!$H$39+'Model inputs'!$H$39*'Model inputs'!$H$40+'Model inputs'!$H$39*'Model inputs'!$H$40*'Model inputs'!$H$41)+'Model inputs'!$I$38*('Model inputs'!$I$39+'Model inputs'!$I$39*'Model inputs'!$I$40+'Model inputs'!$I$39*'Model inputs'!$I$40*'Model inputs'!$I$41)+'Model inputs'!$J$38*('Model inputs'!$J$39+'Model inputs'!$J$39*'Model inputs'!$J$40+'Model inputs'!$J$39*'Model inputs'!$J$40*'Model inputs'!$J$41)) -> 0 | I18: ='Model inputs'!$C35 -> 2030 | J18: 136875 | K18: ='Model inputs'!$F35*('Model inputs'!$E$38*('Model inputs'!$E$39+'Model inputs'!$E$39*'Model inputs'!$E$40+'Model inputs'!$E$39*'Model inputs'!$E$40*'Model inputs'!$E$41)+'Model inputs'!$F$38*('Model inputs'!$F$39+'Model inputs'!$F$39*'Model inputs'!$F$40+'Model inputs'!$F$39*'Model inputs'!$F$40*'Model inputs'!$F$41)+'Model inputs'!$G$38*('Model inputs'!$G$39+'Model inputs'!$G$39*'Model inputs'!$G$40+'Model inputs'!$G$39*'Model inputs'!$G$40*'Model inputs'!$G$41)) -> 136875 | L18: ='Model inputs'!$H35*('Model inputs'!$H$38*('Model inputs'!$H$39+'Model inputs'!$H$39*'Model inputs'!$H$40+'Model inputs'!$H$39*'Model inputs'!$H$40*'Model inputs'!$H$41)+'Model inputs'!$I$38*('Model inputs'!$I$39+'Model inputs'!$I$39*'Model inputs'!$I$40+'Model inputs'!$I$39*'Model inputs'!$I$40*'Model inputs'!$I$41)+'Model inputs'!$J$38*('Model inputs'!$J$39+'Model inputs'!$J$39*'Model inputs'!$J$40+'Model inputs'!$J$39*'Model inputs'!$J$40*'Model inputs'!$J$41)) -> 0 | P18: ='Model inputs'!$C35 -> 2030 | Q18: 136875 | R18: ='Model inputs'!$F35*('Model inputs'!$E$38*('Model inputs'!$E$39+'Model inputs'!$E$39*'Model inputs'!$E$40+'Model inputs'!$E$39*'Model inputs'!$E$40*'Model inputs'!$E$41)+'Model inputs'!$F$38*('Model inputs'!$F$39+'Model inputs'!$F$39*'Model inputs'!$F$40+'Model inputs'!$F$39*'Model inputs'!$F$40*'Model inputs'!$F$41)+'Model inputs'!$G$38*('Model inputs'!$G$39+'Model inputs'!$G$39*'Model inputs'!$G$40+'Model inputs'!$G$39*'Model inputs'!$G$40*'Model inputs'!$G$41)) -> 136875 | S18: ='Model inputs'!$H35*('Model inputs'!$H$38*('Model inputs'!$H$39+'Model inputs'!$H$39*'Model inputs'!$H$40+'Model inputs'!$H$39*'Model inputs'!$H$40*'Model inputs'!$H$41)+'Model inputs'!$I$38*('Model inputs'!$I$39+'Model inputs'!$I$39*'Model inputs'!$I$40+'Model inputs'!$I$39*'Model inputs'!$I$40*'Model inputs'!$I$41)+'Model inputs'!$J$38*('Model inputs'!$J$39+'Model inputs'!$J$39*'Model inputs'!$J$40+'Model inputs'!$J$39*'Model inputs'!$J$40*'Model inputs'!$J$41)) -> 0 | X18: ='Model inputs'!$C35 -> 2030 | Y18: 136875 | Z18: ='Model inputs'!$F35*('Model inputs'!$E$38*('Model inputs'!$E$39+'Model inputs'!$E$39*'Model inputs'!$E$40+'Model inputs'!$E$39*'Model inputs'!$E$40*'Model inputs'!$E$41)+'Model inputs'!$F$38*('Model inputs'!$F$39+'Model inputs'!$F$39*'Model inputs'!$F$40+'Model inputs'!$F$39*'Model inputs'!$F$40*'Model inputs'!$F$41)+'Model inputs'!$G$38*('Model inputs'!$G$39+'Model inputs'!$G$39*'Model inputs'!$G$40+'Model inputs'!$G$39*'Model inputs'!$G$40*'Model inputs'!$G$41)) -> 136875 | AA18: ='Model inputs'!$H35*('Model inputs'!$H$38*('Model inputs'!$H$39+'Model inputs'!$H$39*'Model inputs'!$H$40+'Model inputs'!$H$39*'Model inputs'!$H$40*'Model inputs'!$H$41)+'Model inputs'!$I$38*('Model inputs'!$I$39+'Model inputs'!$I$39*'Model inputs'!$I$40+'Model inputs'!$I$39*'Model inputs'!$I$40*'Model inputs'!$I$41)+'Model inputs'!$J$38*('Model inputs'!$J$39+'Model inputs'!$J$39*'Model inputs'!$J$40+'Model inputs'!$J$39*'Model inputs'!$J$40*'Model inputs'!$J$41)) -> 0 | AE18: ='Model inputs'!$C35 -> 2030 | AF18: 136875 | AG18: ='Model inputs'!$F35*('Model inputs'!$E$38*('Model inputs'!$E$39+'Model inputs'!$E$39*'Model inputs'!$E$40+'Model inputs'!$E$39*'Model inputs'!$E$40*'Model inputs'!$E$41)+'Model inputs'!$F$38*('Model inputs'!$F$39+'Model inputs'!$F$39*'Model inputs'!$F$40+'Model inputs'!$F$39*'Model inputs'!$F$40*'Model inputs'!$F$41)+'Model inputs'!$G$38*('Model inputs'!$G$39+'Model inputs'!$G$39*'Model inputs'!$G$40+'Model inputs'!$G$39*'Model inputs'!$G$40*'Model inputs'!$G$41)) -> 136875 | AH18: ='Model inputs'!$H35*('Model inputs'!$H$38*('Model inputs'!$H$39+'Model inputs'!$H$39*'Model inputs'!$H$40+'Model inputs'!$H$39*'Model inputs'!$H$40*'Model inputs'!$H$41)+'Model inputs'!$I$38*('Model inputs'!$I$39+'Model inputs'!$I$39*'Model inputs'!$I$40+'Model inputs'!$I$39*'Model inputs'!$I$40*'Model inputs'!$I$41)+'Model inputs'!$J$38*('Model inputs'!$J$39+'Model inputs'!$J$39*'Model inputs'!$J$40+'Model inputs'!$J$39*'Model inputs'!$J$40*'Model inputs'!$J$41)) -> 0 | AL18: ='Model inputs'!$C35 -> 2030 | AM18: 136875 | AN18: ='Model inputs'!$F35*('Model inputs'!$E$38*('Model inputs'!$E$39+'Model inputs'!$E$39*'Model inputs'!$E$40+'Model inputs'!$E$39*'Model inputs'!$E$40*'Model inputs'!$E$41)+'Model inputs'!$F$38*('Model inputs'!$F$39+'Model inputs'!$F$39*'Model inputs'!$F$40+'Model inputs'!$F$39*'Model inputs'!$F$40*'Model inputs'!$F$41)+'Model inputs'!$G$38*('Model inputs'!$G$39+'Model inputs'!$G$39*'Model inputs'!$G$40+'Model inputs'!$G$39*'Model inputs'!$G$40*'Model inputs'!$G$41)) -> 136875 | AO18: ='Model inputs'!$H35*('Model inputs'!$H$38*('Model inputs'!$H$39+'Model inputs'!$H$39*'Model inputs'!$H$40+'Model inputs'!$H$39*'Model inputs'!$H$40*'Model inputs'!$H$41)+'Model inputs'!$I$38*('Model inputs'!$I$39+'Model inputs'!$I$39*'Model inputs'!$I$40+'Model inputs'!$I$39*'Model inputs'!$I$40*'Model inputs'!$I$41)+'Model inputs'!$J$38*('Model inputs'!$J$39+'Model inputs'!$J$39*'Model inputs'!$J$40+'Model inputs'!$J$39*'Model inputs'!$J$40*'Model inputs'!$J$41)) -> 0
B19: ='Model inputs'!$C36 -> 2031 | C19: 136875 | D19: ='Model inputs'!$F36*('Model inputs'!$E$38*('Model inputs'!$E$39+'Model inputs'!$E$39*'Model inputs'!$E$40+'Model inputs'!$E$39*'Model inputs'!$E$40*'Model inputs'!$E$41)+'Model inputs'!$F$38*('Model inputs'!$F$39+'Model inputs'!$F$39*'Model inputs'!$F$40+'Model inputs'!$F$39*'Model inputs'!$F$40*'Model inputs'!$F$41)+'Model inputs'!$G$38*('Model inputs'!$G$39+'Model inputs'!$G$39*'Model inputs'!$G$40+'Model inputs'!$G$39*'Model inputs'!$G$40*'Model inputs'!$G$41)) -> 136875 | E19: ='Model inputs'!$H36*('Model inputs'!$H$38*('Model inputs'!$H$39+'Model inputs'!$H$39*'Model inputs'!$H$40+'Model inputs'!$H$39*'Model inputs'!$H$40*'Model inputs'!$H$41)+'Model inputs'!$I$38*('Model inputs'!$I$39+'Model inputs'!$I$39*'Model inputs'!$I$40+'Model inputs'!$I$39*'Model inputs'!$I$40*'Model inputs'!$I$41)+'Model inputs'!$J$38*('Model inputs'!$J$39+'Model inputs'!$J$39*'Model inputs'!$J$40+'Model inputs'!$J$39*'Model inputs'!$J$40*'Model inputs'!$J$41)) -> 0 | I19: ='Model inputs'!$C36 -> 2031 | J19: 136875 | K19: ='Model inputs'!$F36*('Model inputs'!$E$38*('Model inputs'!$E$39+'Model inputs'!$E$39*'Model inputs'!$E$40+'Model inputs'!$E$39*'Model inputs'!$E$40*'Model inputs'!$E$41)+'Model inputs'!$F$38*('Model inputs'!$F$39+'Model inputs'!$F$39*'Model inputs'!$F$40+'Model inputs'!$F$39*'Model inputs'!$F$40*'Model inputs'!$F$41)+'Model inputs'!$G$38*('Model inputs'!$G$39+'Model inputs'!$G$39*'Model inputs'!$G$40+'Model inputs'!$G$39*'Model inputs'!$G$40*'Model inputs'!$G$41)) -> 136875 | L19: ='Model inputs'!$H36*('Model inputs'!$H$38*('Model inputs'!$H$39+'Model inputs'!$H$39*'Model inputs'!$H$40+'Model inputs'!$H$39*'Model inputs'!$H$40*'Model inputs'!$H$41)+'Model inputs'!$I$38*('Model inputs'!$I$39+'Model inputs'!$I$39*'Model inputs'!$I$40+'Model inputs'!$I$39*'Model inputs'!$I$40*'Model inputs'!$I$41)+'Model inputs'!$J$38*('Model inputs'!$J$39+'Model inputs'!$J$39*'Model inputs'!$J$40+'Model inputs'!$J$39*'Model inputs'!$J$40*'Model inputs'!$J$41)) -> 0 | P19: ='Model inputs'!$C36 -> 2031 | Q19: 136875 | R19: ='Model inputs'!$F36*('Model inputs'!$E$38*('Model inputs'!$E$39+'Model inputs'!$E$39*'Model inputs'!$E$40+'Model inputs'!$E$39*'Model inputs'!$E$40*'Model inputs'!$E$41)+'Model inputs'!$F$38*('Model inputs'!$F$39+'Model inputs'!$F$39*'Model inputs'!$F$40+'Model inputs'!$F$39*'Model inputs'!$F$40*'Model inputs'!$F$41)+'Model inputs'!$G$38*('Model inputs'!$G$39+'Model inputs'!$G$39*'Model inputs'!$G$40+'Model inputs'!$G$39*'Model inputs'!$G$40*'Model inputs'!$G$41)) -> 136875 | S19: ='Model inputs'!$H36*('Model inputs'!$H$38*('Model inputs'!$H$39+'Model inputs'!$H$39*'Model inputs'!$H$40+'Model inputs'!$H$39*'Model inputs'!$H$40*'Model inputs'!$H$41)+'Model inputs'!$I$38*('Model inputs'!$I$39+'Model inputs'!$I$39*'Model inputs'!$I$40+'Model inputs'!$I$39*'Model inputs'!$I$40*'Model inputs'!$I$41)+'Model inputs'!$J$38*('Model inputs'!$J$39+'Model inputs'!$J$39*'Model inputs'!$J$40+'Model inputs'!$J$39*'Model inputs'!$J$40*'Model inputs'!$J$41)) -> 0 | X19: ='Model inputs'!$C36 -> 2031 | Y19: 136875 | Z19: ='Model inputs'!$F36*('Model inputs'!$E$38*('Model inputs'!$E$39+'Model inputs'!$E$39*'Model inputs'!$E$40+'Model inputs'!$E$39*'Model inputs'!$E$40*'Model inputs'!$E$41)+'Model inputs'!$F$38*('Model inputs'!$F$39+'Model inputs'!$F$39*'Model inputs'!$F$40+'Model inputs'!$F$39*'Model inputs'!$F$40*'Model inputs'!$F$41)+'Model inputs'!$G$38*('Model inputs'!$G$39+'Model inputs'!$G$39*'Model inputs'!$G$40+'Model inputs'!$G$39*'Model inputs'!$G$40*'Model inputs'!$G$41)) -> 136875 | AA19: ='Model inputs'!$H36*('Model inputs'!$H$38*('Model inputs'!$H$39+'Model inputs'!$H$39*'Model inputs'!$H$40+'Model inputs'!$H$39*'Model inputs'!$H$40*'Model inputs'!$H$41)+'Model inputs'!$I$38*('Model inputs'!$I$39+'Model inputs'!$I$39*'Model inputs'!$I$40+'Model inputs'!$I$39*'Model inputs'!$I$40*'Model inputs'!$I$41)+'Model inputs'!$J$38*('Model inputs'!$J$39+'Model inputs'!$J$39*'Model inputs'!$J$40+'Model inputs'!$J$39*'Model inputs'!$J$40*'Model inputs'!$J$41)) -> 0 | AE19: ='Model inputs'!$C36 -> 2031 | AF19: 136875 | AG19: ='Model inputs'!$F36*('Model inputs'!$E$38*('Model inputs'!$E$39+'Model inputs'!$E$39*'Model inputs'!$E$40+'Model inputs'!$E$39*'Model inputs'!$E$40*'Model inputs'!$E$41)+'Model inputs'!$F$38*('Model inputs'!$F$39+'Model inputs'!$F$39*'Model inputs'!$F$40+'Model inputs'!$F$39*'Model inputs'!$F$40*'Model inputs'!$F$41)+'Model inputs'!$G$38*('Model inputs'!$G$39+'Model inputs'!$G$39*'Model inputs'!$G$40+'Model inputs'!$G$39*'Model inputs'!$G$40*'Model inputs'!$G$41)) -> 136875 | AH19: ='Model inputs'!$H36*('Model inputs'!$H$38*('Model inputs'!$H$39+'Model inputs'!$H$39*'Model inputs'!$H$40+'Model inputs'!$H$39*'Model inputs'!$H$40*'Model inputs'!$H$41)+'Model inputs'!$I$38*('Model inputs'!$I$39+'Model inputs'!$I$39*'Model inputs'!$I$40+'Model inputs'!$I$39*'Model inputs'!$I$40*'Model inputs'!$I$41)+'Model inputs'!$J$38*('Model inputs'!$J$39+'Model inputs'!$J$39*'Model inputs'!$J$40+'Model inputs'!$J$39*'Model inputs'!$J$40*'Model inputs'!$J$41)) -> 0 | AL19: ='Model inputs'!$C36 -> 2031 | AM19: 136875 | AN19: ='Model inputs'!$F36*('Model inputs'!$E$38*('Model inputs'!$E$39+'Model inputs'!$E$39*'Model inputs'!$E$40+'Model inputs'!$E$39*'Model inputs'!$E$40*'Model inputs'!$E$41)+'Model inputs'!$F$38*('Model inputs'!$F$39+'Model inputs'!$F$39*'Model inputs'!$F$40+'Model inputs'!$F$39*'Model inputs'!$F$40*'Model inputs'!$F$41)+'Model inputs'!$G$38*('Model inputs'!$G$39+'Model inputs'!$G$39*'Model inputs'!$G$40+'Model inputs'!$G$39*'Model inputs'!$G$40*'Model inputs'!$G$41)) -> 136875 | AO19: ='Model inputs'!$H36*('Model inputs'!$H$38*('Model inputs'!$H$39+'Model inputs'!$H$39*'Model inputs'!$H$40+'Model inputs'!$H$39*'Model inputs'!$H$40*'Model inputs'!$H$41)+'Model inputs'!$I$38*('Model inputs'!$I$39+'Model inputs'!$I$39*'Model inputs'!$I$40+'Model inputs'!$I$39*'Model inputs'!$I$40*'Model inputs'!$I$41)+'Model inputs'!$J$38*('Model inputs'!$J$39+'Model inputs'!$J$39*'Model inputs'!$J$40+'Model inputs'!$J$39*'Model inputs'!$J$40*'Model inputs'!$J$41)) -> 0
B20: Total doses required includes doses wasted | D20: Single aged cohort | E20: MAC | I20: Total doses required includes doses wasted | K20: Single aged cohort | L20: MAC | P20: Total doses required includes doses wasted | R20: Single aged cohort | S20: MAC | X20: Total doses required includes doses wasted | Z20: Single aged cohort | AA20: MAC | AE20: Total doses required includes doses wasted | AG20: Single aged cohort | AH20: MAC | AL20: Total doses required includes doses wasted | AN20: Single aged cohort | AO20: MAC
B21: Total for 10 years | C21: =SUM(C22:C31) -> 1982894.737 | D21: =SUM(D22:D31) -> 1440789.474 | E21: =SUM(E22:E31) -> 542105.2632 | I21: Total for 10 years | J21: =SUM(J22:J31) -> 1982894.737 | K21: =SUM(K22:K31) -> 1440789.474 | L21: =SUM(L22:L31) -> 542105.2632 | P21: Total for 10 years | Q21: =SUM(Q22:Q31) -> 1982894.737 | R21: =SUM(R22:R31) -> 1440789.474 | S21: =SUM(S22:S31) -> 542105.2632 | X21: Total for 10 years | Y21: =SUM(Y22:Y31) -> 1982894.737 | Z21: =SUM(Z22:Z31) -> 1440789.474 | AA21: =SUM(AA22:AA31) -> 542105.2632 | AE21: Total for 10 years | AF21: =SUM(AF22:AF31) -> 1982894.737 | AG21: =SUM(AG22:AG31) -> 1440789.474 | AH21: =SUM(AH22:AH31) -> 542105.2632 | AL21: Total for 10 years | AM21: =SUM(AM22:AM31) -> 1982894.737 | AN21: =SUM(AN22:AN31) -> 1440789.474 | AO21: =SUM(AO22:AO31) -> 542105.2632
B22: ='Model inputs'!$C27 -> 2022 | C22: =SUM(D22:E22) -> 686184.2105 | D22: =D10*'Model inputs'!$D$134 -> 144078.9474 | E22: =E10*'Model inputs'!$D$134 -> 542105.2632 | I22: ='Model inputs'!$C27 -> 2022 | J22: =SUM(K22:L22) -> 686184.2105 | K22: =K10*'Model inputs'!$J$134 -> 144078.9474 | L22: =L10*'Model inputs'!$J$134 -> 542105.2632 | P22: ='Model inputs'!$C27 -> 2022 | Q22: =SUM(R22:S22) -> 686184.2105 | R22: =R10*'Model inputs'!$P$134 -> 144078.9474 | S22: =S10*'Model inputs'!$P$134 -> 542105.2632 | X22: ='Model inputs'!$C27 -> 2022 | Y22: =SUM(Z22:AA22) -> 686184.2105 | Z22: =Z10*'Model inputs'!$V$134 -> 144078.9474 | AA22: =AA10*'Model inputs'!$V$134 -> 542105.2632 | AE22: ='Model inputs'!$C27 -> 2022 | AF22: =SUM(AG22:AH22) -> 686184.2105 | AG22: =AG10*'Model inputs'!$AB$134 -> 144078.9474 | AH22: =AH10*'Model inputs'!$AB$134 -> 542105.2632 | AL22: ='Model inputs'!$C27 -> 2022 | AM22: =SUM(AN22:AO22) -> 686184.2105 | AN22: =AN10*'Model inputs'!$AH$134 -> 144078.9474 | AO22: =AO10*'Model inputs'!$AH$134 -> 542105.2632
B23: ='Model inputs'!$C28 -> 2023 | C23: =SUM(D23:E23) -> 144078.9474 | D23: =D11*'Model inputs'!$D$134 -> 144078.9474 | E23: =E11*'Model inputs'!$D$134 -> 0 | I23: ='Model inputs'!$C28 -> 2023 | J23: =SUM(K23:L23) -> 144078.9474 | K23: =K11*'Model inputs'!$J$134 -> 144078.9474 | L23: =L11*'Model inputs'!$J$134 -> 0 | P23: ='Model inputs'!$C28 -> 2023 | Q23: =SUM(R23:S23) -> 144078.9474 | R23: =R11*'Model inputs'!$P$134 -> 144078.9474 | S23: =S11*'Model inputs'!$P$134 -> 0 | X23: ='Model inputs'!$C28 -> 2023 | Y23: =SUM(Z23:AA23) -> 144078.9474 | Z23: =Z11*'Model inputs'!$V$134 -> 144078.9474 | AA23: =AA11*'Model inputs'!$V$134 -> 0 | AE23: ='Model inputs'!$C28 -> 2023 | AF23: =SUM(AG23:AH23) -> 144078.9474 | AG23: =AG11*'Model inputs'!$AB$134 -> 144078.9474 | AH23: =AH11*'Model inputs'!$AB$134 -> 0 | AL23: ='Model inputs'!$C28 -> 2023 | AM23: =SUM(AN23:AO23) -> 144078.9474 | AN23: =AN11*'Model inputs'!$AH$134 -> 144078.9474 | AO23: =AO11*'Model inputs'!$AH$134 -> 0
B24: ='Model inputs'!$C29 -> 2024 | C24: 144078.9474 | D24: =D12*'Model inputs'!$D$134 -> 144078.9474 | E24: =E12*'Model inputs'!$D$134 -> 0 | I24: ='Model inputs'!$C29 -> 2024 | J24: 144078.9474 | K24: =K12*'Model inputs'!$J$134 -> 144078.9474 | L24: =L12*'Model inputs'!$J$134 -> 0 | P24: ='Model inputs'!$C29 -> 2024 | Q24: 144078.9474 | R24: =R12*'Model inputs'!$P$134 -> 144078.9474 | S24: =S12*'Model inputs'!$P$134 -> 0 | X24: ='Model inputs'!$C29 -> 2024 | Y24: 144078.9474 | Z24: =Z12*'Model inputs'!$V$134 -> 144078.9474 | AA24: =AA12*'Model inputs'!$V$134 -> 0 | AE24: ='Model inputs'!$C29 -> 2024 | AF24: 144078.9474 | AG24: =AG12*'Model inputs'!$AB$134 -> 144078.9474 | AH24: =AH12*'Model inputs'!$AB$134 -> 0 | AL24: ='Model inputs'!$C29 -> 2024 | AM24: 144078.9474 | AN24: =AN12*'Model inputs'!$AH$134 -> 144078.9474 | AO24: =AO12*'Model inputs'!$AH$134 -> 0
B25: ='Model inputs'!$C30 -> 2025 | C25: 144078.9474 | D25: =D13*'Model inputs'!$D$134 -> 144078.9474 | E25: =E13*'Model inputs'!$D$134 -> 0 | I25: ='Model inputs'!$C30 -> 2025 | J25: 144078.9474 | K25: =K13*'Model inputs'!$J$134 -> 144078.9474 | L25: =L13*'Model inputs'!$J$134 -> 0 | P25: ='Model inputs'!$C30 -> 2025 | Q25: 144078.9474 | R25: =R13*'Model inputs'!$P$134 -> 144078.9474 | S25: =S13*'Model inputs'!$P$134 -> 0 | X25: ='Model inputs'!$C30 -> 2025 | Y25: 144078.9474 | Z25: =Z13*'Model inputs'!$V$134 -> 144078.9474 | AA25: =AA13*'Model inputs'!$V$134 -> 0 | AE25: ='Model inputs'!$C30 -> 2025 | AF25: 144078.9474 | AG25: =AG13*'Model inputs'!$AB$134 -> 144078.9474 | AH25: =AH13*'Model inputs'!$AB$134 -> 0 | AL25: ='Model inputs'!$C30 -> 2025 | AM25: 144078.9474 | AN25: =AN13*'Model inputs'!$AH$134 -> 144078.9474 | AO25: =AO13*'Model inputs'!$AH$134 -> 0
B26: ='Model inputs'!$C31 -> 2026 | C26: 144078.9474 | D26: =D14*'Model inputs'!$D$134 -> 144078.9474 | E26: =E14*'Model inputs'!$D$134 -> 0 | I26: ='Model inputs'!$C31 -> 2026 | J26: 144078.9474 | K26: =K14*'Model inputs'!$J$134 -> 144078.9474 | L26: =L14*'Model inputs'!$J$134 -> 0 | P26: ='Model inputs'!$C31 -> 2026 | Q26: 144078.9474 | R26: =R14*'Model inputs'!$P$134 -> 144078.9474 | S26: =S14*'Model inputs'!$P$134 -> 0 | X26: ='Model inputs'!$C31 -> 2026 | Y26: 144078.9474 | Z26: =Z14*'Model inputs'!$V$134 -> 144078.9474 | AA26: =AA14*'Model inputs'!$V$134 -> 0 | AE26: ='Model inputs'!$C31 -> 2026 | AF26: 144078.9474 | AG26: =AG14*'Model inputs'!$AB$134 -> 144078.9474 | AH26: =AH14*'Model inputs'!$AB$134 -> 0 | AL26: ='Model inputs'!$C31 -> 2026 | AM26: 144078.9474 | AN26: =AN14*'Model inputs'!$AH$134 -> 144078.9474 | AO26: =AO14*'Model inputs'!$AH$134 -> 0
B27: ='Model inputs'!$C32 -> 2027 | C27: 144078.9474 | D27: =D15*'Model inputs'!$D$134 -> 144078.9474 | E27: =E15*'Model inputs'!$D$134 -> 0 | I27: ='Model inputs'!$C32 -> 2027 | J27: 144078.9474 | K27: =K15*'Model inputs'!$J$134 -> 144078.9474 | L27: =L15*'Model inputs'!$J$134 -> 0 | P27: ='Model inputs'!$C32 -> 2027 | Q27: 144078.9474 | R27: =R15*'Model inputs'!$P$134 -> 144078.9474 | S27: =S15*'Model inputs'!$P$134 -> 0 | X27: ='Model inputs'!$C32 -> 2027 | Y27: 144078.9474 | Z27: =Z15*'Model inputs'!$V$134 -> 144078.9474 | AA27: =AA15*'Model inputs'!$V$134 -> 0 | AE27: ='Model inputs'!$C32 -> 2027 | AF27: 144078.9474 | AG27: =AG15*'Model inputs'!$AB$134 -> 144078.9474 | AH27: =AH15*'Model inputs'!$AB$134 -> 0 | AL27: ='Model inputs'!$C32 -> 2027 | AM27: 144078.9474 | AN27: =AN15*'Model inputs'!$AH$134 -> 144078.9474 | AO27: =AO15*'Model inputs'!$AH$134 -> 0
B28: ='Model inputs'!$C33 -> 2028 | C28: 144078.9474 | D28: =D16*'Model inputs'!$D$134 -> 144078.9474 | E28: =E16*'Model inputs'!$D$134 -> 0 | I28: ='Model inputs'!$C33 -> 2028 | J28: 144078.9474 | K28: =K16*'Model inputs'!$J$134 -> 144078.9474 | L28: =L16*'Model inputs'!$J$134 -> 0 | P28: ='Model inputs'!$C33 -> 2028 | Q28: 144078.9474 | R28: =R16*'Model inputs'!$P$134 -> 144078.9474 | S28: =S16*'Model inputs'!$P$134 -> 0 | X28: ='Model inputs'!$C33 -> 2028 | Y28: 144078.9474 | Z28: =Z16*'Model inputs'!$V$134 -> 144078.9474 | AA28: =AA16*'Model inputs'!$V$134 -> 0 | AE28: ='Model inputs'!$C33 -> 2028 | AF28: 144078.9474 | AG28: =AG16*'Model inputs'!$AB$134 -> 144078.9474 | AH28: =AH16*'Model inputs'!$AB$134 -> 0 | AL28: ='Model inputs'!$C33 -> 2028 | AM28: 144078.9474 | AN28: =AN16*'Model inputs'!$AH$134 -> 144078.9474 | AO28: =AO16*'Model inputs'!$AH$134 -> 0
B29: ='Model inputs'!$C34 -> 2029 | C29: 144078.9474 | D29: =D17*'Model inputs'!$D$134 -> 144078.9474 | E29: =E17*'Model inputs'!$D$134 -> 0 | I29: ='Model inputs'!$C34 -> 2029 | J29: 144078.9474 | K29: =K17*'Model inputs'!$J$134 -> 144078.9474 | L29: =L17*'Model inputs'!$J$134 -> 0 | P29: ='Model inputs'!$C34 -> 2029 | Q29: 144078.9474 | R29: =R17*'Model inputs'!$P$134 -> 144078.9474 | S29: =S17*'Model inputs'!$P$134 -> 0 | X29: ='Model inputs'!$C34 -> 2029 | Y29: 144078.9474 | Z29: =Z17*'Model inputs'!$V$134 -> 144078.9474 | AA29: =AA17*'Model inputs'!$V$134 -> 0 | AE29: ='Model inputs'!$C34 -> 2029 | AF29: 144078.9474 | AG29: =AG17*'Model inputs'!$AB$134 -> 144078.9474 | AH29: =AH17*'Model inputs'!$AB$134 -> 0 | AL29: ='Model inputs'!$C34 -> 2029 | AM29: 144078.9474 | AN29: =AN17*'Model inputs'!$AH$134 -> 144078.9474 | AO29: =AO17*'Model inputs'!$AH$134 -> 0
B30: ='Model inputs'!$C35 -> 2030 | C30: 144078.9474 | D30: =D18*'Model inputs'!$D$134 -> 144078.9474 | E30: =E18*'Model inputs'!$D$134 -> 0 | I30: ='Model inputs'!$C35 -> 2030 | J30: 144078.9474 | K30: =K18*'Model inputs'!$J$134 -> 144078.9474 | L30: =L18*'Model inputs'!$J$134 -> 0 | P30: ='Model inputs'!$C35 -> 2030 | Q30: 144078.9474 | R30: =R18*'Model inputs'!$P$134 -> 144078.9474 | S30: =S18*'Model inputs'!$P$134 -> 0 | X30: ='Model inputs'!$C35 -> 2030 | Y30: 144078.9474 | Z30: =Z18*'Model inputs'!$V$134 -> 144078.9474 | AA30: =AA18*'Model inputs'!$V$134 -> 0 | AE30: ='Model inputs'!$C35 -> 2030 | AF30: 144078.9474 | AG30: =AG18*'Model inputs'!$AB$134 -> 144078.9474 | AH30: =AH18*'Model inputs'!$AB$134 -> 0 | AL30: ='Model inputs'!$C35 -> 2030 | AM30: 144078.9474 | AN30: =AN18*'Model inputs'!$AH$134 -> 144078.9474 | AO30: =AO18*'Model inputs'!$AH$134 -> 0
B31: ='Model inputs'!$C36 -> 2031 | C31: 144078.9474 | D31: =D19*'Model inputs'!$D$134 -> 144078.9474 | E31: =E19*'Model inputs'!$D$134 -> 0 | I31: ='Model inputs'!$C36 -> 2031 | J31: 144078.9474 | K31: =K19*'Model inputs'!$J$134 -> 144078.9474 | L31: =L19*'Model inputs'!$J$134 -> 0 | P31: ='Model inputs'!$C36 -> 2031 | Q31: 144078.9474 | R31: =R19*'Model inputs'!$P$134 -> 144078.9474 | S31: =S19*'Model inputs'!$P$134 -> 0 | X31: ='Model inputs'!$C36 -> 2031 | Y31: 144078.9474 | Z31: =Z19*'Model inputs'!$V$134 -> 144078.9474 | AA31: =AA19*'Model inputs'!$V$134 -> 0 | AE31: ='Model inputs'!$C36 -> 2031 | AF31: 144078.9474 | AG31: =AG19*'Model inputs'!$AB$134 -> 144078.9474 | AH31: =AH19*'Model inputs'!$AB$134 -> 0 | AL31: ='Model inputs'!$C36 -> 2031 | AM31: 144078.9474 | AN31: =AN19*'Model inputs'!$AH$134 -> 144078.9474 | AO31: =AO19*'Model inputs'!$AH$134 -> 0
B33: COUNTRY COST | I33: COUNTRY COST | P33: COUNTRY COST | X33: COUNTRY COST | AE33: COUNTRY COST | AL33: COUNTRY COST
B34: Vaccine cost Cost of vaccines and supplies procurement less any vaccine cost subsidies | D34: Single aged cohort | E34: MAC | F34: SAC Subsidies | G34: MAC Subsidies | I34: Vaccine cost Cost of vaccines and supplies procurement | K34: Single aged cohort | L34: MAC | M34: SAC Subsidies | N34: MAC Subsidies | P34: Vaccine cost Cost of vaccines and supplies procurement | R34: Single aged cohort | S34: MAC | T34: SAC Subsidies | U34: MAC Subsidies | X34: Vaccine cost Cost of vaccines and supplies procurement | Z34: Single aged cohort | AA34: MAC | AB34: SAC Subsidies | AC34: MAC Subsidies | AE34: Vaccine cost Cost of vaccines and supplies procurement | AG34: Single aged cohort | AH34: MAC | AI34: SAC Subsidies | AJ34: MAC Subsidies | AL34: Vaccine cost Cost of vaccines and supplies procurement | AN34: Single aged cohort | AO34: MAC | AP34: SAC Subsidies | AQ34: MAC Subsidies
B35: Total for 10 years | C35: =SUM(C36:C45) -> 3724292.967 | D35: =SUM(D36:D45) -> 3664165.362 | E35: =SUM(E36:E45) -> 426048.6579 | F35: =SUM(F36:F45) -> 0 | G35: =SUM(G36:G45) -> 365921.0526 | I35: Total for 10 years | J35: =SUM(J36:J45) -> 4274066.257 | K35: =SUM(K36:K45) -> 4208409.178 | L35: =SUM(L36:L45) -> 486872.8684 | M35: =SUM(M36:M45) -> 0 | N35: =SUM(N36:N45) -> 421215.7895 | P35: Total for 10 years | Q35: =SUM(Q36:Q45) -> 2511557.77 | R35: =SUM(R36:R45) -> 2463627.533 | S35: =SUM(S36:S45) -> 291877.6053 | T35: =SUM(T36:T45) -> 0 | U35: =SUM(U36:U45) -> 243947.3684 | X35: Total for 10 years | Y35: =SUM(Y36:Y45) -> 4274066.257 | Z35: =SUM(Z36:Z45) -> 4208409.178 | AA35: =SUM(AA36:AA45) -> 486872.8684 | AB35: =SUM(AB36:AB45) -> 0 | AC35: =SUM(AC36:AC45) -> 421215.7895 | AE35: Total for 10 years | AF35: =SUM(AF36:AF45) -> 5664669.283 | AG35: =SUM(AG36:AG45) -> 5585025.888 | AH35: =SUM(AH36:AH45) -> 640722.3421 | AI35: =SUM(AI36:AI45) -> 0 | AJ35: =SUM(AJ36:AJ45) -> 561078.9474 | AL35: Total for 10 years | AM35: =SUM(AM36:AM45) -> 2511557.77 | AN35: =SUM(AN36:AN45) -> 2463627.533 | AO35: =SUM(AO36:AO45) -> 291877.6053 | AP35: =SUM(AP36:AP45) -> 0 | AQ35: =SUM(AQ36:AQ45) -> 243947.3684
B36: ='Model inputs'!$C27 -> 2022 | C36: =D36+E36-F36-G36 -> 173361.4112 | D36: =D22*('Model inputs'!$D122+'Model inputs'!$D122*'Model inputs'!$D$135+'Model inputs'!$D122*'Model inputs'!$D$136)+(D10/'Model inputs'!$D$138*'Model inputs'!$D$137)+(D10*'Model inputs'!$D$139) -> 113233.8059 | E36: =E22*('Model inputs'!$D122+'Model inputs'!$D122*'Model inputs'!$D$135+'Model inputs'!$D122*'Model inputs'!$D$136)+(E10/'Model inputs'!$D$138*'Model inputs'!$D$137)+(E10*'Model inputs'!$D$139) -> 426048.6579 | F36: 0 | G36: =IF(E22>0,E22*'Model inputs'!$D122*'Model inputs'!$D$106,0) -> 365921.0526 | I36: ='Model inputs'!$C27 -> 2022 | J36: =K36+L36-M36-N36 -> 195056.5428 | K36: =K22*('Model inputs'!$J122+'Model inputs'!$J122*'Model inputs'!$J$135+'Model inputs'!$J122*'Model inputs'!$J$136)+(K10/'Model inputs'!$J$138*'Model inputs'!$J$137)+(K10*'Model inputs'!$J$139) -> 129399.4638 | L36: =L22*('Model inputs'!$J122+'Model inputs'!$J122*'Model inputs'!$J$135+'Model inputs'!$J122*'Model inputs'!$J$136)+(L10/'Model inputs'!$J$138*'Model inputs'!$J$137)+(L10*'Model inputs'!$J$139) -> 486872.8684 | M36: 0 | N36: =IF(L22>0,L22*'Model inputs'!$J122*'Model inputs'!$D$106,0) -> 421215.7895 | P36: ='Model inputs'!$C27 -> 2022 | Q36: =R36+S36-T36-U36 -> 125504.5033 | R36: =R22*('Model inputs'!$P122+'Model inputs'!$P122*'Model inputs'!$P$135+'Model inputs'!$P122*'Model inputs'!$P$136)+(R10/'Model inputs'!$P$138*'Model inputs'!$P$137)+(R10*'Model inputs'!$P$139) -> 77574.26645 | S36: =S22*('Model inputs'!$P122+'Model inputs'!$P122*'Model inputs'!$P$135+'Model inputs'!$P122*'Model inputs'!$P$136)+(S10/'Model inputs'!$P$138*'Model inputs'!$P$137)+(S10*'Model inputs'!$P$139) -> 291877.6053 | T36: 0 | U36: =IF(S22>0,S22*'Model inputs'!$P122*'Model inputs'!$D$106,0) -> 243947.3684 | X36: ='Model inputs'!$C27 -> 2022 | Y36: =Z36+AA36-AB36-AC36 -> 195056.5428 | Z36: =Z22*('Model inputs'!$V122+'Model inputs'!$V122*'Model inputs'!$V$135+'Model inputs'!$V122*'Model inputs'!$V$136)+(Z10/'Model inputs'!$V$138*'Model inputs'!$V$137)+(Z10*'Model inputs'!$V$139) -> 129399.4638 | AA36: =AA22*('Model inputs'!$V122+'Model inputs'!$V122*'Model inputs'!$V$135+'Model inputs'!$V122*'Model inputs'!$V$136)+(AA10/'Model inputs'!$V$138*'Model inputs'!$V$137)+(AA10*'Model inputs'!$V$139) -> 486872.8684 | AB36: 0 | AC36: =IF(AA22>0,AA22*'Model inputs'!$V122*'Model inputs'!$D$106,0) -> 421215.7895 | AE36: ='Model inputs'!$C27 -> 2022 | AF36: =AG36+AH36-AI36-AJ36 -> 249932.4638 | AG36: =AG22*('Model inputs'!$AB122+'Model inputs'!$AB122*'Model inputs'!$AB$135+'Model inputs'!$AB122*'Model inputs'!$AB$136)+(AG10/'Model inputs'!$AB$138*'Model inputs'!$AB$137)+(AG10*'Model inputs'!$AB$139) -> 170289.0691 | AH36: =AH22*('Model inputs'!$AB122+'Model inputs'!$AB122*'Model inputs'!$AB$135+'Model inputs'!$AB122*'Model inputs'!$AB$136)+(AH10/'Model inputs'!$AB$138*'Model inputs'!$AB$137)+(AH10*'Model inputs'!$AB$139) -> 640722.3421 | AI36: 0 | AJ36: =IF(AH22>0,AH22*'Model inputs'!$AB122*'Model inputs'!$D$106,0) -> 561078.9474 | AL36: ='Model inputs'!$C27 -> 2022 | AM36: =AN36+AO36-AP36-AQ36 -> 125504.5033 | AN36: =AN22*('Model inputs'!$AH122+'Model inputs'!$AH122*'Model inputs'!$AH$135+'Model inputs'!$AH122*'Model inputs'!$AH$136)+(AN10/'Model inputs'!$AH$138*'Model inputs'!$AH$137)+(AN10*'Model inputs'!$AH$139) -> 77574.26645 | AO36: =AO22*('Model inputs'!$AH122+'Model inputs'!$AH122*'Model inputs'!$AH$135+'Model inputs'!$AH122*'Model inputs'!$AH$136)+(AO10/'Model inputs'!$AH$138*'Model inputs'!$AH$137)+(AO10*'Model inputs'!$AH$139) -> 291877.6053 | AP36: 0 | AQ36: =IF(AO22>0,AO22*'Model inputs'!$AH122*'Model inputs'!$D$106,0) -> 243947.3684
B37: ='Model inputs'!$C28 -> 2023 | C37: =D37+E37-F37-G37 -> 184552.8849 | D37: =D23*('Model inputs'!$D123+'Model inputs'!$D123*'Model inputs'!$D$135+'Model inputs'!$D123*'Model inputs'!$D$136)+(D11/'Model inputs'!$D$138*'Model inputs'!$D$137)+(D11*'Model inputs'!$D$139) -> 184552.8849 | E37: =E23*('Model inputs'!$D123+'Model inputs'!$D123*'Model inputs'!$D$135+'Model inputs'!$D123*'Model inputs'!$D$136)+(E11/'Model inputs'!$D$138*'Model inputs'!$D$137)+(E11*'Model inputs'!$D$139) -> 0 | F37: 0 | G37: =IF(E23>0,E23*'Model inputs'!$D123*'Model inputs'!$D$106,0) -> 0 | I37: ='Model inputs'!$C28 -> 2023 | J37: =K37+L37-M37-N37 -> 211495.648 | K37: =K23*('Model inputs'!$J123+'Model inputs'!$J123*'Model inputs'!$J$135+'Model inputs'!$J123*'Model inputs'!$J$136)+(K11/'Model inputs'!$J$138*'Model inputs'!$J$137)+(K11*'Model inputs'!$J$139) -> 211495.648 | L37: =L23*('Model inputs'!$J123+'Model inputs'!$J123*'Model inputs'!$J$135+'Model inputs'!$J123*'Model inputs'!$J$136)+(L11/'Model inputs'!$J$138*'Model inputs'!$J$137)+(L11*'Model inputs'!$J$139) -> 0 | M37: 0 | N37: =IF(L23>0,L23*'Model inputs'!$J123*'Model inputs'!$D$106,0) -> 0 | P37: ='Model inputs'!$C28 -> 2023 | Q37: =R37+S37-T37-U37 -> 125120.3191 | R37: =R23*('Model inputs'!$P123+'Model inputs'!$P123*'Model inputs'!$P$135+'Model inputs'!$P123*'Model inputs'!$P$136)+(R11/'Model inputs'!$P$138*'Model inputs'!$P$137)+(R11*'Model inputs'!$P$139) -> 125120.3191 | S37: =S23*('Model inputs'!$P123+'Model inputs'!$P123*'Model inputs'!$P$135+'Model inputs'!$P123*'Model inputs'!$P$136)+(S11/'Model inputs'!$P$138*'Model inputs'!$P$137)+(S11*'Model inputs'!$P$139) -> 0 | T37: 0 | U37: =IF(S23>0,S23*'Model inputs'!$P123*'Model inputs'!$D$106,0) -> 0 | X37: ='Model inputs'!$C28 -> 2023 | Y37: =Z37+AA37-AB37-AC37 -> 211495.648 | Z37: =Z23*('Model inputs'!$V123+'Model inputs'!$V123*'Model inputs'!$V$135+'Model inputs'!$V123*'Model inputs'!$V$136)+(Z11/'Model inputs'!$V$138*'Model inputs'!$V$137)+(Z11*'Model inputs'!$V$139) -> 211495.648 | AA37: =AA23*('Model inputs'!$V123+'Model inputs'!$V123*'Model inputs'!$V$135+'Model inputs'!$V123*'Model inputs'!$V$136)+(AA11/'Model inputs'!$V$138*'Model inputs'!$V$137)+(AA11*'Model inputs'!$V$139) -> 0 | AB37: 0 | AC37: =IF(AA23>0,AA23*'Model inputs'!$V123*'Model inputs'!$D$106,0) -> 0 | AE37: ='Model inputs'!$C28 -> 2023 | AF37: =AG37+AH37-AI37-AJ37 -> 279644.9901 | AG37: =AG23*('Model inputs'!$AB123+'Model inputs'!$AB123*'Model inputs'!$AB$135+'Model inputs'!$AB123*'Model inputs'!$AB$136)+(AG11/'Model inputs'!$AB$138*'Model inputs'!$AB$137)+(AG11*'Model inputs'!$AB$139) -> 279644.9901 | AH37: =AH23*('Model inputs'!$AB123+'Model inputs'!$AB123*'Model inputs'!$AB$135+'Model inputs'!$AB123*'Model inputs'!$AB$136)+(AH11/'Model inputs'!$AB$138*'Model inputs'!$AB$137)+(AH11*'Model inputs'!$AB$139) -> 0 | AI37: 0 | AJ37: =IF(AH23>0,AH23*'Model inputs'!$AB123*'Model inputs'!$D$106,0) -> 0 | AL37: ='Model inputs'!$C28 -> 2023 | AM37: =AN37+AO37-AP37-AQ37 -> 125120.3191 | AN37: =AN23*('Model inputs'!$AH123+'Model inputs'!$AH123*'Model inputs'!$AH$135+'Model inputs'!$AH123*'Model inputs'!$AH$136)+(AN11/'Model inputs'!$AH$138*'Model inputs'!$AH$137)+(AN11*'Model inputs'!$AH$139) -> 125120.3191 | AO37: =AO23*('Model inputs'!$AH123+'Model inputs'!$AH123*'Model inputs'!$AH$135+'Model inputs'!$AH123*'Model inputs'!$AH$136)+(AO11/'Model inputs'!$AH$138*'Model inputs'!$AH$137)+(AO11*'Model inputs'!$AH$139) -> 0 | AP37: 0 | AQ37: =IF(AO23>0,AO23*'Model inputs'!$AH123*'Model inputs'!$D$106,0) -> 0
B38: ='Model inputs'!$C29 -> 2024 | C38: 220212.4243 | D38: =D24*('Model inputs'!$D124+'Model inputs'!$D124*'Model inputs'!$D$135+'Model inputs'!$D124*'Model inputs'!$D$136)+(D12/'Model inputs'!$D$138*'Model inputs'!$D$137)+(D12*'Model inputs'!$D$139) -> 220212.4243 | E38: =E24*('Model inputs'!$D124+'Model inputs'!$D124*'Model inputs'!$D$135+'Model inputs'!$D124*'Model inputs'!$D$136)+(E12/'Model inputs'!$D$138*'Model inputs'!$D$137)+(E12*'Model inputs'!$D$139) -> 0 | F38: 0 | G38: =IF(E24>0,E24*'Model inputs'!$D124*'Model inputs'!$D$106,0) -> 0 | I38: ='Model inputs'!$C29 -> 2024 | J38: 252543.7401 | K38: =K24*('Model inputs'!$J124+'Model inputs'!$J124*'Model inputs'!$J$135+'Model inputs'!$J124*'Model inputs'!$J$136)+(K12/'Model inputs'!$J$138*'Model inputs'!$J$137)+(K12*'Model inputs'!$J$139) -> 252543.7401 | L38: =L24*('Model inputs'!$J124+'Model inputs'!$J124*'Model inputs'!$J$135+'Model inputs'!$J124*'Model inputs'!$J$136)+(L12/'Model inputs'!$J$138*'Model inputs'!$J$137)+(L12*'Model inputs'!$J$139) -> 0 | M38: 0 | N38: =IF(L24>0,L24*'Model inputs'!$J124*'Model inputs'!$D$106,0) -> 0 | P38: ='Model inputs'!$C29 -> 2024 | Q38: 148893.3454 | R38: =R24*('Model inputs'!$P124+'Model inputs'!$P124*'Model inputs'!$P$135+'Model inputs'!$P124*'Model inputs'!$P$136)+(R12/'Model inputs'!$P$138*'Model inputs'!$P$137)+(R12*'Model inputs'!$P$139) -> 148893.3454 | S38: =S24*('Model inputs'!$P124+'Model inputs'!$P124*'Model inputs'!$P$135+'Model inputs'!$P124*'Model inputs'!$P$136)+(S12/'Model inputs'!$P$138*'Model inputs'!$P$137)+(S12*'Model inputs'!$P$139) -> 0 | T38: 0 | U38: =IF(S24>0,S24*'Model inputs'!$P124*'Model inputs'!$D$106,0) -> 0 | X38: ='Model inputs'!$C29 -> 2024 | Y38: 252543.7401 | Z38: =Z24*('Model inputs'!$V124+'Model inputs'!$V124*'Model inputs'!$V$135+'Model inputs'!$V124*'Model inputs'!$V$136)+(Z12/'Model inputs'!$V$138*'Model inputs'!$V$137)+(Z12*'Model inputs'!$V$139) -> 252543.7401 | AA38: =AA24*('Model inputs'!$V124+'Model inputs'!$V124*'Model inputs'!$V$135+'Model inputs'!$V124*'Model inputs'!$V$136)+(AA12/'Model inputs'!$V$138*'Model inputs'!$V$137)+(AA12*'Model inputs'!$V$139) -> 0 | AB38: 0 | AC38: =IF(AA24>0,AA24*'Model inputs'!$V124*'Model inputs'!$D$106,0) -> 0 | AE38: ='Model inputs'!$C29 -> 2024 | AF38: 334322.9507 | AG38: =AG24*('Model inputs'!$AB124+'Model inputs'!$AB124*'Model inputs'!$AB$135+'Model inputs'!$AB124*'Model inputs'!$AB$136)+(AG12/'Model inputs'!$AB$138*'Model inputs'!$AB$137)+(AG12*'Model inputs'!$AB$139) -> 334322.9507 | AH38: =AH24*('Model inputs'!$AB124+'Model inputs'!$AB124*'Model inputs'!$AB$135+'Model inputs'!$AB124*'Model inputs'!$AB$136)+(AH12/'Model inputs'!$AB$138*'Model inputs'!$AB$137)+(AH12*'Model inputs'!$AB$139) -> 0 | AI38: 0 | AJ38: =IF(AH24>0,AH24*'Model inputs'!$AB124*'Model inputs'!$D$106,0) -> 0 | AL38: ='Model inputs'!$C29 -> 2024 | AM38: 148893.3454 | AN38: =AN24*('Model inputs'!$AH124+'Model inputs'!$AH124*'Model inputs'!$AH$135+'Model inputs'!$AH124*'Model inputs'!$AH$136)+(AN12/'Model inputs'!$AH$138*'Model inputs'!$AH$137)+(AN12*'Model inputs'!$AH$139) -> 148893.3454 | AO38: =AO24*('Model inputs'!$AH124+'Model inputs'!$AH124*'Model inputs'!$AH$135+'Model inputs'!$AH124*'Model inputs'!$AH$136)+(AO12/'Model inputs'!$AH$138*'Model inputs'!$AH$137)+(AO12*'Model inputs'!$AH$139) -> 0 | AP38: 0 | AQ38: =IF(AO24>0,AO24*'Model inputs'!$AH124*'Model inputs'!$D$106,0) -> 0
B39: ='Model inputs'!$C30 -> 2025 | C39: 255871.9638 | D39: =D25*('Model inputs'!$D125+'Model inputs'!$D125*'Model inputs'!$D$135+'Model inputs'!$D125*'Model inputs'!$D$136)+(D13/'Model inputs'!$D$138*'Model inputs'!$D$137)+(D13*'Model inputs'!$D$139) -> 255871.9638 | E39: =E25*('Model inputs'!$D125+'Model inputs'!$D125*'Model inputs'!$D$135+'Model inputs'!$D125*'Model inputs'!$D$136)+(E13/'Model inputs'!$D$138*'Model inputs'!$D$137)+(E13*'Model inputs'!$D$139) -> 0 | F39: 0 | G39: =IF(E25>0,E25*'Model inputs'!$D125*'Model inputs'!$D$106,0) -> 0 | I39: ='Model inputs'!$C30 -> 2025 | J39: 293591.8322 | K39: =K25*('Model inputs'!$J125+'Model inputs'!$J125*'Model inputs'!$J$135+'Model inputs'!$J125*'Model inputs'!$J$136)+(K13/'Model inputs'!$J$138*'Model inputs'!$J$137)+(K13*'Model inputs'!$J$139) -> 293591.8322 | L39: =L25*('Model inputs'!$J125+'Model inputs'!$J125*'Model inputs'!$J$135+'Model inputs'!$J125*'Model inputs'!$J$136)+(L13/'Model inputs'!$J$138*'Model inputs'!$J$137)+(L13*'Model inputs'!$J$139) -> 0 | M39: 0 | N39: =IF(L25>0,L25*'Model inputs'!$J125*'Model inputs'!$D$106,0) -> 0 | P39: ='Model inputs'!$C30 -> 2025 | Q39: 172666.3717 | R39: =R25*('Model inputs'!$P125+'Model inputs'!$P125*'Model inputs'!$P$135+'Model inputs'!$P125*'Model inputs'!$P$136)+(R13/'Model inputs'!$P$138*'Model inputs'!$P$137)+(R13*'Model inputs'!$P$139) -> 172666.3717 | S39: =S25*('Model inputs'!$P125+'Model inputs'!$P125*'Model inputs'!$P$135+'Model inputs'!$P125*'Model inputs'!$P$136)+(S13/'Model inputs'!$P$138*'Model inputs'!$P$137)+(S13*'Model inputs'!$P$139) -> 0 | T39: 0 | U39: =IF(S25>0,S25*'Model inputs'!$P125*'Model inputs'!$D$106,0) -> 0 | X39: ='Model inputs'!$C30 -> 2025 | Y39: 293591.8322 | Z39: =Z25*('Model inputs'!$V125+'Model inputs'!$V125*'Model inputs'!$V$135+'Model inputs'!$V125*'Model inputs'!$V$136)+(Z13/'Model inputs'!$V$138*'Model inputs'!$V$137)+(Z13*'Model inputs'!$V$139) -> 293591.8322 | AA39: =AA25*('Model inputs'!$V125+'Model inputs'!$V125*'Model inputs'!$V$135+'Model inputs'!$V125*'Model inputs'!$V$136)+(AA13/'Model inputs'!$V$138*'Model inputs'!$V$137)+(AA13*'Model inputs'!$V$139) -> 0 | AB39: 0 | AC39: =IF(AA25>0,AA25*'Model inputs'!$V125*'Model inputs'!$D$106,0) -> 0 | AE39: ='Model inputs'!$C30 -> 2025 | AF39: 389000.9112 | AG39: =AG25*('Model inputs'!$AB125+'Model inputs'!$AB125*'Model inputs'!$AB$135+'Model inputs'!$AB125*'Model inputs'!$AB$136)+(AG13/'Model inputs'!$AB$138*'Model inputs'!$AB$137)+(AG13*'Model inputs'!$AB$139) -> 389000.9112 | AH39: =AH25*('Model inputs'!$AB125+'Model inputs'!$AB125*'Model inputs'!$AB$135+'Model inputs'!$AB125*'Model inputs'!$AB$136)+(AH13/'Model inputs'!$AB$138*'Model inputs'!$AB$137)+(AH13*'Model inputs'!$AB$139) -> 0 | AI39: 0 | AJ39: =IF(AH25>0,AH25*'Model inputs'!$AB125*'Model inputs'!$D$106,0) -> 0 | AL39: ='Model inputs'!$C30 -> 2025 | AM39: 172666.3717 | AN39: =AN25*('Model inputs'!$AH125+'Model inputs'!$AH125*'Model inputs'!$AH$135+'Model inputs'!$AH125*'Model inputs'!$AH$136)+(AN13/'Model inputs'!$AH$138*'Model inputs'!$AH$137)+(AN13*'Model inputs'!$AH$139) -> 172666.3717 | AO39: =AO25*('Model inputs'!$AH125+'Model inputs'!$AH125*'Model inputs'!$AH$135+'Model inputs'!$AH125*'Model inputs'!$AH$136)+(AO13/'Model inputs'!$AH$138*'Model inputs'!$AH$137)+(AO13*'Model inputs'!$AH$139) -> 0 | AP39: 0 | AQ39: =IF(AO25>0,AO25*'Model inputs'!$AH125*'Model inputs'!$D$106,0) -> 0
B40: ='Model inputs'!$C31 -> 2026 | C40: 291531.5033 | D40: =D26*('Model inputs'!$D126+'Model inputs'!$D126*'Model inputs'!$D$135+'Model inputs'!$D126*'Model inputs'!$D$136)+(D14/'Model inputs'!$D$138*'Model inputs'!$D$137)+(D14*'Model inputs'!$D$139) -> 291531.5033 | E40: =E26*('Model inputs'!$D126+'Model inputs'!$D126*'Model inputs'!$D$135+'Model inputs'!$D126*'Model inputs'!$D$136)+(E14/'Model inputs'!$D$138*'Model inputs'!$D$137)+(E14*'Model inputs'!$D$139) -> 0 | F40: 0 | G40: =IF(E26>0,E26*'Model inputs'!$D126*'Model inputs'!$D$106,0) -> 0 | I40: ='Model inputs'!$C31 -> 2026 | J40: 334639.9243 | K40: =K26*('Model inputs'!$J126+'Model inputs'!$J126*'Model inputs'!$J$135+'Model inputs'!$J126*'Model inputs'!$J$136)+(K14/'Model inputs'!$J$138*'Model inputs'!$J$137)+(K14*'Model inputs'!$J$139) -> 334639.9243 | L40: =L26*('Model inputs'!$J126+'Model inputs'!$J126*'Model inputs'!$J$135+'Model inputs'!$J126*'Model inputs'!$J$136)+(L14/'Model inputs'!$J$138*'Model inputs'!$J$137)+(L14*'Model inputs'!$J$139) -> 0 | M40: 0 | N40: =IF(L26>0,L26*'Model inputs'!$J126*'Model inputs'!$D$106,0) -> 0 | P40: ='Model inputs'!$C31 -> 2026 | Q40: 196439.398 | R40: =R26*('Model inputs'!$P126+'Model inputs'!$P126*'Model inputs'!$P$135+'Model inputs'!$P126*'Model inputs'!$P$136)+(R14/'Model inputs'!$P$138*'Model inputs'!$P$137)+(R14*'Model inputs'!$P$139) -> 196439.398 | S40: =S26*('Model inputs'!$P126+'Model inputs'!$P126*'Model inputs'!$P$135+'Model inputs'!$P126*'Model inputs'!$P$136)+(S14/'Model inputs'!$P$138*'Model inputs'!$P$137)+(S14*'Model inputs'!$P$139) -> 0 | T40: 0 | U40: =IF(S26>0,S26*'Model inputs'!$P126*'Model inputs'!$D$106,0) -> 0 | X40: ='Model inputs'!$C31 -> 2026 | Y40: 334639.9243 | Z40: =Z26*('Model inputs'!$V126+'Model inputs'!$V126*'Model inputs'!$V$135+'Model inputs'!$V126*'Model inputs'!$V$136)+(Z14/'Model inputs'!$V$138*'Model inputs'!$V$137)+(Z14*'Model inputs'!$V$139) -> 334639.9243 | AA40: =AA26*('Model inputs'!$V126+'Model inputs'!$V126*'Model inputs'!$V$135+'Model inputs'!$V126*'Model inputs'!$V$136)+(AA14/'Model inputs'!$V$138*'Model inputs'!$V$137)+(AA14*'Model inputs'!$V$139) -> 0 | AB40: 0 | AC40: =IF(AA26>0,AA26*'Model inputs'!$V126*'Model inputs'!$D$106,0) -> 0 | AE40: ='Model inputs'!$C31 -> 2026 | AF40: 443678.8717 | AG40: =AG26*('Model inputs'!$AB126+'Model inputs'!$AB126*'Model inputs'!$AB$135+'Model inputs'!$AB126*'Model inputs'!$AB$136)+(AG14/'Model inputs'!$AB$138*'Model inputs'!$AB$137)+(AG14*'Model inputs'!$AB$139) -> 443678.8717 | AH40: =AH26*('Model inputs'!$AB126+'Model inputs'!$AB126*'Model inputs'!$AB$135+'Model inputs'!$AB126*'Model inputs'!$AB$136)+(AH14/'Model inputs'!$AB$138*'Model inputs'!$AB$137)+(AH14*'Model inputs'!$AB$139) -> 0 | AI40: 0 | AJ40: =IF(AH26>0,AH26*'Model inputs'!$AB126*'Model inputs'!$D$106,0) -> 0 | AL40: ='Model inputs'!$C31 -> 2026 | AM40: 196439.398 | AN40: =AN26*('Model inputs'!$AH126+'Model inputs'!$AH126*'Model inputs'!$AH$135+'Model inputs'!$AH126*'Model inputs'!$AH$136)+(AN14/'Model inputs'!$AH$138*'Model inputs'!$AH$137)+(AN14*'Model inputs'!$AH$139) -> 196439.398 | AO40: =AO26*('Model inputs'!$AH126+'Model inputs'!$AH126*'Model inputs'!$AH$135+'Model inputs'!$AH126*'Model inputs'!$AH$136)+(AO14/'Model inputs'!$AH$138*'Model inputs'!$AH$137)+(AO14*'Model inputs'!$AH$139) -> 0 | AP40: 0 | AQ40: =IF(AO26>0,AO26*'Model inputs'!$AH126*'Model inputs'!$D$106,0) -> 0
B41: ='Model inputs'!$C32 -> 2027 | C41: 362850.5822 | D41: =D27*('Model inputs'!$D127+'Model inputs'!$D127*'Model inputs'!$D$135+'Model inputs'!$D127*'Model inputs'!$D$136)+(D15/'Model inputs'!$D$138*'Model inputs'!$D$137)+(D15*'Model inputs'!$D$139) -> 362850.5822 | E41: =E27*('Model inputs'!$D127+'Model inputs'!$D127*'Model inputs'!$D$135+'Model inputs'!$D127*'Model inputs'!$D$136)+(E15/'Model inputs'!$D$138*'Model inputs'!$D$137)+(E15*'Model inputs'!$D$139) -> 0 | F41: 0 | G41: =IF(E27>0,E27*'Model inputs'!$D127*'Model inputs'!$D$106,0) -> 0 | I41: ='Model inputs'!$C32 -> 2027 | J41: 416736.1086 | K41: =K27*('Model inputs'!$J127+'Model inputs'!$J127*'Model inputs'!$J$135+'Model inputs'!$J127*'Model inputs'!$J$136)+(K15/'Model inputs'!$J$138*'Model inputs'!$J$137)+(K15*'Model inputs'!$J$139) -> 416736.1086 | L41: =L27*('Model inputs'!$J127+'Model inputs'!$J127*'Model inputs'!$J$135+'Model inputs'!$J127*'Model inputs'!$J$136)+(L15/'Model inputs'!$J$138*'Model inputs'!$J$137)+(L15*'Model inputs'!$J$139) -> 0 | M41: 0 | N41: =IF(L27>0,L27*'Model inputs'!$J127*'Model inputs'!$D$106,0) -> 0 | P41: ='Model inputs'!$C32 -> 2027 | Q41: 243985.4507 | R41: =R27*('Model inputs'!$P127+'Model inputs'!$P127*'Model inputs'!$P$135+'Model inputs'!$P127*'Model inputs'!$P$136)+(R15/'Model inputs'!$P$138*'Model inputs'!$P$137)+(R15*'Model inputs'!$P$139) -> 243985.4507 | S41: =S27*('Model inputs'!$P127+'Model inputs'!$P127*'Model inputs'!$P$135+'Model inputs'!$P127*'Model inputs'!$P$136)+(S15/'Model inputs'!$P$138*'Model inputs'!$P$137)+(S15*'Model inputs'!$P$139) -> 0 | T41: 0 | U41: =IF(S27>0,S27*'Model inputs'!$P127*'Model inputs'!$D$106,0) -> 0 | X41: ='Model inputs'!$C32 -> 2027 | Y41: 416736.1086 | Z41: =Z27*('Model inputs'!$V127+'Model inputs'!$V127*'Model inputs'!$V$135+'Model inputs'!$V127*'Model inputs'!$V$136)+(Z15/'Model inputs'!$V$138*'Model inputs'!$V$137)+(Z15*'Model inputs'!$V$139) -> 416736.1086 | AA41: =AA27*('Model inputs'!$V127+'Model inputs'!$V127*'Model inputs'!$V$135+'Model inputs'!$V127*'Model inputs'!$V$136)+(AA15/'Model inputs'!$V$138*'Model inputs'!$V$137)+(AA15*'Model inputs'!$V$139) -> 0 | AB41: 0 | AC41: =IF(AA27>0,AA27*'Model inputs'!$V127*'Model inputs'!$D$106,0) -> 0 | AE41: ='Model inputs'!$C32 -> 2027 | AF41: 553034.7928 | AG41: =AG27*('Model inputs'!$AB127+'Model inputs'!$AB127*'Model inputs'!$AB$135+'Model inputs'!$AB127*'Model inputs'!$AB$136)+(AG15/'Model inputs'!$AB$138*'Model inputs'!$AB$137)+(AG15*'Model inputs'!$AB$139) -> 553034.7928 | AH41: =AH27*('Model inputs'!$AB127+'Model inputs'!$AB127*'Model inputs'!$AB$135+'Model inputs'!$AB127*'Model inputs'!$AB$136)+(AH15/'Model inputs'!$AB$138*'Model inputs'!$AB$137)+(AH15*'Model inputs'!$AB$139) -> 0 | AI41: 0 | AJ41: =IF(AH27>0,AH27*'Model inputs'!$AB127*'Model inputs'!$D$106,0) -> 0 | AL41: ='Model inputs'!$C32 -> 2027 | AM41: 243985.4507 | AN41: =AN27*('Model inputs'!$AH127+'Model inputs'!$AH127*'Model inputs'!$AH$135+'Model inputs'!$AH127*'Model inputs'!$AH$136)+(AN15/'Model inputs'!$AH$138*'Model inputs'!$AH$137)+(AN15*'Model inputs'!$AH$139) -> 243985.4507 | AO41: =AO27*('Model inputs'!$AH127+'Model inputs'!$AH127*'Model inputs'!$AH$135+'Model inputs'!$AH127*'Model inputs'!$AH$136)+(AO15/'Model inputs'!$AH$138*'Model inputs'!$AH$137)+(AO15*'Model inputs'!$AH$139) -> 0 | AP41: 0 | AQ41: =IF(AO27>0,AO27*'Model inputs'!$AH127*'Model inputs'!$D$106,0) -> 0
B42: ='Model inputs'!$C33 -> 2028 | C42: 434169.6612 | D42: =D28*('Model inputs'!$D128+'Model inputs'!$D128*'Model inputs'!$D$135+'Model inputs'!$D128*'Model inputs'!$D$136)+(D16/'Model inputs'!$D$138*'Model inputs'!$D$137)+(D16*'Model inputs'!$D$139) -> 434169.6612 | E42: =E28*('Model inputs'!$D128+'Model inputs'!$D128*'Model inputs'!$D$135+'Model inputs'!$D128*'Model inputs'!$D$136)+(E16/'Model inputs'!$D$138*'Model inputs'!$D$137)+(E16*'Model inputs'!$D$139) -> 0 | F42: 0 | G42: =IF(E28>0,E28*'Model inputs'!$D128*'Model inputs'!$D$106,0) -> 0 | I42: ='Model inputs'!$C33 -> 2028 | J42: 498832.2928 | K42: =K28*('Model inputs'!$J128+'Model inputs'!$J128*'Model inputs'!$J$135+'Model inputs'!$J128*'Model inputs'!$J$136)+(K16/'Model inputs'!$J$138*'Model inputs'!$J$137)+(K16*'Model inputs'!$J$139) -> 498832.2928 | L42: =L28*('Model inputs'!$J128+'Model inputs'!$J128*'Model inputs'!$J$135+'Model inputs'!$J128*'Model inputs'!$J$136)+(L16/'Model inputs'!$J$138*'Model inputs'!$J$137)+(L16*'Model inputs'!$J$139) -> 0 | M42: 0 | N42: =IF(L28>0,L28*'Model inputs'!$J128*'Model inputs'!$D$106,0) -> 0 | P42: ='Model inputs'!$C33 -> 2028 | Q42: 291531.5033 | R42: =R28*('Model inputs'!$P128+'Model inputs'!$P128*'Model inputs'!$P$135+'Model inputs'!$P128*'Model inputs'!$P$136)+(R16/'Model inputs'!$P$138*'Model inputs'!$P$137)+(R16*'Model inputs'!$P$139) -> 291531.5033 | S42: =S28*('Model inputs'!$P128+'Model inputs'!$P128*'Model inputs'!$P$135+'Model inputs'!$P128*'Model inputs'!$P$136)+(S16/'Model inputs'!$P$138*'Model inputs'!$P$137)+(S16*'Model inputs'!$P$139) -> 0 | T42: 0 | U42: =IF(S28>0,S28*'Model inputs'!$P128*'Model inputs'!$D$106,0) -> 0 | X42: ='Model inputs'!$C33 -> 2028 | Y42: 498832.2928 | Z42: =Z28*('Model inputs'!$V128+'Model inputs'!$V128*'Model inputs'!$V$135+'Model inputs'!$V128*'Model inputs'!$V$136)+(Z16/'Model inputs'!$V$138*'Model inputs'!$V$137)+(Z16*'Model inputs'!$V$139) -> 498832.2928 | AA42: =AA28*('Model inputs'!$V128+'Model inputs'!$V128*'Model inputs'!$V$135+'Model inputs'!$V128*'Model inputs'!$V$136)+(AA16/'Model inputs'!$V$138*'Model inputs'!$V$137)+(AA16*'Model inputs'!$V$139) -> 0 | AB42: 0 | AC42: =IF(AA28>0,AA28*'Model inputs'!$V128*'Model inputs'!$D$106,0) -> 0 | AE42: ='Model inputs'!$C33 -> 2028 | AF42: 662390.7138 | AG42: =AG28*('Model inputs'!$AB128+'Model inputs'!$AB128*'Model inputs'!$AB$135+'Model inputs'!$AB128*'Model inputs'!$AB$136)+(AG16/'Model inputs'!$AB$138*'Model inputs'!$AB$137)+(AG16*'Model inputs'!$AB$139) -> 662390.7138 | AH42: =AH28*('Model inputs'!$AB128+'Model inputs'!$AB128*'Model inputs'!$AB$135+'Model inputs'!$AB128*'Model inputs'!$AB$136)+(AH16/'Model inputs'!$AB$138*'Model inputs'!$AB$137)+(AH16*'Model inputs'!$AB$139) -> 0 | AI42: 0 | AJ42: =IF(AH28>0,AH28*'Model inputs'!$AB128*'Model inputs'!$D$106,0) -> 0 | AL42: ='Model inputs'!$C33 -> 2028 | AM42: 291531.5033 | AN42: =AN28*('Model inputs'!$AH128+'Model inputs'!$AH128*'Model inputs'!$AH$135+'Model inputs'!$AH128*'Model inputs'!$AH$136)+(AN16/'Model inputs'!$AH$138*'Model inputs'!$AH$137)+(AN16*'Model inputs'!$AH$139) -> 291531.5033 | AO42: =AO28*('Model inputs'!$AH128+'Model inputs'!$AH128*'Model inputs'!$AH$135+'Model inputs'!$AH128*'Model inputs'!$AH$136)+(AO16/'Model inputs'!$AH$138*'Model inputs'!$AH$137)+(AO16*'Model inputs'!$AH$139) -> 0 | AP42: 0 | AQ42: =IF(AO28>0,AO28*'Model inputs'!$AH128*'Model inputs'!$D$106,0) -> 0
B43: ='Model inputs'!$C34 -> 2029 | C43: 505488.7401 | D43: =D29*('Model inputs'!$D129+'Model inputs'!$D129*'Model inputs'!$D$135+'Model inputs'!$D129*'Model inputs'!$D$136)+(D17/'Model inputs'!$D$138*'Model inputs'!$D$137)+(D17*'Model inputs'!$D$139) -> 505488.7401 | E43: =E29*('Model inputs'!$D129+'Model inputs'!$D129*'Model inputs'!$D$135+'Model inputs'!$D129*'Model inputs'!$D$136)+(E17/'Model inputs'!$D$138*'Model inputs'!$D$137)+(E17*'Model inputs'!$D$139) -> 0 | F43: 0 | G43: =IF(E29>0,E29*'Model inputs'!$D129*'Model inputs'!$D$106,0) -> 0 | I43: ='Model inputs'!$C34 -> 2029 | J43: 580928.477 | K43: =K29*('Model inputs'!$J129+'Model inputs'!$J129*'Model inputs'!$J$135+'Model inputs'!$J129*'Model inputs'!$J$136)+(K17/'Model inputs'!$J$138*'Model inputs'!$J$137)+(K17*'Model inputs'!$J$139) -> 580928.477 | L43: =L29*('Model inputs'!$J129+'Model inputs'!$J129*'Model inputs'!$J$135+'Model inputs'!$J129*'Model inputs'!$J$136)+(L17/'Model inputs'!$J$138*'Model inputs'!$J$137)+(L17*'Model inputs'!$J$139) -> 0 | M43: 0 | N43: =IF(L29>0,L29*'Model inputs'!$J129*'Model inputs'!$D$106,0) -> 0 | P43: ='Model inputs'!$C34 -> 2029 | Q43: 339077.5559 | R43: =R29*('Model inputs'!$P129+'Model inputs'!$P129*'Model inputs'!$P$135+'Model inputs'!$P129*'Model inputs'!$P$136)+(R17/'Model inputs'!$P$138*'Model inputs'!$P$137)+(R17*'Model inputs'!$P$139) -> 339077.5559 | S43: =S29*('Model inputs'!$P129+'Model inputs'!$P129*'Model inputs'!$P$135+'Model inputs'!$P129*'Model inputs'!$P$136)+(S17/'Model inputs'!$P$138*'Model inputs'!$P$137)+(S17*'Model inputs'!$P$139) -> 0 | T43: 0 | U43: =IF(S29>0,S29*'Model inputs'!$P129*'Model inputs'!$D$106,0) -> 0 | X43: ='Model inputs'!$C34 -> 2029 | Y43: 580928.477 | Z43: =Z29*('Model inputs'!$V129+'Model inputs'!$V129*'Model inputs'!$V$135+'Model inputs'!$V129*'Model inputs'!$V$136)+(Z17/'Model inputs'!$V$138*'Model inputs'!$V$137)+(Z17*'Model inputs'!$V$139) -> 580928.477 | AA43: =AA29*('Model inputs'!$V129+'Model inputs'!$V129*'Model inputs'!$V$135+'Model inputs'!$V129*'Model inputs'!$V$136)+(AA17/'Model inputs'!$V$138*'Model inputs'!$V$137)+(AA17*'Model inputs'!$V$139) -> 0 | AB43: 0 | AC43: =IF(AA29>0,AA29*'Model inputs'!$V129*'Model inputs'!$D$106,0) -> 0 | AE43: ='Model inputs'!$C34 -> 2029 | AF43: 771746.6349 | AG43: =AG29*('Model inputs'!$AB129+'Model inputs'!$AB129*'Model inputs'!$AB$135+'Model inputs'!$AB129*'Model inputs'!$AB$136)+(AG17/'Model inputs'!$AB$138*'Model inputs'!$AB$137)+(AG17*'Model inputs'!$AB$139) -> 771746.6349 | AH43: =AH29*('Model inputs'!$AB129+'Model inputs'!$AB129*'Model inputs'!$AB$135+'Model inputs'!$AB129*'Model inputs'!$AB$136)+(AH17/'Model inputs'!$AB$138*'Model inputs'!$AB$137)+(AH17*'Model inputs'!$AB$139) -> 0 | AI43: 0 | AJ43: =IF(AH29>0,AH29*'Model inputs'!$AB129*'Model inputs'!$D$106,0) -> 0 | AL43: ='Model inputs'!$C34 -> 2029 | AM43: 339077.5559 | AN43: =AN29*('Model inputs'!$AH129+'Model inputs'!$AH129*'Model inputs'!$AH$135+'Model inputs'!$AH129*'Model inputs'!$AH$136)+(AN17/'Model inputs'!$AH$138*'Model inputs'!$AH$137)+(AN17*'Model inputs'!$AH$139) -> 339077.5559 | AO43: =AO29*('Model inputs'!$AH129+'Model inputs'!$AH129*'Model inputs'!$AH$135+'Model inputs'!$AH129*'Model inputs'!$AH$136)+(AO17/'Model inputs'!$AH$138*'Model inputs'!$AH$137)+(AO17*'Model inputs'!$AH$139) -> 0 | AP43: 0 | AQ43: =IF(AO29>0,AO29*'Model inputs'!$AH129*'Model inputs'!$D$106,0) -> 0
B44: ='Model inputs'!$C35 -> 2030 | C44: 576807.8191 | D44: =D30*('Model inputs'!$D130+'Model inputs'!$D130*'Model inputs'!$D$135+'Model inputs'!$D130*'Model inputs'!$D$136)+(D18/'Model inputs'!$D$138*'Model inputs'!$D$137)+(D18*'Model inputs'!$D$139) -> 576807.8191 | E44: =E30*('Model inputs'!$D130+'Model inputs'!$D130*'Model inputs'!$D$135+'Model inputs'!$D130*'Model inputs'!$D$136)+(E18/'Model inputs'!$D$138*'Model inputs'!$D$137)+(E18*'Model inputs'!$D$139) -> 0 | F44: 0 | G44: =IF(E30>0,E30*'Model inputs'!$D130*'Model inputs'!$D$106,0) -> 0 | I44: ='Model inputs'!$C35 -> 2030 | J44: 663024.6612 | K44: =K30*('Model inputs'!$J130+'Model inputs'!$J130*'Model inputs'!$J$135+'Model inputs'!$J130*'Model inputs'!$J$136)+(K18/'Model inputs'!$J$138*'Model inputs'!$J$137)+(K18*'Model inputs'!$J$139) -> 663024.6612 | L44: =L30*('Model inputs'!$J130+'Model inputs'!$J130*'Model inputs'!$J$135+'Model inputs'!$J130*'Model inputs'!$J$136)+(L18/'Model inputs'!$J$138*'Model inputs'!$J$137)+(L18*'Model inputs'!$J$139) -> 0 | M44: 0 | N44: =IF(L30>0,L30*'Model inputs'!$J130*'Model inputs'!$D$106,0) -> 0 | P44: ='Model inputs'!$C35 -> 2030 | Q44: 386623.6086 | R44: =R30*('Model inputs'!$P130+'Model inputs'!$P130*'Model inputs'!$P$135+'Model inputs'!$P130*'Model inputs'!$P$136)+(R18/'Model inputs'!$P$138*'Model inputs'!$P$137)+(R18*'Model inputs'!$P$139) -> 386623.6086 | S44: =S30*('Model inputs'!$P130+'Model inputs'!$P130*'Model inputs'!$P$135+'Model inputs'!$P130*'Model inputs'!$P$136)+(S18/'Model inputs'!$P$138*'Model inputs'!$P$137)+(S18*'Model inputs'!$P$139) -> 0 | T44: 0 | U44: =IF(S30>0,S30*'Model inputs'!$P130*'Model inputs'!$D$106,0) -> 0 | X44: ='Model inputs'!$C35 -> 2030 | Y44: 663024.6612 | Z44: =Z30*('Model inputs'!$V130+'Model inputs'!$V130*'Model inputs'!$V$135+'Model inputs'!$V130*'Model inputs'!$V$136)+(Z18/'Model inputs'!$V$138*'Model inputs'!$V$137)+(Z18*'Model inputs'!$V$139) -> 663024.6612 | AA44: =AA30*('Model inputs'!$V130+'Model inputs'!$V130*'Model inputs'!$V$135+'Model inputs'!$V130*'Model inputs'!$V$136)+(AA18/'Model inputs'!$V$138*'Model inputs'!$V$137)+(AA18*'Model inputs'!$V$139) -> 0 | AB44: 0 | AC44: =IF(AA30>0,AA30*'Model inputs'!$V130*'Model inputs'!$D$106,0) -> 0 | AE44: ='Model inputs'!$C35 -> 2030 | AF44: 881102.5559 | AG44: =AG30*('Model inputs'!$AB130+'Model inputs'!$AB130*'Model inputs'!$AB$135+'Model inputs'!$AB130*'Model inputs'!$AB$136)+(AG18/'Model inputs'!$AB$138*'Model inputs'!$AB$137)+(AG18*'Model inputs'!$AB$139) -> 881102.5559 | AH44: =AH30*('Model inputs'!$AB130+'Model inputs'!$AB130*'Model inputs'!$AB$135+'Model inputs'!$AB130*'Model inputs'!$AB$136)+(AH18/'Model inputs'!$AB$138*'Model inputs'!$AB$137)+(AH18*'Model inputs'!$AB$139) -> 0 | AI44: 0 | AJ44: =IF(AH30>0,AH30*'Model inputs'!$AB130*'Model inputs'!$D$106,0) -> 0 | AL44: ='Model inputs'!$C35 -> 2030 | AM44: 386623.6086 | AN44: =AN30*('Model inputs'!$AH130+'Model inputs'!$AH130*'Model inputs'!$AH$135+'Model inputs'!$AH130*'Model inputs'!$AH$136)+(AN18/'Model inputs'!$AH$138*'Model inputs'!$AH$137)+(AN18*'Model inputs'!$AH$139) -> 386623.6086 | AO44: =AO30*('Model inputs'!$AH130+'Model inputs'!$AH130*'Model inputs'!$AH$135+'Model inputs'!$AH130*'Model inputs'!$AH$136)+(AO18/'Model inputs'!$AH$138*'Model inputs'!$AH$137)+(AO18*'Model inputs'!$AH$139) -> 0 | AP44: 0 | AQ44: =IF(AO30>0,AO30*'Model inputs'!$AH130*'Model inputs'!$D$106,0) -> 0
B45: ='Model inputs'!$C36 -> 2031 | C45: 719445.977 | D45: =D31*('Model inputs'!$D131+'Model inputs'!$D131*'Model inputs'!$D$135+'Model inputs'!$D131*'Model inputs'!$D$136)+(D19/'Model inputs'!$D$138*'Model inputs'!$D$137)+(D19*'Model inputs'!$D$139) -> 719445.977 | E45: =E31*('Model inputs'!$D131+'Model inputs'!$D131*'Model inputs'!$D$135+'Model inputs'!$D131*'Model inputs'!$D$136)+(E19/'Model inputs'!$D$138*'Model inputs'!$D$137)+(E19*'Model inputs'!$D$139) -> 0 | F45: 0 | G45: =IF(E31>0,E31*'Model inputs'!$D131*'Model inputs'!$D$106,0) -> 0 | I45: ='Model inputs'!$C36 -> 2031 | J45: 827217.0296 | K45: =K31*('Model inputs'!$J131+'Model inputs'!$J131*'Model inputs'!$J$135+'Model inputs'!$J131*'Model inputs'!$J$136)+(K19/'Model inputs'!$J$138*'Model inputs'!$J$137)+(K19*'Model inputs'!$J$139) -> 827217.0296 | L45: =L31*('Model inputs'!$J131+'Model inputs'!$J131*'Model inputs'!$J$135+'Model inputs'!$J131*'Model inputs'!$J$136)+(L19/'Model inputs'!$J$138*'Model inputs'!$J$137)+(L19*'Model inputs'!$J$139) -> 0 | M45: 0 | N45: =IF(L31>0,L31*'Model inputs'!$J131*'Model inputs'!$D$106,0) -> 0 | P45: ='Model inputs'!$C36 -> 2031 | Q45: 481715.7138 | R45: =R31*('Model inputs'!$P131+'Model inputs'!$P131*'Model inputs'!$P$135+'Model inputs'!$P131*'Model inputs'!$P$136)+(R19/'Model inputs'!$P$138*'Model inputs'!$P$137)+(R19*'Model inputs'!$P$139) -> 481715.7138 | S45: =S31*('Model inputs'!$P131+'Model inputs'!$P131*'Model inputs'!$P$135+'Model inputs'!$P131*'Model inputs'!$P$136)+(S19/'Model inputs'!$P$138*'Model inputs'!$P$137)+(S19*'Model inputs'!$P$139) -> 0 | T45: 0 | U45: =IF(S31>0,S31*'Model inputs'!$P131*'Model inputs'!$D$106,0) -> 0 | X45: ='Model inputs'!$C36 -> 2031 | Y45: 827217.0296 | Z45: =Z31*('Model inputs'!$V131+'Model inputs'!$V131*'Model inputs'!$V$135+'Model inputs'!$V131*'Model inputs'!$V$136)+(Z19/'Model inputs'!$V$138*'Model inputs'!$V$137)+(Z19*'Model inputs'!$V$139) -> 827217.0296 | AA45: =AA31*('Model inputs'!$V131+'Model inputs'!$V131*'Model inputs'!$V$135+'Model inputs'!$V131*'Model inputs'!$V$136)+(AA19/'Model inputs'!$V$138*'Model inputs'!$V$137)+(AA19*'Model inputs'!$V$139) -> 0 | AB45: 0 | AC45: =IF(AA31>0,AA31*'Model inputs'!$V131*'Model inputs'!$D$106,0) -> 0 | AE45: ='Model inputs'!$C36 -> 2031 | AF45: 1099814.398 | AG45: =AG31*('Model inputs'!$AB131+'Model inputs'!$AB131*'Model inputs'!$AB$135+'Model inputs'!$AB131*'Model inputs'!$AB$136)+(AG19/'Model inputs'!$AB$138*'Model inputs'!$AB$137)+(AG19*'Model inputs'!$AB$139) -> 1099814.398 | AH45: =AH31*('Model inputs'!$AB131+'Model inputs'!$AB131*'Model inputs'!$AB$135+'Model inputs'!$AB131*'Model inputs'!$AB$136)+(AH19/'Model inputs'!$AB$138*'Model inputs'!$AB$137)+(AH19*'Model inputs'!$AB$139) -> 0 | AI45: 0 | AJ45: =IF(AH31>0,AH31*'Model inputs'!$AB131*'Model inputs'!$D$106,0) -> 0 | AL45: ='Model inputs'!$C36 -> 2031 | AM45: 481715.7138 | AN45: =AN31*('Model inputs'!$AH131+'Model inputs'!$AH131*'Model inputs'!$AH$135+'Model inputs'!$AH131*'Model inputs'!$AH$136)+(AN19/'Model inputs'!$AH$138*'Model inputs'!$AH$137)+(AN19*'Model inputs'!$AH$139) -> 481715.7138 | AO45: =AO31*('Model inputs'!$AH131+'Model inputs'!$AH131*'Model inputs'!$AH$135+'Model inputs'!$AH131*'Model inputs'!$AH$136)+(AO19/'Model inputs'!$AH$138*'Model inputs'!$AH$137)+(AO19*'Model inputs'!$AH$139) -> 0 | AP45: 0 | AQ45: =IF(AO31>0,AO31*'Model inputs'!$AH131*'Model inputs'!$D$106,0) -> 0
B46: Vaccination program cost Vaccine cost + incremental health system costs | D46: Single aged cohort | E46: MAC | F46: SAC Subsidies | G46: MAC Subsidies | I46: Vaccination program cost Vaccine cost + incremental health system costs | K46: Single aged cohort | L46: MAC | M46: SAC Subsidies | N46: MAC Subsidies | P46: Vaccination program cost Vaccine cost + incremental health system costs | R46: Single aged cohort | S46: MAC | T46: SAC Subsidies | U46: MAC Subsidies | X46: Vaccination program cost Vaccine cost + incremental health system costs | Z46: Single aged cohort | AA46: MAC | AB46: SAC Subsidies | AC46: MAC Subsidies | AE46: Vaccination program cost Vaccine cost + incremental health system costs | AG46: Single aged cohort | AH46: MAC | AI46: SAC Subsidies | AJ46: MAC Subsidies | AL46: Vaccination program cost Vaccine cost + incremental health system costs | AN46: Single aged cohort | AO46: MAC | AP46: SAC Subsidies | AQ46: MAC Subsidies
B47: Total for 10 years | C47: =SUM(C48:C57) -> 6689917.967 | D47: =SUM(D48:D57) -> 6217290.362 | E47: =SUM(E48:E57) -> 1298548.658 | F47: =SUM(F48:F57) -> 240000 | G47: =SUM(G48:G57) -> 585921.0526 | I47: Total for 10 years | J47: =SUM(J48:J57) -> 7239691.257 | K47: =SUM(K48:K57) -> 6761534.178 | L47: =SUM(L48:L57) -> 1359372.868 | M47: =SUM(M48:M57) -> 240000 | N47: =SUM(N48:N57) -> 641215.7895 | P47: Total for 10 years | Q47: =SUM(Q48:Q57) -> 5477182.77 | R47: =SUM(R48:R57) -> 5016752.533 | S47: =SUM(S48:S57) -> 1164377.605 | T47: =SUM(T48:T57) -> 240000 | U47: =SUM(U48:U57) -> 463947.3684 | X47: Total for 10 years | Y47: =SUM(Y48:Y57) -> 7239691.257 | Z47: =SUM(Z48:Z57) -> 6761534.178 | AA47: =SUM(AA48:AA57) -> 1359372.868 | AB47: =SUM(AB48:AB57) -> 240000 | AC47: =SUM(AC48:AC57) -> 641215.7895 | AE47: Total for 10 years | AF47: =SUM(AF48:AF57) -> 8630294.283 | AG47: =SUM(AG48:AG57) -> 8138150.888 | AH47: =SUM(AH48:AH57) -> 1513222.342 | AI47: =SUM(AI48:AI57) -> 240000 | AJ47: =SUM(AJ48:AJ57) -> 781078.9474 | AL47: Total for 10 years | AM47: =SUM(AM48:AM57) -> 5477182.77 | AN47: =SUM(AN48:AN57) -> 5016752.533 | AO47: =SUM(AO48:AO57) -> 1164377.605 | AP47: =SUM(AP48:AP57) -> 240000 | AQ47: =SUM(AQ48:AQ57) -> 463947.3684
B48: ='Model inputs'!$C27 -> 2022 | C48: =D48+E48-F48-G48 -> 841173.9112 | D48: =D36+'Model inputs'!$D$145+'Model inputs'!$F27*('Model inputs'!$E$38*('Model inputs'!$E$39+'Model inputs'!$E$39*'Model inputs'!$E$40+'Model inputs'!$E$39*'Model inputs'!$E$40*'Model inputs'!$E$41)*'Model inputs'!$D$147+'Model inputs'!$F$38*('Model inputs'!$F$39+'Model inputs'!$F$39*'Model inputs'!$F$40+'Model inputs'!$F$39*'Model inputs'!$F$40*'Model inputs'!$F$41)*'Model inputs'!$D$148+'Model inputs'!$G$38*('Model inputs'!$G$39+'Model inputs'!$G$39*'Model inputs'!$G$40+'Model inputs'!$G$39*'Model inputs'!$G$40*'Model inputs'!$G$41)*'Model inputs'!$D$149) -> 368546.3059 | E48: =IF(E10>0,E36+'Model inputs'!$D$146+'Model inputs'!$H27*('Model inputs'!$H$38*('Model inputs'!$H$39+'Model inputs'!$H$39*'Model inputs'!$H$40+'Model inputs'!$H$39*'Model inputs'!$H$40*'Model inputs'!$H$41)*'Model inputs'!$D$147+'Model inputs'!$I$38*('Model inputs'!$I$39+'Model inputs'!$I$39*'Model inputs'!$I$40+'Model inputs'!$I$39*'Model inputs'!$I$40*'Model inputs'!$I$41)*'Model inputs'!$D$148+'Model inputs'!$J$38*('Model inputs'!$J$39+'Model inputs'!$J$39*'Model inputs'!$J$40+'Model inputs'!$J$39*'Model inputs'!$J$40*'Model inputs'!$J$41)*'Model inputs'!$D$149),0) -> 1298548.658 | F48: =F36+IF('Model inputs'!$F$27*'Model inputs'!$D$102>100000,'Model inputs'!$F$27*'Model inputs'!$D$102,100000) -> 240000 | G48: =IF('Model inputs'!$H27>0,G36+'Model inputs'!$H27*'Model inputs'!$D$103,0) -> 585921.0526 | I48: ='Model inputs'!$C27 -> 2022 | J48: =K48+L48-M48-N48 -> 862869.0428 | K48: =K36+'Model inputs'!$J$145+'Model inputs'!$F27*('Model inputs'!$E$38*('Model inputs'!$E$39+'Model inputs'!$E$39*'Model inputs'!$E$40+'Model inputs'!$E$39*'Model inputs'!$E$40*'Model inputs'!$E$41)*'Model inputs'!$J$147+'Model inputs'!$F$38*('Model inputs'!$F$39+'Model inputs'!$F$39*'Model inputs'!$F$40+'Model inputs'!$F$39*'Model inputs'!$F$40*'Model inputs'!$F$41)*'Model inputs'!$J$148+'Model inputs'!$G$38*('Model inputs'!$G$39+'Model inputs'!$G$39*'Model inputs'!$G$40+'Model inputs'!$G$39*'Model inputs'!$G$40*'Model inputs'!$G$41)*'Model inputs'!$J$149) -> 384711.9638 | L48: =IF(L10>0,L36+'Model inputs'!$J$146+'Model inputs'!$H27*('Model inputs'!$H$38*('Model inputs'!$H$39+'Model inputs'!$H$39*'Model inputs'!$H$40+'Model inputs'!$H$39*'Model inputs'!$H$40*'Model inputs'!$H$41)*'Model inputs'!$J$147+'Model inputs'!$I$38*('Model inputs'!$I$39+'Model inputs'!$I$39*'Model inputs'!$I$40+'Model inputs'!$I$39*'Model inputs'!$I$40*'Model inputs'!$I$41)*'Model inputs'!$J$148+'Model inputs'!$J$38*('Model inputs'!$J$39+'Model inputs'!$J$39*'Model inputs'!$J$40+'Model inputs'!$J$39*'Model inputs'!$J$40*'Model inputs'!$J$41)*'Model inputs'!$J$149),0) -> 1359372.868 | M48: =M36+IF('Model inputs'!$F$27*'Model inputs'!$D$102>100000,'Model inputs'!$F$27*'Model inputs'!$D$102,100000) -> 240000 | N48: =IF('Model inputs'!$H27>0,N36+'Model inputs'!$H27*'Model inputs'!$D$103,0) -> 641215.7895 | P48: ='Model inputs'!$C27 -> 2022 | Q48: =R48+S48-T48-U48 -> 793317.0033 | R48: =R36+'Model inputs'!$P$145+'Model inputs'!$F27*('Model inputs'!$E$38*('Model inputs'!$E$39+'Model inputs'!$E$39*'Model inputs'!$E$40+'Model inputs'!$E$39*'Model inputs'!$E$40*'Model inputs'!$E$41)*'Model inputs'!$P$147+'Model inputs'!$F$38*('Model inputs'!$F$39+'Model inputs'!$F$39*'Model inputs'!$F$40+'Model inputs'!$F$39*'Model inputs'!$F$40*'Model inputs'!$F$41)*'Model inputs'!$P$148+'Model inputs'!$G$38*('Model inputs'!$G$39+'Model inputs'!$G$39*'Model inputs'!$G$40+'Model inputs'!$G$39*'Model inputs'!$G$40*'Model inputs'!$G$41)*'Model inputs'!$P$149) -> 332886.7664 | S48: =IF(S10>0,S36+'Model inputs'!$P$146+'Model inputs'!$H27*('Model inputs'!$H$38*('Model inputs'!$H$39+'Model inputs'!$H$39*'Model inputs'!$H$40+'Model inputs'!$H$39*'Model inputs'!$H$40*'Model inputs'!$H$41)*'Model inputs'!$P$147+'Model inputs'!$I$38*('Model inputs'!$I$39+'Model inputs'!$I$39*'Model inputs'!$I$40+'Model inputs'!$I$39*'Model inputs'!$I$40*'Model inputs'!$I$41)*'Model inputs'!$P$148+'Model inputs'!$J$38*('Model inputs'!$J$39+'Model inputs'!$J$39*'Model inputs'!$J$40+'Model inputs'!$J$39*'Model inputs'!$J$40*'Model inputs'!$J$41)*'Model inputs'!$P$149),0) -> 1164377.605 | T48: =T36+IF('Model inputs'!$F$27*'Model inputs'!$D$102>100000,'Model inputs'!$F$27*'Model inputs'!$D$102,100000) -> 240000 | U48: =IF('Model inputs'!$H27>0,U36+'Model inputs'!$H27*'Model inputs'!$D$103,0) -> 463947.3684 | X48: ='Model inputs'!$C27 -> 2022 | Y48: =Z48+AA48-AB48-AC48 -> 862869.0428 | Z48: =Z36+'Model inputs'!$V$145+'Model inputs'!$F27*('Model inputs'!$E$38*('Model inputs'!$E$39+'Model inputs'!$E$39*'Model inputs'!$E$40+'Model inputs'!$E$39*'Model inputs'!$E$40*'Model inputs'!$E$41)*'Model inputs'!$V$147+'Model inputs'!$F$38*('Model inputs'!$F$39+'Model inputs'!$F$39*'Model inputs'!$F$40+'Model inputs'!$F$39*'Model inputs'!$F$40*'Model inputs'!$F$41)*'Model inputs'!$V$148+'Model inputs'!$G$38*('Model inputs'!$G$39+'Model inputs'!$G$39*'Model inputs'!$G$40+'Model inputs'!$G$39*'Model inputs'!$G$40*'Model inputs'!$G$41)*'Model inputs'!$V$149) -> 384711.9638 | AA48: =IF(AA10>0,AA36+'Model inputs'!$V$146+'Model inputs'!$H27*('Model inputs'!$H$38*('Model inputs'!$H$39+'Model inputs'!$H$39*'Model inputs'!$H$40+'Model inputs'!$H$39*'Model inputs'!$H$40*'Model inputs'!$H$41)*'Model inputs'!$V$147+'Model inputs'!$I$38*('Model inputs'!$I$39+'Model inputs'!$I$39*'Model inputs'!$I$40+'Model inputs'!$I$39*'Model inputs'!$I$40*'Model inputs'!$I$41)*'Model inputs'!$V$148+'Model inputs'!$J$38*('Model inputs'!$J$39+'Model inputs'!$J$39*'Model inputs'!$J$40+'Model inputs'!$J$39*'Model inputs'!$J$40*'Model inputs'!$J$41)*'Model inputs'!$V$149),0) -> 1359372.868 | AB48: =AB36+IF('Model inputs'!$F$27*'Model inputs'!$D$102>100000,'Model inputs'!$F$27*'Model inputs'!$D$102,100000) -> 240000 | AC48: =IF('Model inputs'!$H27>0,AC36+'Model inputs'!$H27*'Model inputs'!$D$103,0) -> 641215.7895 | AE48: ='Model inputs'!$C27 -> 2022 | AF48: =AG48+AH48-AI48-AJ48 -> 917744.9638 | AG48: =AG36+'Model inputs'!$AB$145+'Model inputs'!$F27*('Model inputs'!$E$38*('Model inputs'!$E$39+'Model inputs'!$E$39*'Model inputs'!$E$40+'Model inputs'!$E$39*'Model inputs'!$E$40*'Model inputs'!$E$41)*'Model inputs'!$AB$147+'Model inputs'!$F$38*('Model inputs'!$F$39+'Model inputs'!$F$39*'Model inputs'!$F$40+'Model inputs'!$F$39*'Model inputs'!$F$40*'Model inputs'!$F$41)*'Model inputs'!$AB$148+'Model inputs'!$G$38*('Model inputs'!$G$39+'Model inputs'!$G$39*'Model inputs'!$G$40+'Model inputs'!$G$39*'Model inputs'!$G$40*'Model inputs'!$G$41)*'Model inputs'!$AB$149) -> 425601.5691 | AH48: =IF(AH10>0,AH36+'Model inputs'!$AB$146+'Model inputs'!$H27*('Model inputs'!$H$38*('Model inputs'!$H$39+'Model inputs'!$H$39*'Model inputs'!$H$40+'Model inputs'!$H$39*'Model inputs'!$H$40*'Model inputs'!$H$41)*'Model inputs'!$AB$147+'Model inputs'!$I$38*('Model inputs'!$I$39+'Model inputs'!$I$39*'Model inputs'!$I$40+'Model inputs'!$I$39*'Model inputs'!$I$40*'Model inputs'!$I$41)*'Model inputs'!$AB$148+'Model inputs'!$J$38*('Model inputs'!$J$39+'Model inputs'!$J$39*'Model inputs'!$J$40+'Model inputs'!$J$39*'Model inputs'!$J$40*'Model inputs'!$J$41)*'Model inputs'!$AB$149),0) -> 1513222.342 | AI48: =AI36+IF('Model inputs'!$F$27*'Model inputs'!$D$102>100000,'Model inputs'!$F$27*'Model inputs'!$D$102,100000) -> 240000 | AJ48: =IF('Model inputs'!$H27>0,AJ36+'Model inputs'!$H27*'Model inputs'!$D$103,0) -> 781078.9474 | AL48: ='Model inputs'!$C27 -> 2022 | AM48: =AN48+AO48-AP48-AQ48 -> 793317.0033 | AN48: =AN36+'Model inputs'!$AH$145+'Model inputs'!$F27*('Model inputs'!$E$38*('Model inputs'!$E$39+'Model inputs'!$E$39*'Model inputs'!$E$40+'Model inputs'!$E$39*'Model inputs'!$E$40*'Model inputs'!$E$41)*'Model inputs'!$AH$147+'Model inputs'!$F$38*('Model inputs'!$F$39+'Model inputs'!$F$39*'Model inputs'!$F$40+'Model inputs'!$F$39*'Model inputs'!$F$40*'Model inputs'!$F$41)*'Model inputs'!$AH$148+'Model inputs'!$G$38*('Model inputs'!$G$39+'Model inputs'!$G$39*'Model inputs'!$G$40+'Model inputs'!$G$39*'Model inputs'!$G$40*'Model inputs'!$G$41)*'Model inputs'!$AH$149) -> 332886.7664 | AO48: =IF(AO10>0,AO36+'Model inputs'!$AH$146+'Model inputs'!$H27*('Model inputs'!$H$38*('Model inputs'!$H$39+'Model inputs'!$H$39*'Model inputs'!$H$40+'Model inputs'!$H$39*'Model inputs'!$H$40*'Model inputs'!$H$41)*'Model inputs'!$AH$147+'Model inputs'!$I$38*('Model inputs'!$I$39+'Model inputs'!$I$39*'Model inputs'!$I$40+'Model inputs'!$I$39*'Model inputs'!$I$40*'Model inputs'!$I$41)*'Model inputs'!$AH$148+'Model inputs'!$J$38*('Model inputs'!$J$39+'Model inputs'!$J$39*'Model inputs'!$J$40+'Model inputs'!$J$39*'Model inputs'!$J$40*'Model inputs'!$J$41)*'Model inputs'!$AH$149),0) -> 1164377.605 | AP48: =AP36+IF('Model inputs'!$F$27*'Model inputs'!$D$102>100000,'Model inputs'!$F$27*'Model inputs'!$D$102,100000) -> 240000 | AQ48: =IF('Model inputs'!$H27>0,AQ36+'Model inputs'!$H27*'Model inputs'!$D$103,0) -> 463947.3684
B49: ='Model inputs'!$C28 -> 2023 | C49: =D49+E49-F49-G49 -> 439865.3849 | D49: =D37+'Model inputs'!$D$145+'Model inputs'!$F28*('Model inputs'!$E$38*('Model inputs'!$E$39+'Model inputs'!$E$39*'Model inputs'!$E$40+'Model inputs'!$E$39*'Model inputs'!$E$40*'Model inputs'!$E$41)*'Model inputs'!$D$147+'Model inputs'!$F$38*('Model inputs'!$F$39+'Model inputs'!$F$39*'Model inputs'!$F$40+'Model inputs'!$F$39*'Model inputs'!$F$40*'Model inputs'!$F$41)*'Model inputs'!$D$148+'Model inputs'!$G$38*('Model inputs'!$G$39+'Model inputs'!$G$39*'Model inputs'!$G$40+'Model inputs'!$G$39*'Model inputs'!$G$40*'Model inputs'!$G$41)*'Model inputs'!$D$149) -> 439865.3849 | E49: =IF(E11>0,E37+'Model inputs'!$D$146+'Model inputs'!$H28*('Model inputs'!$H$38*('Model inputs'!$H$39+'Model inputs'!$H$39*'Model inputs'!$H$40+'Model inputs'!$H$39*'Model inputs'!$H$40*'Model inputs'!$H$41)*'Model inputs'!$D$147+'Model inputs'!$I$38*('Model inputs'!$I$39+'Model inputs'!$I$39*'Model inputs'!$I$40+'Model inputs'!$I$39*'Model inputs'!$I$40*'Model inputs'!$I$41)*'Model inputs'!$D$148+'Model inputs'!$J$38*('Model inputs'!$J$39+'Model inputs'!$J$39*'Model inputs'!$J$40+'Model inputs'!$J$39*'Model inputs'!$J$40*'Model inputs'!$J$41)*'Model inputs'!$D$149),0) -> 0 | F49: 0 | G49: =IF('Model inputs'!$H28>0,G37+'Model inputs'!$H28*'Model inputs'!$D$103,0) -> 0 | I49: ='Model inputs'!$C28 -> 2023 | J49: =K49+L49-M49-N49 -> 466808.148 | K49: =K37+'Model inputs'!$J$145+'Model inputs'!$F28*('Model inputs'!$E$38*('Model inputs'!$E$39+'Model inputs'!$E$39*'Model inputs'!$E$40+'Model inputs'!$E$39*'Model inputs'!$E$40*'Model inputs'!$E$41)*'Model inputs'!$J$147+'Model inputs'!$F$38*('Model inputs'!$F$39+'Model inputs'!$F$39*'Model inputs'!$F$40+'Model inputs'!$F$39*'Model inputs'!$F$40*'Model inputs'!$F$41)*'Model inputs'!$J$148+'Model inputs'!$G$38*('Model inputs'!$G$39+'Model inputs'!$G$39*'Model inputs'!$G$40+'Model inputs'!$G$39*'Model inputs'!$G$40*'Model inputs'!$G$41)*'Model inputs'!$J$149) -> 466808.148 | L49: =IF(L11>0,L37+'Model inputs'!$J$146+'Model inputs'!$H28*('Model inputs'!$H$38*('Model inputs'!$H$39+'Model inputs'!$H$39*'Model inputs'!$H$40+'Model inputs'!$H$39*'Model inputs'!$H$40*'Model inputs'!$H$41)*'Model inputs'!$J$147+'Model inputs'!$I$38*('Model inputs'!$I$39+'Model inputs'!$I$39*'Model inputs'!$I$40+'Model inputs'!$I$39*'Model inputs'!$I$40*'Model inputs'!$I$41)*'Model inputs'!$J$148+'Model inputs'!$J$38*('Model inputs'!$J$39+'Model inputs'!$J$39*'Model inputs'!$J$40+'Model inputs'!$J$39*'Model inputs'!$J$40*'Model inputs'!$J$41)*'Model inputs'!$J$149),0) -> 0 | M49: 0 | N49: =IF('Model inputs'!$H28>0,N37+'Model inputs'!$H28*'Model inputs'!$D$103,0) -> 0 | P49: ='Model inputs'!$C28 -> 2023 | Q49: =R49+S49-T49-U49 -> 380432.8191 | R49: =R37+'Model inputs'!$P$145+'Model inputs'!$F28*('Model inputs'!$E$38*('Model inputs'!$E$39+'Model inputs'!$E$39*'Model inputs'!$E$40+'Model inputs'!$E$39*'Model inputs'!$E$40*'Model inputs'!$E$41)*'Model inputs'!$P$147+'Model inputs'!$F$38*('Model inputs'!$F$39+'Model inputs'!$F$39*'Model inputs'!$F$40+'Model inputs'!$F$39*'Model inputs'!$F$40*'Model inputs'!$F$41)*'Model inputs'!$P$148+'Model inputs'!$G$38*('Model inputs'!$G$39+'Model inputs'!$G$39*'Model inputs'!$G$40+'Model inputs'!$G$39*'Model inputs'!$G$40*'Model inputs'!$G$41)*'Model inputs'!$P$149) -> 380432.8191 | S49: =IF(S11>0,S37+'Model inputs'!$P$146+'Model inputs'!$H28*('Model inputs'!$H$38*('Model inputs'!$H$39+'Model inputs'!$H$39*'Model inputs'!$H$40+'Model inputs'!$H$39*'Model inputs'!$H$40*'Model inputs'!$H$41)*'Model inputs'!$P$147+'Model inputs'!$I$38*('Model inputs'!$I$39+'Model inputs'!$I$39*'Model inputs'!$I$40+'Model inputs'!$I$39*'Model inputs'!$I$40*'Model inputs'!$I$41)*'Model inputs'!$P$148+'Model inputs'!$J$38*('Model inputs'!$J$39+'Model inputs'!$J$39*'Model inputs'!$J$40+'Model inputs'!$J$39*'Model inputs'!$J$40*'Model inputs'!$J$41)*'Model inputs'!$P$149),0) -> 0 | T49: 0 | U49: =IF('Model inputs'!$H28>0,U37+'Model inputs'!$H28*'Model inputs'!$D$103,0) -> 0 | X49: ='Model inputs'!$C28 -> 2023 | Y49: =Z49+AA49-AB49-AC49 -> 466808.148 | Z49: =Z37+'Model inputs'!$V$145+'Model inputs'!$F28*('Model inputs'!$E$38*('Model inputs'!$E$39+'Model inputs'!$E$39*'Model inputs'!$E$40+'Model inputs'!$E$39*'Model inputs'!$E$40*'Model inputs'!$E$41)*'Model inputs'!$V$147+'Model inputs'!$F$38*('Model inputs'!$F$39+'Model inputs'!$F$39*'Model inputs'!$F$40+'Model inputs'!$F$39*'Model inputs'!$F$40*'Model inputs'!$F$41)*'Model inputs'!$V$148+'Model inputs'!$G$38*('Model inputs'!$G$39+'Model inputs'!$G$39*'Model inputs'!$G$40+'Model inputs'!$G$39*'Model inputs'!$G$40*'Model inputs'!$G$41)*'Model inputs'!$V$149) -> 466808.148 | AA49: =IF(AA11>0,AA37+'Model inputs'!$V$146+'Model inputs'!$H28*('Model inputs'!$H$38*('Model inputs'!$H$39+'Model inputs'!$H$39*'Model inputs'!$H$40+'Model inputs'!$H$39*'Model inputs'!$H$40*'Model inputs'!$H$41)*'Model inputs'!$V$147+'Model inputs'!$I$38*('Model inputs'!$I$39+'Model inputs'!$I$39*'Model inputs'!$I$40+'Model inputs'!$I$39*'Model inputs'!$I$40*'Model inputs'!$I$41)*'Model inputs'!$V$148+'Model inputs'!$J$38*('Model inputs'!$J$39+'Model inputs'!$J$39*'Model inputs'!$J$40+'Model inputs'!$J$39*'Model inputs'!$J$40*'Model inputs'!$J$41)*'Model inputs'!$V$149),0) -> 0 | AB49: 0 | AC49: =IF('Model inputs'!$H28>0,AC37+'Model inputs'!$H28*'Model inputs'!$D$103,0) -> 0 | AE49: ='Model inputs'!$C28 -> 2023 | AF49: =AG49+AH49-AI49-AJ49 -> 534957.4901 | AG49: =AG37+'Model inputs'!$AB$145+'Model inputs'!$F28*('Model inputs'!$E$38*('Model inputs'!$E$39+'Model inputs'!$E$39*'Model inputs'!$E$40+'Model inputs'!$E$39*'Model inputs'!$E$40*'Model inputs'!$E$41)*'Model inputs'!$AB$147+'Model inputs'!$F$38*('Model inputs'!$F$39+'Model inputs'!$F$39*'Model inputs'!$F$40+'Model inputs'!$F$39*'Model inputs'!$F$40*'Model inputs'!$F$41)*'Model inputs'!$AB$148+'Model inputs'!$G$38*('Model inputs'!$G$39+'Model inputs'!$G$39*'Model inputs'!$G$40+'Model inputs'!$G$39*'Model inputs'!$G$40*'Model inputs'!$G$41)*'Model inputs'!$AB$149) -> 534957.4901 | AH49: =IF(AH11>0,AH37+'Model inputs'!$AB$146+'Model inputs'!$H28*('Model inputs'!$H$38*('Model inputs'!$H$39+'Model inputs'!$H$39*'Model inputs'!$H$40+'Model inputs'!$H$39*'Model inputs'!$H$40*'Model inputs'!$H$41)*'Model inputs'!$AB$147+'Model inputs'!$I$38*('Model inputs'!$I$39+'Model inputs'!$I$39*'Model inputs'!$I$40+'Model inputs'!$I$39*'Model inputs'!$I$40*'Model inputs'!$I$41)*'Model inputs'!$AB$148+'Model inputs'!$J$38*('Model inputs'!$J$39+'Model inputs'!$J$39*'Model inputs'!$J$40+'Model inputs'!$J$39*'Model inputs'!$J$40*'Model inputs'!$J$41)*'Model inputs'!$AB$149),0) -> 0 | AI49: 0 | AJ49: =IF('Model inputs'!$H28>0,AJ37+'Model inputs'!$H28*'Model inputs'!$D$103,0) -> 0 | AL49: ='Model inputs'!$C28 -> 2023 | AM49: =AN49+AO49-AP49-AQ49 -> 380432.8191 | AN49: =AN37+'Model inputs'!$AH$145+'Model inputs'!$F28*('Model inputs'!$E$38*('Model inputs'!$E$39+'Model inputs'!$E$39*'Model inputs'!$E$40+'Model inputs'!$E$39*'Model inputs'!$E$40*'Model inputs'!$E$41)*'Model inputs'!$AH$147+'Model inputs'!$F$38*('Model inputs'!$F$39+'Model inputs'!$F$39*'Model inputs'!$F$40+'Model inputs'!$F$39*'Model inputs'!$F$40*'Model inputs'!$F$41)*'Model inputs'!$AH$148+'Model inputs'!$G$38*('Model inputs'!$G$39+'Model inputs'!$G$39*'Model inputs'!$G$40+'Model inputs'!$G$39*'Model inputs'!$G$40*'Model inputs'!$G$41)*'Model inputs'!$AH$149) -> 380432.8191 | AO49: =IF(AO11>0,AO37+'Model inputs'!$AH$146+'Model inputs'!$H28*('Model inputs'!$H$38*('Model inputs'!$H$39+'Model inputs'!$H$39*'Model inputs'!$H$40+'Model inputs'!$H$39*'Model inputs'!$H$40*'Model inputs'!$H$41)*'Model inputs'!$AH$147+'Model inputs'!$I$38*('Model inputs'!$I$39+'Model inputs'!$I$39*'Model inputs'!$I$40+'Model inputs'!$I$39*'Model inputs'!$I$40*'Model inputs'!$I$41)*'Model inputs'!$AH$148+'Model inputs'!$J$38*('Model inputs'!$J$39+'Model inputs'!$J$39*'Model inputs'!$J$40+'Model inputs'!$J$39*'Model inputs'!$J$40*'Model inputs'!$J$41)*'Model inputs'!$AH$149),0) -> 0 | AP49: 0 | AQ49: =IF('Model inputs'!$H28>0,AQ37+'Model inputs'!$H28*'Model inputs'!$D$103,0) -> 0
B50: ='Model inputs'!$C29 -> 2024 | C50: 475524.9243 | D50: =D38+'Model inputs'!$D$145+'Model inputs'!$F29*('Model inputs'!$E$38*('Model inputs'!$E$39+'Model inputs'!$E$39*'Model inputs'!$E$40+'Model inputs'!$E$39*'Model inputs'!$E$40*'Model inputs'!$E$41)*'Model inputs'!$D$147+'Model inputs'!$F$38*('Model inputs'!$F$39+'Model inputs'!$F$39*'Model inputs'!$F$40+'Model inputs'!$F$39*'Model inputs'!$F$40*'Model inputs'!$F$41)*'Model inputs'!$D$148+'Model inputs'!$G$38*('Model inputs'!$G$39+'Model inputs'!$G$39*'Model inputs'!$G$40+'Model inputs'!$G$39*'Model inputs'!$G$40*'Model inputs'!$G$41)*'Model inputs'!$D$149) -> 475524.9243 | E50: =IF(E12>0,E38+'Model inputs'!$D$146+'Model inputs'!$H29*('Model inputs'!$H$38*('Model inputs'!$H$39+'Model inputs'!$H$39*'Model inputs'!$H$40+'Model inputs'!$H$39*'Model inputs'!$H$40*'Model inputs'!$H$41)*'Model inputs'!$D$147+'Model inputs'!$I$38*('Model inputs'!$I$39+'Model inputs'!$I$39*'Model inputs'!$I$40+'Model inputs'!$I$39*'Model inputs'!$I$40*'Model inputs'!$I$41)*'Model inputs'!$D$148+'Model inputs'!$J$38*('Model inputs'!$J$39+'Model inputs'!$J$39*'Model inputs'!$J$40+'Model inputs'!$J$39*'Model inputs'!$J$40*'Model inputs'!$J$41)*'Model inputs'!$D$149),0) -> 0 | F50: 0 | G50: =IF('Model inputs'!$H29>0,G38+'Model inputs'!$H29*'Model inputs'!$D$103,0) -> 0 | I50: ='Model inputs'!$C29 -> 2024 | J50: 507856.2401 | K50: =K38+'Model inputs'!$J$145+'Model inputs'!$F29*('Model inputs'!$E$38*('Model inputs'!$E$39+'Model inputs'!$E$39*'Model inputs'!$E$40+'Model inputs'!$E$39*'Model inputs'!$E$40*'Model inputs'!$E$41)*'Model inputs'!$J$147+'Model inputs'!$F$38*('Model inputs'!$F$39+'Model inputs'!$F$39*'Model inputs'!$F$40+'Model inputs'!$F$39*'Model inputs'!$F$40*'Model inputs'!$F$41)*'Model inputs'!$J$148+'Model inputs'!$G$38*('Model inputs'!$G$39+'Model inputs'!$G$39*'Model inputs'!$G$40+'Model inputs'!$G$39*'Model inputs'!$G$40*'Model inputs'!$G$41)*'Model inputs'!$J$149) -> 507856.2401 | L50: =IF(L12>0,L38+'Model inputs'!$J$146+'Model inputs'!$H29*('Model inputs'!$H$38*('Model inputs'!$H$39+'Model inputs'!$H$39*'Model inputs'!$H$40+'Model inputs'!$H$39*'Model inputs'!$H$40*'Model inputs'!$H$41)*'Model inputs'!$J$147+'Model inputs'!$I$38*('Model inputs'!$I$39+'Model inputs'!$I$39*'Model inputs'!$I$40+'Model inputs'!$I$39*'Model inputs'!$I$40*'Model inputs'!$I$41)*'Model inputs'!$J$148+'Model inputs'!$J$38*('Model inputs'!$J$39+'Model inputs'!$J$39*'Model inputs'!$J$40+'Model inputs'!$J$39*'Model inputs'!$J$40*'Model inputs'!$J$41)*'Model inputs'!$J$149),0) -> 0 | M50: 0 | N50: =IF('Model inputs'!$H29>0,N38+'Model inputs'!$H29*'Model inputs'!$D$103,0) -> 0 | P50: ='Model inputs'!$C29 -> 2024 | Q50: 404205.8454 | R50: =R38+'Model inputs'!$P$145+'Model inputs'!$F29*('Model inputs'!$E$38*('Model inputs'!$E$39+'Model inputs'!$E$39*'Model inputs'!$E$40+'Model inputs'!$E$39*'Model inputs'!$E$40*'Model inputs'!$E$41)*'Model inputs'!$P$147+'Model inputs'!$F$38*('Model inputs'!$F$39+'Model inputs'!$F$39*'Model inputs'!$F$40+'Model inputs'!$F$39*'Model inputs'!$F$40*'Model inputs'!$F$41)*'Model inputs'!$P$148+'Model inputs'!$G$38*('Model inputs'!$G$39+'Model inputs'!$G$39*'Model inputs'!$G$40+'Model inputs'!$G$39*'Model inputs'!$G$40*'Model inputs'!$G$41)*'Model inputs'!$P$149) -> 404205.8454 | S50: =IF(S12>0,S38+'Model inputs'!$P$146+'Model inputs'!$H29*('Model inputs'!$H$38*('Model inputs'!$H$39+'Model inputs'!$H$39*'Model inputs'!$H$40+'Model inputs'!$H$39*'Model inputs'!$H$40*'Model inputs'!$H$41)*'Model inputs'!$P$147+'Model inputs'!$I$38*('Model inputs'!$I$39+'Model inputs'!$I$39*'Model inputs'!$I$40+'Model inputs'!$I$39*'Model inputs'!$I$40*'Model inputs'!$I$41)*'Model inputs'!$P$148+'Model inputs'!$J$38*('Model inputs'!$J$39+'Model inputs'!$J$39*'Model inputs'!$J$40+'Model inputs'!$J$39*'Model inputs'!$J$40*'Model inputs'!$J$41)*'Model inputs'!$P$149),0) -> 0 | T50: 0 | U50: =IF('Model inputs'!$H29>0,U38+'Model inputs'!$H29*'Model inputs'!$D$103,0) -> 0 | X50: ='Model inputs'!$C29 -> 2024 | Y50: 507856.2401 | Z50: =Z38+'Model inputs'!$V$145+'Model inputs'!$F29*('Model inputs'!$E$38*('Model inputs'!$E$39+'Model inputs'!$E$39*'Model inputs'!$E$40+'Model inputs'!$E$39*'Model inputs'!$E$40*'Model inputs'!$E$41)*'Model inputs'!$V$147+'Model inputs'!$F$38*('Model inputs'!$F$39+'Model inputs'!$F$39*'Model inputs'!$F$40+'Model inputs'!$F$39*'Model inputs'!$F$40*'Model inputs'!$F$41)*'Model inputs'!$V$148+'Model inputs'!$G$38*('Model inputs'!$G$39+'Model inputs'!$G$39*'Model inputs'!$G$40+'Model inputs'!$G$39*'Model inputs'!$G$40*'Model inputs'!$G$41)*'Model inputs'!$V$149) -> 507856.2401 | AA50: =IF(AA12>0,AA38+'Model inputs'!$V$146+'Model inputs'!$H29*('Model inputs'!$H$38*('Model inputs'!$H$39+'Model inputs'!$H$39*'Model inputs'!$H$40+'Model inputs'!$H$39*'Model inputs'!$H$40*'Model inputs'!$H$41)*'Model inputs'!$V$147+'Model inputs'!$I$38*('Model inputs'!$I$39+'Model inputs'!$I$39*'Model inputs'!$I$40+'Model inputs'!$I$39*'Model inputs'!$I$40*'Model inputs'!$I$41)*'Model inputs'!$V$148+'Model inputs'!$J$38*('Model inputs'!$J$39+'Model inputs'!$J$39*'Model inputs'!$J$40+'Model inputs'!$J$39*'Model inputs'!$J$40*'Model inputs'!$J$41)*'Model inputs'!$V$149),0) -> 0 | AB50: 0 | AC50: =IF('Model inputs'!$H29>0,AC38+'Model inputs'!$H29*'Model inputs'!$D$103,0) -> 0 | AE50: ='Model inputs'!$C29 -> 2024 | AF50: 589635.4507 | AG50: =AG38+'Model inputs'!$AB$145+'Model inputs'!$F29*('Model inputs'!$E$38*('Model inputs'!$E$39+'Model inputs'!$E$39*'Model inputs'!$E$40+'Model inputs'!$E$39*'Model inputs'!$E$40*'Model inputs'!$E$41)*'Model inputs'!$AB$147+'Model inputs'!$F$38*('Model inputs'!$F$39+'Model inputs'!$F$39*'Model inputs'!$F$40+'Model inputs'!$F$39*'Model inputs'!$F$40*'Model inputs'!$F$41)*'Model inputs'!$AB$148+'Model inputs'!$G$38*('Model inputs'!$G$39+'Model inputs'!$G$39*'Model inputs'!$G$40+'Model inputs'!$G$39*'Model inputs'!$G$40*'Model inputs'!$G$41)*'Model inputs'!$AB$149) -> 589635.4507 | AH50: =IF(AH12>0,AH38+'Model inputs'!$AB$146+'Model inputs'!$H29*('Model inputs'!$H$38*('Model inputs'!$H$39+'Model inputs'!$H$39*'Model inputs'!$H$40+'Model inputs'!$H$39*'Model inputs'!$H$40*'Model inputs'!$H$41)*'Model inputs'!$AB$147+'Model inputs'!$I$38*('Model inputs'!$I$39+'Model inputs'!$I$39*'Model inputs'!$I$40+'Model inputs'!$I$39*'Model inputs'!$I$40*'Model inputs'!$I$41)*'Model inputs'!$AB$148+'Model inputs'!$J$38*('Model inputs'!$J$39+'Model inputs'!$J$39*'Model inputs'!$J$40+'Model inputs'!$J$39*'Model inputs'!$J$40*'Model inputs'!$J$41)*'Model inputs'!$AB$149),0) -> 0 | AI50: 0 | AJ50: =IF('Model inputs'!$H29>0,AJ38+'Model inputs'!$H29*'Model inputs'!$D$103,0) -> 0 | AL50: ='Model inputs'!$C29 -> 2024 | AM50: 404205.8454 | AN50: =AN38+'Model inputs'!$AH$145+'Model inputs'!$F29*('Model inputs'!$E$38*('Model inputs'!$E$39+'Model inputs'!$E$39*'Model inputs'!$E$40+'Model inputs'!$E$39*'Model inputs'!$E$40*'Model inputs'!$E$41)*'Model inputs'!$AH$147+'Model inputs'!$F$38*('Model inputs'!$F$39+'Model inputs'!$F$39*'Model inputs'!$F$40+'Model inputs'!$F$39*'Model inputs'!$F$40*'Model inputs'!$F$41)*'Model inputs'!$AH$148+'Model inputs'!$G$38*('Model inputs'!$G$39+'Model inputs'!$G$39*'Model inputs'!$G$40+'Model inputs'!$G$39*'Model inputs'!$G$40*'Model inputs'!$G$41)*'Model inputs'!$AH$149) -> 404205.8454 | AO50: =IF(AO12>0,AO38+'Model inputs'!$AH$146+'Model inputs'!$H29*('Model inputs'!$H$38*('Model inputs'!$H$39+'Model inputs'!$H$39*'Model inputs'!$H$40+'Model inputs'!$H$39*'Model inputs'!$H$40*'Model inputs'!$H$41)*'Model inputs'!$AH$147+'Model inputs'!$I$38*('Model inputs'!$I$39+'Model inputs'!$I$39*'Model inputs'!$I$40+'Model inputs'!$I$39*'Model inputs'!$I$40*'Model inputs'!$I$41)*'Model inputs'!$AH$148+'Model inputs'!$J$38*('Model inputs'!$J$39+'Model inputs'!$J$39*'Model inputs'!$J$40+'Model inputs'!$J$39*'Model inputs'!$J$40*'Model inputs'!$J$41)*'Model inputs'!$AH$149),0) -> 0 | AP50: 0 | AQ50: =IF('Model inputs'!$H29>0,AQ38+'Model inputs'!$H29*'Model inputs'!$D$103,0) -> 0
B51: ='Model inputs'!$C30 -> 2025 | C51: 511184.4638 | D51: =D39+'Model inputs'!$D$145+'Model inputs'!$F30*('Model inputs'!$E$38*('Model inputs'!$E$39+'Model inputs'!$E$39*'Model inputs'!$E$40+'Model inputs'!$E$39*'Model inputs'!$E$40*'Model inputs'!$E$41)*'Model inputs'!$D$147+'Model inputs'!$F$38*('Model inputs'!$F$39+'Model inputs'!$F$39*'Model inputs'!$F$40+'Model inputs'!$F$39*'Model inputs'!$F$40*'Model inputs'!$F$41)*'Model inputs'!$D$148+'Model inputs'!$G$38*('Model inputs'!$G$39+'Model inputs'!$G$39*'Model inputs'!$G$40+'Model inputs'!$G$39*'Model inputs'!$G$40*'Model inputs'!$G$41)*'Model inputs'!$D$149) -> 511184.4638 | E51: =IF(E13>0,E39+'Model inputs'!$D$146+'Model inputs'!$H30*('Model inputs'!$H$38*('Model inputs'!$H$39+'Model inputs'!$H$39*'Model inputs'!$H$40+'Model inputs'!$H$39*'Model inputs'!$H$40*'Model inputs'!$H$41)*'Model inputs'!$D$147+'Model inputs'!$I$38*('Model inputs'!$I$39+'Model inputs'!$I$39*'Model inputs'!$I$40+'Model inputs'!$I$39*'Model inputs'!$I$40*'Model inputs'!$I$41)*'Model inputs'!$D$148+'Model inputs'!$J$38*('Model inputs'!$J$39+'Model inputs'!$J$39*'Model inputs'!$J$40+'Model inputs'!$J$39*'Model inputs'!$J$40*'Model inputs'!$J$41)*'Model inputs'!$D$149),0) -> 0 | F51: 0 | G51: =IF('Model inputs'!$H30>0,G39+'Model inputs'!$H30*'Model inputs'!$D$103,0) -> 0 | I51: ='Model inputs'!$C30 -> 2025 | J51: 548904.3322 | K51: =K39+'Model inputs'!$J$145+'Model inputs'!$F30*('Model inputs'!$E$38*('Model inputs'!$E$39+'Model inputs'!$E$39*'Model inputs'!$E$40+'Model inputs'!$E$39*'Model inputs'!$E$40*'Model inputs'!$E$41)*'Model inputs'!$J$147+'Model inputs'!$F$38*('Model inputs'!$F$39+'Model inputs'!$F$39*'Model inputs'!$F$40+'Model inputs'!$F$39*'Model inputs'!$F$40*'Model inputs'!$F$41)*'Model inputs'!$J$148+'Model inputs'!$G$38*('Model inputs'!$G$39+'Model inputs'!$G$39*'Model inputs'!$G$40+'Model inputs'!$G$39*'Model inputs'!$G$40*'Model inputs'!$G$41)*'Model inputs'!$J$149) -> 548904.3322 | L51: =IF(L13>0,L39+'Model inputs'!$J$146+'Model inputs'!$H30*('Model inputs'!$H$38*('Model inputs'!$H$39+'Model inputs'!$H$39*'Model inputs'!$H$40+'Model inputs'!$H$39*'Model inputs'!$H$40*'Model inputs'!$H$41)*'Model inputs'!$J$147+'Model inputs'!$I$38*('Model inputs'!$I$39+'Model inputs'!$I$39*'Model inputs'!$I$40+'Model inputs'!$I$39*'Model inputs'!$I$40*'Model inputs'!$I$41)*'Model inputs'!$J$148+'Model inputs'!$J$38*('Model inputs'!$J$39+'Model inputs'!$J$39*'Model inputs'!$J$40+'Model inputs'!$J$39*'Model inputs'!$J$40*'Model inputs'!$J$41)*'Model inputs'!$J$149),0) -> 0 | M51: 0 | N51: =IF('Model inputs'!$H30>0,N39+'Model inputs'!$H30*'Model inputs'!$D$103,0) -> 0 | P51: ='Model inputs'!$C30 -> 2025 | Q51: 427978.8717 | R51: =R39+'Model inputs'!$P$145+'Model inputs'!$F30*('Model inputs'!$E$38*('Model inputs'!$E$39+'Model inputs'!$E$39*'Model inputs'!$E$40+'Model inputs'!$E$39*'Model inputs'!$E$40*'Model inputs'!$E$41)*'Model inputs'!$P$147+'Model inputs'!$F$38*('Model inputs'!$F$39+'Model inputs'!$F$39*'Model inputs'!$F$40+'Model inputs'!$F$39*'Model inputs'!$F$40*'Model inputs'!$F$41)*'Model inputs'!$P$148+'Model inputs'!$G$38*('Model inputs'!$G$39+'Model inputs'!$G$39*'Model inputs'!$G$40+'Model inputs'!$G$39*'Model inputs'!$G$40*'Model inputs'!$G$41)*'Model inputs'!$P$149) -> 427978.8717 | S51: =IF(S13>0,S39+'Model inputs'!$P$146+'Model inputs'!$H30*('Model inputs'!$H$38*('Model inputs'!$H$39+'Model inputs'!$H$39*'Model inputs'!$H$40+'Model inputs'!$H$39*'Model inputs'!$H$40*'Model inputs'!$H$41)*'Model inputs'!$P$147+'Model inputs'!$I$38*('Model inputs'!$I$39+'Model inputs'!$I$39*'Model inputs'!$I$40+'Model inputs'!$I$39*'Model inputs'!$I$40*'Model inputs'!$I$41)*'Model inputs'!$P$148+'Model inputs'!$J$38*('Model inputs'!$J$39+'Model inputs'!$J$39*'Model inputs'!$J$40+'Model inputs'!$J$39*'Model inputs'!$J$40*'Model inputs'!$J$41)*'Model inputs'!$P$149),0) -> 0 | T51: 0 | U51: =IF('Model inputs'!$H30>0,U39+'Model inputs'!$H30*'Model inputs'!$D$103,0) -> 0 | X51: ='Model inputs'!$C30 -> 2025 | Y51: 548904.3322 | Z51: =Z39+'Model inputs'!$V$145+'Model inputs'!$F30*('Model inputs'!$E$38*('Model inputs'!$E$39+'Model inputs'!$E$39*'Model inputs'!$E$40+'Model inputs'!$E$39*'Model inputs'!$E$40*'Model inputs'!$E$41)*'Model inputs'!$V$147+'Model inputs'!$F$38*('Model inputs'!$F$39+'Model inputs'!$F$39*'Model inputs'!$F$40+'Model inputs'!$F$39*'Model inputs'!$F$40*'Model inputs'!$F$41)*'Model inputs'!$V$148+'Model inputs'!$G$38*('Model inputs'!$G$39+'Model inputs'!$G$39*'Model inputs'!$G$40+'Model inputs'!$G$39*'Model inputs'!$G$40*'Model inputs'!$G$41)*'Model inputs'!$V$149) -> 548904.3322 | AA51: =IF(AA13>0,AA39+'Model inputs'!$V$146+'Model inputs'!$H30*('Model inputs'!$H$38*('Model inputs'!$H$39+'Model inputs'!$H$39*'Model inputs'!$H$40+'Model inputs'!$H$39*'Model inputs'!$H$40*'Model inputs'!$H$41)*'Model inputs'!$V$147+'Model inputs'!$I$38*('Model inputs'!$I$39+'Model inputs'!$I$39*'Model inputs'!$I$40+'Model inputs'!$I$39*'Model inputs'!$I$40*'Model inputs'!$I$41)*'Model inputs'!$V$148+'Model inputs'!$J$38*('Model inputs'!$J$39+'Model inputs'!$J$39*'Model inputs'!$J$40+'Model inputs'!$J$39*'Model inputs'!$J$40*'Model inputs'!$J$41)*'Model inputs'!$V$149),0) -> 0 | AB51: 0 | AC51: =IF('Model inputs'!$H30>0,AC39+'Model inputs'!$H30*'Model inputs'!$D$103,0) -> 0 | AE51: ='Model inputs'!$C30 -> 2025 | AF51: 644313.4112 | AG51: =AG39+'Model inputs'!$AB$145+'Model inputs'!$F30*('Model inputs'!$E$38*('Model inputs'!$E$39+'Model inputs'!$E$39*'Model inputs'!$E$40+'Model inputs'!$E$39*'Model inputs'!$E$40*'Model inputs'!$E$41)*'Model inputs'!$AB$147+'Model inputs'!$F$38*('Model inputs'!$F$39+'Model inputs'!$F$39*'Model inputs'!$F$40+'Model inputs'!$F$39*'Model inputs'!$F$40*'Model inputs'!$F$41)*'Model inputs'!$AB$148+'Model inputs'!$G$38*('Model inputs'!$G$39+'Model inputs'!$G$39*'Model inputs'!$G$40+'Model inputs'!$G$39*'Model inputs'!$G$40*'Model inputs'!$G$41)*'Model inputs'!$AB$149) -> 644313.4112 | AH51: =IF(AH13>0,AH39+'Model inputs'!$AB$146+'Model inputs'!$H30*('Model inputs'!$H$38*('Model inputs'!$H$39+'Model inputs'!$H$39*'Model inputs'!$H$40+'Model inputs'!$H$39*'Model inputs'!$H$40*'Model inputs'!$H$41)*'Model inputs'!$AB$147+'Model inputs'!$I$38*('Model inputs'!$I$39+'Model inputs'!$I$39*'Model inputs'!$I$40+'Model inputs'!$I$39*'Model inputs'!$I$40*'Model inputs'!$I$41)*'Model inputs'!$AB$148+'Model inputs'!$J$38*('Model inputs'!$J$39+'Model inputs'!$J$39*'Model inputs'!$J$40+'Model inputs'!$J$39*'Model inputs'!$J$40*'Model inputs'!$J$41)*'Model inputs'!$AB$149),0) -> 0 | AI51: 0 | AJ51: =IF('Model inputs'!$H30>0,AJ39+'Model inputs'!$H30*'Model inputs'!$D$103,0) -> 0 | AL51: ='Model inputs'!$C30 -> 2025 | AM51: 427978.8717 | AN51: =AN39+'Model inputs'!$AH$145+'Model inputs'!$F30*('Model inputs'!$E$38*('Model inputs'!$E$39+'Model inputs'!$E$39*'Model inputs'!$E$40+'Model inputs'!$E$39*'Model inputs'!$E$40*'Model inputs'!$E$41)*'Model inputs'!$AH$147+'Model inputs'!$F$38*('Model inputs'!$F$39+'Model inputs'!$F$39*'Model inputs'!$F$40+'Model inputs'!$F$39*'Model inputs'!$F$40*'Model inputs'!$F$41)*'Model inputs'!$AH$148+'Model inputs'!$G$38*('Model inputs'!$G$39+'Model inputs'!$G$39*'Model inputs'!$G$40+'Model inputs'!$G$39*'Model inputs'!$G$40*'Model inputs'!$G$41)*'Model inputs'!$AH$149) -> 427978.8717 | AO51: =IF(AO13>0,AO39+'Model inputs'!$AH$146+'Model inputs'!$H30*('Model inputs'!$H$38*('Model inputs'!$H$39+'Model inputs'!$H$39*'Model inputs'!$H$40+'Model inputs'!$H$39*'Model inputs'!$H$40*'Model inputs'!$H$41)*'Model inputs'!$AH$147+'Model inputs'!$I$38*('Model inputs'!$I$39+'Model inputs'!$I$39*'Model inputs'!$I$40+'Model inputs'!$I$39*'Model inputs'!$I$40*'Model inputs'!$I$41)*'Model inputs'!$AH$148+'Model inputs'!$J$38*('Model inputs'!$J$39+'Model inputs'!$J$39*'Model inputs'!$J$40+'Model inputs'!$J$39*'Model inputs'!$J$40*'Model inputs'!$J$41)*'Model inputs'!$AH$149),0) -> 0 | AP51: 0 | AQ51: =IF('Model inputs'!$H30>0,AQ39+'Model inputs'!$H30*'Model inputs'!$D$103,0) -> 0
B52: ='Model inputs'!$C31 -> 2026 | C52: 546844.0033 | D52: =D40+'Model inputs'!$D$145+'Model inputs'!$F31*('Model inputs'!$E$38*('Model inputs'!$E$39+'Model inputs'!$E$39*'Model inputs'!$E$40+'Model inputs'!$E$39*'Model inputs'!$E$40*'Model inputs'!$E$41)*'Model inputs'!$D$147+'Model inputs'!$F$38*('Model inputs'!$F$39+'Model inputs'!$F$39*'Model inputs'!$F$40+'Model inputs'!$F$39*'Model inputs'!$F$40*'Model inputs'!$F$41)*'Model inputs'!$D$148+'Model inputs'!$G$38*('Model inputs'!$G$39+'Model inputs'!$G$39*'Model inputs'!$G$40+'Model inputs'!$G$39*'Model inputs'!$G$40*'Model inputs'!$G$41)*'Model inputs'!$D$149) -> 546844.0033 | E52: =IF(E14>0,E40+'Model inputs'!$D$146+'Model inputs'!$H31*('Model inputs'!$H$38*('Model inputs'!$H$39+'Model inputs'!$H$39*'Model inputs'!$H$40+'Model inputs'!$H$39*'Model inputs'!$H$40*'Model inputs'!$H$41)*'Model inputs'!$D$147+'Model inputs'!$I$38*('Model inputs'!$I$39+'Model inputs'!$I$39*'Model inputs'!$I$40+'Model inputs'!$I$39*'Model inputs'!$I$40*'Model inputs'!$I$41)*'Model inputs'!$D$148+'Model inputs'!$J$38*('Model inputs'!$J$39+'Model inputs'!$J$39*'Model inputs'!$J$40+'Model inputs'!$J$39*'Model inputs'!$J$40*'Model inputs'!$J$41)*'Model inputs'!$D$149),0) -> 0 | F52: 0 | G52: =IF('Model inputs'!$H31>0,G40+'Model inputs'!$H31*'Model inputs'!$D$103,0) -> 0 | I52: ='Model inputs'!$C31 -> 2026 | J52: 589952.4243 | K52: =K40+'Model inputs'!$J$145+'Model inputs'!$F31*('Model inputs'!$E$38*('Model inputs'!$E$39+'Model inputs'!$E$39*'Model inputs'!$E$40+'Model inputs'!$E$39*'Model inputs'!$E$40*'Model inputs'!$E$41)*'Model inputs'!$J$147+'Model inputs'!$F$38*('Model inputs'!$F$39+'Model inputs'!$F$39*'Model inputs'!$F$40+'Model inputs'!$F$39*'Model inputs'!$F$40*'Model inputs'!$F$41)*'Model inputs'!$J$148+'Model inputs'!$G$38*('Model inputs'!$G$39+'Model inputs'!$G$39*'Model inputs'!$G$40+'Model inputs'!$G$39*'Model inputs'!$G$40*'Model inputs'!$G$41)*'Model inputs'!$J$149) -> 589952.4243 | L52: =IF(L14>0,L40+'Model inputs'!$J$146+'Model inputs'!$H31*('Model inputs'!$H$38*('Model inputs'!$H$39+'Model inputs'!$H$39*'Model inputs'!$H$40+'Model inputs'!$H$39*'Model inputs'!$H$40*'Model inputs'!$H$41)*'Model inputs'!$J$147+'Model inputs'!$I$38*('Model inputs'!$I$39+'Model inputs'!$I$39*'Model inputs'!$I$40+'Model inputs'!$I$39*'Model inputs'!$I$40*'Model inputs'!$I$41)*'Model inputs'!$J$148+'Model inputs'!$J$38*('Model inputs'!$J$39+'Model inputs'!$J$39*'Model inputs'!$J$40+'Model inputs'!$J$39*'Model inputs'!$J$40*'Model inputs'!$J$41)*'Model inputs'!$J$149),0) -> 0 | M52: 0 | N52: =IF('Model inputs'!$H31>0,N40+'Model inputs'!$H31*'Model inputs'!$D$103,0) -> 0 | P52: ='Model inputs'!$C31 -> 2026 | Q52: 451751.898 | R52: =R40+'Model inputs'!$P$145+'Model inputs'!$F31*('Model inputs'!$E$38*('Model inputs'!$E$39+'Model inputs'!$E$39*'Model inputs'!$E$40+'Model inputs'!$E$39*'Model inputs'!$E$40*'Model inputs'!$E$41)*'Model inputs'!$P$147+'Model inputs'!$F$38*('Model inputs'!$F$39+'Model inputs'!$F$39*'Model inputs'!$F$40+'Model inputs'!$F$39*'Model inputs'!$F$40*'Model inputs'!$F$41)*'Model inputs'!$P$148+'Model inputs'!$G$38*('Model inputs'!$G$39+'Model inputs'!$G$39*'Model inputs'!$G$40+'Model inputs'!$G$39*'Model inputs'!$G$40*'Model inputs'!$G$41)*'Model inputs'!$P$149) -> 451751.898 | S52: =IF(S14>0,S40+'Model inputs'!$P$146+'Model inputs'!$H31*('Model inputs'!$H$38*('Model inputs'!$H$39+'Model inputs'!$H$39*'Model inputs'!$H$40+'Model inputs'!$H$39*'Model inputs'!$H$40*'Model inputs'!$H$41)*'Model inputs'!$P$147+'Model inputs'!$I$38*('Model inputs'!$I$39+'Model inputs'!$I$39*'Model inputs'!$I$40+'Model inputs'!$I$39*'Model inputs'!$I$40*'Model inputs'!$I$41)*'Model inputs'!$P$148+'Model inputs'!$J$38*('Model inputs'!$J$39+'Model inputs'!$J$39*'Model inputs'!$J$40+'Model inputs'!$J$39*'Model inputs'!$J$40*'Model inputs'!$J$41)*'Model inputs'!$P$149),0) -> 0 | T52: 0 | U52: =IF('Model inputs'!$H31>0,U40+'Model inputs'!$H31*'Model inputs'!$D$103,0) -> 0 | X52: ='Model inputs'!$C31 -> 2026 | Y52: 589952.4243 | Z52: =Z40+'Model inputs'!$V$145+'Model inputs'!$F31*('Model inputs'!$E$38*('Model inputs'!$E$39+'Model inputs'!$E$39*'Model inputs'!$E$40+'Model inputs'!$E$39*'Model inputs'!$E$40*'Model inputs'!$E$41)*'Model inputs'!$V$147+'Model inputs'!$F$38*('Model inputs'!$F$39+'Model inputs'!$F$39*'Model inputs'!$F$40+'Model inputs'!$F$39*'Model inputs'!$F$40*'Model inputs'!$F$41)*'Model inputs'!$V$148+'Model inputs'!$G$38*('Model inputs'!$G$39+'Model inputs'!$G$39*'Model inputs'!$G$40+'Model inputs'!$G$39*'Model inputs'!$G$40*'Model inputs'!$G$41)*'Model inputs'!$V$149) -> 589952.4243 | AA52: =IF(AA14>0,AA40+'Model inputs'!$V$146+'Model inputs'!$H31*('Model inputs'!$H$38*('Model inputs'!$H$39+'Model inputs'!$H$39*'Model inputs'!$H$40+'Model inputs'!$H$39*'Model inputs'!$H$40*'Model inputs'!$H$41)*'Model inputs'!$V$147+'Model inputs'!$I$38*('Model inputs'!$I$39+'Model inputs'!$I$39*'Model inputs'!$I$40+'Model inputs'!$I$39*'Model inputs'!$I$40*'Model inputs'!$I$41)*'Model inputs'!$V$148+'Model inputs'!$J$38*('Model inputs'!$J$39+'Model inputs'!$J$39*'Model inputs'!$J$40+'Model inputs'!$J$39*'Model inputs'!$J$40*'Model inputs'!$J$41)*'Model inputs'!$V$149),0) -> 0 | AB52: 0 | AC52: =IF('Model inputs'!$H31>0,AC40+'Model inputs'!$H31*'Model inputs'!$D$103,0) -> 0 | AE52: ='Model inputs'!$C31 -> 2026 | AF52: 698991.3717 | AG52: =AG40+'Model inputs'!$AB$145+'Model inputs'!$F31*('Model inputs'!$E$38*('Model inputs'!$E$39+'Model inputs'!$E$39*'Model inputs'!$E$40+'Model inputs'!$E$39*'Model inputs'!$E$40*'Model inputs'!$E$41)*'Model inputs'!$AB$147+'Model inputs'!$F$38*('Model inputs'!$F$39+'Model inputs'!$F$39*'Model inputs'!$F$40+'Model inputs'!$F$39*'Model inputs'!$F$40*'Model inputs'!$F$41)*'Model inputs'!$AB$148+'Model inputs'!$G$38*('Model inputs'!$G$39+'Model inputs'!$G$39*'Model inputs'!$G$40+'Model inputs'!$G$39*'Model inputs'!$G$40*'Model inputs'!$G$41)*'Model inputs'!$AB$149) -> 698991.3717 | AH52: =IF(AH14>0,AH40+'Model inputs'!$AB$146+'Model inputs'!$H31*('Model inputs'!$H$38*('Model inputs'!$H$39+'Model inputs'!$H$39*'Model inputs'!$H$40+'Model inputs'!$H$39*'Model inputs'!$H$40*'Model inputs'!$H$41)*'Model inputs'!$AB$147+'Model inputs'!$I$38*('Model inputs'!$I$39+'Model inputs'!$I$39*'Model inputs'!$I$40+'Model inputs'!$I$39*'Model inputs'!$I$40*'Model inputs'!$I$41)*'Model inputs'!$AB$148+'Model inputs'!$J$38*('Model inputs'!$J$39+'Model inputs'!$J$39*'Model inputs'!$J$40+'Model inputs'!$J$39*'Model inputs'!$J$40*'Model inputs'!$J$41)*'Model inputs'!$AB$149),0) -> 0 | AI52: 0 | AJ52: =IF('Model inputs'!$H31>0,AJ40+'Model inputs'!$H31*'Model inputs'!$D$103,0) -> 0 | AL52: ='Model inputs'!$C31 -> 2026 | AM52: 451751.898 | AN52: =AN40+'Model inputs'!$AH$145+'Model inputs'!$F31*('Model inputs'!$E$38*('Model inputs'!$E$39+'Model inputs'!$E$39*'Model inputs'!$E$40+'Model inputs'!$E$39*'Model inputs'!$E$40*'Model inputs'!$E$41)*'Model inputs'!$AH$147+'Model inputs'!$F$38*('Model inputs'!$F$39+'Model inputs'!$F$39*'Model inputs'!$F$40+'Model inputs'!$F$39*'Model inputs'!$F$40*'Model inputs'!$F$41)*'Model inputs'!$AH$148+'Model inputs'!$G$38*('Model inputs'!$G$39+'Model inputs'!$G$39*'Model inputs'!$G$40+'Model inputs'!$G$39*'Model inputs'!$G$40*'Model inputs'!$G$41)*'Model inputs'!$AH$149) -> 451751.898 | AO52: =IF(AO14>0,AO40+'Model inputs'!$AH$146+'Model inputs'!$H31*('Model inputs'!$H$38*('Model inputs'!$H$39+'Model inputs'!$H$39*'Model inputs'!$H$40+'Model inputs'!$H$39*'Model inputs'!$H$40*'Model inputs'!$H$41)*'Model inputs'!$AH$147+'Model inputs'!$I$38*('Model inputs'!$I$39+'Model inputs'!$I$39*'Model inputs'!$I$40+'Model inputs'!$I$39*'Model inputs'!$I$40*'Model inputs'!$I$41)*'Model inputs'!$AH$148+'Model inputs'!$J$38*('Model inputs'!$J$39+'Model inputs'!$J$39*'Model inputs'!$J$40+'Model inputs'!$J$39*'Model inputs'!$J$40*'Model inputs'!$J$41)*'Model inputs'!$AH$149),0) -> 0 | AP52: 0 | AQ52: =IF('Model inputs'!$H31>0,AQ40+'Model inputs'!$H31*'Model inputs'!$D$103,0) -> 0
B53: ='Model inputs'!$C32 -> 2027 | C53: 618163.0822 | D53: =D41+'Model inputs'!$D$145+'Model inputs'!$F32*('Model inputs'!$E$38*('Model inputs'!$E$39+'Model inputs'!$E$39*'Model inputs'!$E$40+'Model inputs'!$E$39*'Model inputs'!$E$40*'Model inputs'!$E$41)*'Model inputs'!$D$147+'Model inputs'!$F$38*('Model inputs'!$F$39+'Model inputs'!$F$39*'Model inputs'!$F$40+'Model inputs'!$F$39*'Model inputs'!$F$40*'Model inputs'!$F$41)*'Model inputs'!$D$148+'Model inputs'!$G$38*('Model inputs'!$G$39+'Model inputs'!$G$39*'Model inputs'!$G$40+'Model inputs'!$G$39*'Model inputs'!$G$40*'Model inputs'!$G$41)*'Model inputs'!$D$149) -> 618163.0822 | E53: =IF(E15>0,E41+'Model inputs'!$D$146+'Model inputs'!$H32*('Model inputs'!$H$38*('Model inputs'!$H$39+'Model inputs'!$H$39*'Model inputs'!$H$40+'Model inputs'!$H$39*'Model inputs'!$H$40*'Model inputs'!$H$41)*'Model inputs'!$D$147+'Model inputs'!$I$38*('Model inputs'!$I$39+'Model inputs'!$I$39*'Model inputs'!$I$40+'Model inputs'!$I$39*'Model inputs'!$I$40*'Model inputs'!$I$41)*'Model inputs'!$D$148+'Model inputs'!$J$38*('Model inputs'!$J$39+'Model inputs'!$J$39*'Model inputs'!$J$40+'Model inputs'!$J$39*'Model inputs'!$J$40*'Model inputs'!$J$41)*'Model inputs'!$D$149),0) -> 0 | F53: 0 | G53: =IF('Model inputs'!$H32>0,G41+'Model inputs'!$H32*'Model inputs'!$D$103,0) -> 0 | I53: ='Model inputs'!$C32 -> 2027 | J53: 672048.6086 | K53: =K41+'Model inputs'!$J$145+'Model inputs'!$F32*('Model inputs'!$E$38*('Model inputs'!$E$39+'Model inputs'!$E$39*'Model inputs'!$E$40+'Model inputs'!$E$39*'Model inputs'!$E$40*'Model inputs'!$E$41)*'Model inputs'!$J$147+'Model inputs'!$F$38*('Model inputs'!$F$39+'Model inputs'!$F$39*'Model inputs'!$F$40+'Model inputs'!$F$39*'Model inputs'!$F$40*'Model inputs'!$F$41)*'Model inputs'!$J$148+'Model inputs'!$G$38*('Model inputs'!$G$39+'Model inputs'!$G$39*'Model inputs'!$G$40+'Model inputs'!$G$39*'Model inputs'!$G$40*'Model inputs'!$G$41)*'Model inputs'!$J$149) -> 672048.6086 | L53: =IF(L15>0,L41+'Model inputs'!$J$146+'Model inputs'!$H32*('Model inputs'!$H$38*('Model inputs'!$H$39+'Model inputs'!$H$39*'Model inputs'!$H$40+'Model inputs'!$H$39*'Model inputs'!$H$40*'Model inputs'!$H$41)*'Model inputs'!$J$147+'Model inputs'!$I$38*('Model inputs'!$I$39+'Model inputs'!$I$39*'Model inputs'!$I$40+'Model inputs'!$I$39*'Model inputs'!$I$40*'Model inputs'!$I$41)*'Model inputs'!$J$148+'Model inputs'!$J$38*('Model inputs'!$J$39+'Model inputs'!$J$39*'Model inputs'!$J$40+'Model inputs'!$J$39*'Model inputs'!$J$40*'Model inputs'!$J$41)*'Model inputs'!$J$149),0) -> 0 | M53: 0 | N53: =IF('Model inputs'!$H32>0,N41+'Model inputs'!$H32*'Model inputs'!$D$103,0) -> 0 | P53: ='Model inputs'!$C32 -> 2027 | Q53: 499297.9507 | R53: =R41+'Model inputs'!$P$145+'Model inputs'!$F32*('Model inputs'!$E$38*('Model inputs'!$E$39+'Model inputs'!$E$39*'Model inputs'!$E$40+'Model inputs'!$E$39*'Model inputs'!$E$40*'Model inputs'!$E$41)*'Model inputs'!$P$147+'Model inputs'!$F$38*('Model inputs'!$F$39+'Model inputs'!$F$39*'Model inputs'!$F$40+'Model inputs'!$F$39*'Model inputs'!$F$40*'Model inputs'!$F$41)*'Model inputs'!$P$148+'Model inputs'!$G$38*('Model inputs'!$G$39+'Model inputs'!$G$39*'Model inputs'!$G$40+'Model inputs'!$G$39*'Model inputs'!$G$40*'Model inputs'!$G$41)*'Model inputs'!$P$149) -> 499297.9507 | S53: =IF(S15>0,S41+'Model inputs'!$P$146+'Model inputs'!$H32*('Model inputs'!$H$38*('Model inputs'!$H$39+'Model inputs'!$H$39*'Model inputs'!$H$40+'Model inputs'!$H$39*'Model inputs'!$H$40*'Model inputs'!$H$41)*'Model inputs'!$P$147+'Model inputs'!$I$38*('Model inputs'!$I$39+'Model inputs'!$I$39*'Model inputs'!$I$40+'Model inputs'!$I$39*'Model inputs'!$I$40*'Model inputs'!$I$41)*'Model inputs'!$P$148+'Model inputs'!$J$38*('Model inputs'!$J$39+'Model inputs'!$J$39*'Model inputs'!$J$40+'Model inputs'!$J$39*'Model inputs'!$J$40*'Model inputs'!$J$41)*'Model inputs'!$P$149),0) -> 0 | T53: 0 | U53: =IF('Model inputs'!$H32>0,U41+'Model inputs'!$H32*'Model inputs'!$D$103,0) -> 0 | X53: ='Model inputs'!$C32 -> 2027 | Y53: 672048.6086 | Z53: =Z41+'Model inputs'!$V$145+'Model inputs'!$F32*('Model inputs'!$E$38*('Model inputs'!$E$39+'Model inputs'!$E$39*'Model inputs'!$E$40+'Model inputs'!$E$39*'Model inputs'!$E$40*'Model inputs'!$E$41)*'Model inputs'!$V$147+'Model inputs'!$F$38*('Model inputs'!$F$39+'Model inputs'!$F$39*'Model inputs'!$F$40+'Model inputs'!$F$39*'Model inputs'!$F$40*'Model inputs'!$F$41)*'Model inputs'!$V$148+'Model inputs'!$G$38*('Model inputs'!$G$39+'Model inputs'!$G$39*'Model inputs'!$G$40+'Model inputs'!$G$39*'Model inputs'!$G$40*'Model inputs'!$G$41)*'Model inputs'!$V$149) -> 672048.6086 | AA53: =IF(AA15>0,AA41+'Model inputs'!$V$146+'Model inputs'!$H32*('Model inputs'!$H$38*('Model inputs'!$H$39+'Model inputs'!$H$39*'Model inputs'!$H$40+'Model inputs'!$H$39*'Model inputs'!$H$40*'Model inputs'!$H$41)*'Model inputs'!$V$147+'Model inputs'!$I$38*('Model inputs'!$I$39+'Model inputs'!$I$39*'Model inputs'!$I$40+'Model inputs'!$I$39*'Model inputs'!$I$40*'Model inputs'!$I$41)*'Model inputs'!$V$148+'Model inputs'!$J$38*('Model inputs'!$J$39+'Model inputs'!$J$39*'Model inputs'!$J$40+'Model inputs'!$J$39*'Model inputs'!$J$40*'Model inputs'!$J$41)*'Model inputs'!$V$149),0) -> 0 | AB53: 0 | AC53: =IF('Model inputs'!$H32>0,AC41+'Model inputs'!$H32*'Model inputs'!$D$103,0) -> 0 | AE53: ='Model inputs'!$C32 -> 2027 | AF53: 808347.2928 | AG53: =AG41+'Model inputs'!$AB$145+'Model inputs'!$F32*('Model inputs'!$E$38*('Model inputs'!$E$39+'Model inputs'!$E$39*'Model inputs'!$E$40+'Model inputs'!$E$39*'Model inputs'!$E$40*'Model inputs'!$E$41)*'Model inputs'!$AB$147+'Model inputs'!$F$38*('Model inputs'!$F$39+'Model inputs'!$F$39*'Model inputs'!$F$40+'Model inputs'!$F$39*'Model inputs'!$F$40*'Model inputs'!$F$41)*'Model inputs'!$AB$148+'Model inputs'!$G$38*('Model inputs'!$G$39+'Model inputs'!$G$39*'Model inputs'!$G$40+'Model inputs'!$G$39*'Model inputs'!$G$40*'Model inputs'!$G$41)*'Model inputs'!$AB$149) -> 808347.2928 | AH53: =IF(AH15>0,AH41+'Model inputs'!$AB$146+'Model inputs'!$H32*('Model inputs'!$H$38*('Model inputs'!$H$39+'Model inputs'!$H$39*'Model inputs'!$H$40+'Model inputs'!$H$39*'Model inputs'!$H$40*'Model inputs'!$H$41)*'Model inputs'!$AB$147+'Model inputs'!$I$38*('Model inputs'!$I$39+'Model inputs'!$I$39*'Model inputs'!$I$40+'Model inputs'!$I$39*'Model inputs'!$I$40*'Model inputs'!$I$41)*'Model inputs'!$AB$148+'Model inputs'!$J$38*('Model inputs'!$J$39+'Model inputs'!$J$39*'Model inputs'!$J$40+'Model inputs'!$J$39*'Model inputs'!$J$40*'Model inputs'!$J$41)*'Model inputs'!$AB$149),0) -> 0 | AI53: 0 | AJ53: =IF('Model inputs'!$H32>0,AJ41+'Model inputs'!$H32*'Model inputs'!$D$103,0) -> 0 | AL53: ='Model inputs'!$C32 -> 2027 | AM53: 499297.9507 | AN53: =AN41+'Model inputs'!$AH$145+'Model inputs'!$F32*('Model inputs'!$E$38*('Model inputs'!$E$39+'Model inputs'!$E$39*'Model inputs'!$E$40+'Model inputs'!$E$39*'Model inputs'!$E$40*'Model inputs'!$E$41)*'Model inputs'!$AH$147+'Model inputs'!$F$38*('Model inputs'!$F$39+'Model inputs'!$F$39*'Model inputs'!$F$40+'Model inputs'!$F$39*'Model inputs'!$F$40*'Model inputs'!$F$41)*'Model inputs'!$AH$148+'Model inputs'!$G$38*('Model inputs'!$G$39+'Model inputs'!$G$39*'Model inputs'!$G$40+'Model inputs'!$G$39*'Model inputs'!$G$40*'Model inputs'!$G$41)*'Model inputs'!$AH$149) -> 499297.9507 | AO53: =IF(AO15>0,AO41+'Model inputs'!$AH$146+'Model inputs'!$H32*('Model inputs'!$H$38*('Model inputs'!$H$39+'Model inputs'!$H$39*'Model inputs'!$H$40+'Model inputs'!$H$39*'Model inputs'!$H$40*'Model inputs'!$H$41)*'Model inputs'!$AH$147+'Model inputs'!$I$38*('Model inputs'!$I$39+'Model inputs'!$I$39*'Model inputs'!$I$40+'Model inputs'!$I$39*'Model inputs'!$I$40*'Model inputs'!$I$41)*'Model inputs'!$AH$148+'Model inputs'!$J$38*('Model inputs'!$J$39+'Model inputs'!$J$39*'Model inputs'!$J$40+'Model inputs'!$J$39*'Model inputs'!$J$40*'Model inputs'!$J$41)*'Model inputs'!$AH$149),0) -> 0 | AP53: 0 | AQ53: =IF('Model inputs'!$H32>0,AQ41+'Model inputs'!$H32*'Model inputs'!$D$103,0) -> 0
B54: ='Model inputs'!$C33 -> 2028 | C54: 689482.1612 | D54: =D42+'Model inputs'!$D$145+'Model inputs'!$F33*('Model inputs'!$E$38*('Model inputs'!$E$39+'Model inputs'!$E$39*'Model inputs'!$E$40+'Model inputs'!$E$39*'Model inputs'!$E$40*'Model inputs'!$E$41)*'Model inputs'!$D$147+'Model inputs'!$F$38*('Model inputs'!$F$39+'Model inputs'!$F$39*'Model inputs'!$F$40+'Model inputs'!$F$39*'Model inputs'!$F$40*'Model inputs'!$F$41)*'Model inputs'!$D$148+'Model inputs'!$G$38*('Model inputs'!$G$39+'Model inputs'!$G$39*'Model inputs'!$G$40+'Model inputs'!$G$39*'Model inputs'!$G$40*'Model inputs'!$G$41)*'Model inputs'!$D$149) -> 689482.1612 | E54: =IF(E16>0,E42+'Model inputs'!$D$146+'Model inputs'!$H33*('Model inputs'!$H$38*('Model inputs'!$H$39+'Model inputs'!$H$39*'Model inputs'!$H$40+'Model inputs'!$H$39*'Model inputs'!$H$40*'Model inputs'!$H$41)*'Model inputs'!$D$147+'Model inputs'!$I$38*('Model inputs'!$I$39+'Model inputs'!$I$39*'Model inputs'!$I$40+'Model inputs'!$I$39*'Model inputs'!$I$40*'Model inputs'!$I$41)*'Model inputs'!$D$148+'Model inputs'!$J$38*('Model inputs'!$J$39+'Model inputs'!$J$39*'Model inputs'!$J$40+'Model inputs'!$J$39*'Model inputs'!$J$40*'Model inputs'!$J$41)*'Model inputs'!$D$149),0) -> 0 | F54: 0 | G54: =IF('Model inputs'!$H33>0,G42+'Model inputs'!$H33*'Model inputs'!$D$103,0) -> 0 | I54: ='Model inputs'!$C33 -> 2028 | J54: 754144.7928 | K54: =K42+'Model inputs'!$J$145+'Model inputs'!$F33*('Model inputs'!$E$38*('Model inputs'!$E$39+'Model inputs'!$E$39*'Model inputs'!$E$40+'Model inputs'!$E$39*'Model inputs'!$E$40*'Model inputs'!$E$41)*'Model inputs'!$J$147+'Model inputs'!$F$38*('Model inputs'!$F$39+'Model inputs'!$F$39*'Model inputs'!$F$40+'Model inputs'!$F$39*'Model inputs'!$F$40*'Model inputs'!$F$41)*'Model inputs'!$J$148+'Model inputs'!$G$38*('Model inputs'!$G$39+'Model inputs'!$G$39*'Model inputs'!$G$40+'Model inputs'!$G$39*'Model inputs'!$G$40*'Model inputs'!$G$41)*'Model inputs'!$J$149) -> 754144.7928 | L54: =IF(L16>0,L42+'Model inputs'!$J$146+'Model inputs'!$H33*('Model inputs'!$H$38*('Model inputs'!$H$39+'Model inputs'!$H$39*'Model inputs'!$H$40+'Model inputs'!$H$39*'Model inputs'!$H$40*'Model inputs'!$H$41)*'Model inputs'!$J$147+'Model inputs'!$I$38*('Model inputs'!$I$39+'Model inputs'!$I$39*'Model inputs'!$I$40+'Model inputs'!$I$39*'Model inputs'!$I$40*'Model inputs'!$I$41)*'Model inputs'!$J$148+'Model inputs'!$J$38*('Model inputs'!$J$39+'Model inputs'!$J$39*'Model inputs'!$J$40+'Model inputs'!$J$39*'Model inputs'!$J$40*'Model inputs'!$J$41)*'Model inputs'!$J$149),0) -> 0 | M54: 0 | N54: =IF('Model inputs'!$H33>0,N42+'Model inputs'!$H33*'Model inputs'!$D$103,0) -> 0 | P54: ='Model inputs'!$C33 -> 2028 | Q54: 546844.0033 | R54: =R42+'Model inputs'!$P$145+'Model inputs'!$F33*('Model inputs'!$E$38*('Model inputs'!$E$39+'Model inputs'!$E$39*'Model inputs'!$E$40+'Model inputs'!$E$39*'Model inputs'!$E$40*'Model inputs'!$E$41)*'Model inputs'!$P$147+'Model inputs'!$F$38*('Model inputs'!$F$39+'Model inputs'!$F$39*'Model inputs'!$F$40+'Model inputs'!$F$39*'Model inputs'!$F$40*'Model inputs'!$F$41)*'Model inputs'!$P$148+'Model inputs'!$G$38*('Model inputs'!$G$39+'Model inputs'!$G$39*'Model inputs'!$G$40+'Model inputs'!$G$39*'Model inputs'!$G$40*'Model inputs'!$G$41)*'Model inputs'!$P$149) -> 546844.0033 | S54: =IF(S16>0,S42+'Model inputs'!$P$146+'Model inputs'!$H33*('Model inputs'!$H$38*('Model inputs'!$H$39+'Model inputs'!$H$39*'Model inputs'!$H$40+'Model inputs'!$H$39*'Model inputs'!$H$40*'Model inputs'!$H$41)*'Model inputs'!$P$147+'Model inputs'!$I$38*('Model inputs'!$I$39+'Model inputs'!$I$39*'Model inputs'!$I$40+'Model inputs'!$I$39*'Model inputs'!$I$40*'Model inputs'!$I$41)*'Model inputs'!$P$148+'Model inputs'!$J$38*('Model inputs'!$J$39+'Model inputs'!$J$39*'Model inputs'!$J$40+'Model inputs'!$J$39*'Model inputs'!$J$40*'Model inputs'!$J$41)*'Model inputs'!$P$149),0) -> 0 | T54: 0 | U54: =IF('Model inputs'!$H33>0,U42+'Model inputs'!$H33*'Model inputs'!$D$103,0) -> 0 | X54: ='Model inputs'!$C33 -> 2028 | Y54: 754144.7928 | Z54: =Z42+'Model inputs'!$V$145+'Model inputs'!$F33*('Model inputs'!$E$38*('Model inputs'!$E$39+'Model inputs'!$E$39*'Model inputs'!$E$40+'Model inputs'!$E$39*'Model inputs'!$E$40*'Model inputs'!$E$41)*'Model inputs'!$V$147+'Model inputs'!$F$38*('Model inputs'!$F$39+'Model inputs'!$F$39*'Model inputs'!$F$40+'Model inputs'!$F$39*'Model inputs'!$F$40*'Model inputs'!$F$41)*'Model inputs'!$V$148+'Model inputs'!$G$38*('Model inputs'!$G$39+'Model inputs'!$G$39*'Model inputs'!$G$40+'Model inputs'!$G$39*'Model inputs'!$G$40*'Model inputs'!$G$41)*'Model inputs'!$V$149) -> 754144.7928 | AA54: =IF(AA16>0,AA42+'Model inputs'!$V$146+'Model inputs'!$H33*('Model inputs'!$H$38*('Model inputs'!$H$39+'Model inputs'!$H$39*'Model inputs'!$H$40+'Model inputs'!$H$39*'Model inputs'!$H$40*'Model inputs'!$H$41)*'Model inputs'!$V$147+'Model inputs'!$I$38*('Model inputs'!$I$39+'Model inputs'!$I$39*'Model inputs'!$I$40+'Model inputs'!$I$39*'Model inputs'!$I$40*'Model inputs'!$I$41)*'Model inputs'!$V$148+'Model inputs'!$J$38*('Model inputs'!$J$39+'Model inputs'!$J$39*'Model inputs'!$J$40+'Model inputs'!$J$39*'Model inputs'!$J$40*'Model inputs'!$J$41)*'Model inputs'!$V$149),0) -> 0 | AB54: 0 | AC54: =IF('Model inputs'!$H33>0,AC42+'Model inputs'!$H33*'Model inputs'!$D$103,0) -> 0 | AE54: ='Model inputs'!$C33 -> 2028 | AF54: 917703.2138 | AG54: =AG42+'Model inputs'!$AB$145+'Model inputs'!$F33*('Model inputs'!$E$38*('Model inputs'!$E$39+'Model inputs'!$E$39*'Model inputs'!$E$40+'Model inputs'!$E$39*'Model inputs'!$E$40*'Model inputs'!$E$41)*'Model inputs'!$AB$147+'Model inputs'!$F$38*('Model inputs'!$F$39+'Model inputs'!$F$39*'Model inputs'!$F$40+'Model inputs'!$F$39*'Model inputs'!$F$40*'Model inputs'!$F$41)*'Model inputs'!$AB$148+'Model inputs'!$G$38*('Model inputs'!$G$39+'Model inputs'!$G$39*'Model inputs'!$G$40+'Model inputs'!$G$39*'Model inputs'!$G$40*'Model inputs'!$G$41)*'Model inputs'!$AB$149) -> 917703.2138 | AH54: =IF(AH16>0,AH42+'Model inputs'!$AB$146+'Model inputs'!$H33*('Model inputs'!$H$38*('Model inputs'!$H$39+'Model inputs'!$H$39*'Model inputs'!$H$40+'Model inputs'!$H$39*'Model inputs'!$H$40*'Model inputs'!$H$41)*'Model inputs'!$AB$147+'Model inputs'!$I$38*('Model inputs'!$I$39+'Model inputs'!$I$39*'Model inputs'!$I$40+'Model inputs'!$I$39*'Model inputs'!$I$40*'Model inputs'!$I$41)*'Model inputs'!$AB$148+'Model inputs'!$J$38*('Model inputs'!$J$39+'Model inputs'!$J$39*'Model inputs'!$J$40+'Model inputs'!$J$39*'Model inputs'!$J$40*'Model inputs'!$J$41)*'Model inputs'!$AB$149),0) -> 0 | AI54: 0 | AJ54: =IF('Model inputs'!$H33>0,AJ42+'Model inputs'!$H33*'Model inputs'!$D$103,0) -> 0 | AL54: ='Model inputs'!$C33 -> 2028 | AM54: 546844.0033 | AN54: =AN42+'Model inputs'!$AH$145+'Model inputs'!$F33*('Model inputs'!$E$38*('Model inputs'!$E$39+'Model inputs'!$E$39*'Model inputs'!$E$40+'Model inputs'!$E$39*'Model inputs'!$E$40*'Model inputs'!$E$41)*'Model inputs'!$AH$147+'Model inputs'!$F$38*('Model inputs'!$F$39+'Model inputs'!$F$39*'Model inputs'!$F$40+'Model inputs'!$F$39*'Model inputs'!$F$40*'Model inputs'!$F$41)*'Model inputs'!$AH$148+'Model inputs'!$G$38*('Model inputs'!$G$39+'Model inputs'!$G$39*'Model inputs'!$G$40+'Model inputs'!$G$39*'Model inputs'!$G$40*'Model inputs'!$G$41)*'Model inputs'!$AH$149) -> 546844.0033 | AO54: =IF(AO16>0,AO42+'Model inputs'!$AH$146+'Model inputs'!$H33*('Model inputs'!$H$38*('Model inputs'!$H$39+'Model inputs'!$H$39*'Model inputs'!$H$40+'Model inputs'!$H$39*'Model inputs'!$H$40*'Model inputs'!$H$41)*'Model inputs'!$AH$147+'Model inputs'!$I$38*('Model inputs'!$I$39+'Model inputs'!$I$39*'Model inputs'!$I$40+'Model inputs'!$I$39*'Model inputs'!$I$40*'Model inputs'!$I$41)*'Model inputs'!$AH$148+'Model inputs'!$J$38*('Model inputs'!$J$39+'Model inputs'!$J$39*'Model inputs'!$J$40+'Model inputs'!$J$39*'Model inputs'!$J$40*'Model inputs'!$J$41)*'Model inputs'!$AH$149),0) -> 0 | AP54: 0 | AQ54: =IF('Model inputs'!$H33>0,AQ42+'Model inputs'!$H33*'Model inputs'!$D$103,0) -> 0
B55: ='Model inputs'!$C34 -> 2029 | C55: 760801.2401 | D55: =D43+'Model inputs'!$D$145+'Model inputs'!$F34*('Model inputs'!$E$38*('Model inputs'!$E$39+'Model inputs'!$E$39*'Model inputs'!$E$40+'Model inputs'!$E$39*'Model inputs'!$E$40*'Model inputs'!$E$41)*'Model inputs'!$D$147+'Model inputs'!$F$38*('Model inputs'!$F$39+'Model inputs'!$F$39*'Model inputs'!$F$40+'Model inputs'!$F$39*'Model inputs'!$F$40*'Model inputs'!$F$41)*'Model inputs'!$D$148+'Model inputs'!$G$38*('Model inputs'!$G$39+'Model inputs'!$G$39*'Model inputs'!$G$40+'Model inputs'!$G$39*'Model inputs'!$G$40*'Model inputs'!$G$41)*'Model inputs'!$D$149) -> 760801.2401 | E55: =IF(E17>0,E43+'Model inputs'!$D$146+'Model inputs'!$H34*('Model inputs'!$H$38*('Model inputs'!$H$39+'Model inputs'!$H$39*'Model inputs'!$H$40+'Model inputs'!$H$39*'Model inputs'!$H$40*'Model inputs'!$H$41)*'Model inputs'!$D$147+'Model inputs'!$I$38*('Model inputs'!$I$39+'Model inputs'!$I$39*'Model inputs'!$I$40+'Model inputs'!$I$39*'Model inputs'!$I$40*'Model inputs'!$I$41)*'Model inputs'!$D$148+'Model inputs'!$J$38*('Model inputs'!$J$39+'Model inputs'!$J$39*'Model inputs'!$J$40+'Model inputs'!$J$39*'Model inputs'!$J$40*'Model inputs'!$J$41)*'Model inputs'!$D$149),0) -> 0 | F55: 0 | G55: =IF('Model inputs'!$H34>0,G43+'Model inputs'!$H34*'Model inputs'!$D$103,0) -> 0 | I55: ='Model inputs'!$C34 -> 2029 | J55: 836240.977 | K55: =K43+'Model inputs'!$J$145+'Model inputs'!$F34*('Model inputs'!$E$38*('Model inputs'!$E$39+'Model inputs'!$E$39*'Model inputs'!$E$40+'Model inputs'!$E$39*'Model inputs'!$E$40*'Model inputs'!$E$41)*'Model inputs'!$J$147+'Model inputs'!$F$38*('Model inputs'!$F$39+'Model inputs'!$F$39*'Model inputs'!$F$40+'Model inputs'!$F$39*'Model inputs'!$F$40*'Model inputs'!$F$41)*'Model inputs'!$J$148+'Model inputs'!$G$38*('Model inputs'!$G$39+'Model inputs'!$G$39*'Model inputs'!$G$40+'Model inputs'!$G$39*'Model inputs'!$G$40*'Model inputs'!$G$41)*'Model inputs'!$J$149) -> 836240.977 | L55: =IF(L17>0,L43+'Model inputs'!$J$146+'Model inputs'!$H34*('Model inputs'!$H$38*('Model inputs'!$H$39+'Model inputs'!$H$39*'Model inputs'!$H$40+'Model inputs'!$H$39*'Model inputs'!$H$40*'Model inputs'!$H$41)*'Model inputs'!$J$147+'Model inputs'!$I$38*('Model inputs'!$I$39+'Model inputs'!$I$39*'Model inputs'!$I$40+'Model inputs'!$I$39*'Model inputs'!$I$40*'Model inputs'!$I$41)*'Model inputs'!$J$148+'Model inputs'!$J$38*('Model inputs'!$J$39+'Model inputs'!$J$39*'Model inputs'!$J$40+'Model inputs'!$J$39*'Model inputs'!$J$40*'Model inputs'!$J$41)*'Model inputs'!$J$149),0) -> 0 | M55: 0 | N55: =IF('Model inputs'!$H34>0,N43+'Model inputs'!$H34*'Model inputs'!$D$103,0) -> 0 | P55: ='Model inputs'!$C34 -> 2029 | Q55: 594390.0559 | R55: =R43+'Model inputs'!$P$145+'Model inputs'!$F34*('Model inputs'!$E$38*('Model inputs'!$E$39+'Model inputs'!$E$39*'Model inputs'!$E$40+'Model inputs'!$E$39*'Model inputs'!$E$40*'Model inputs'!$E$41)*'Model inputs'!$P$147+'Model inputs'!$F$38*('Model inputs'!$F$39+'Model inputs'!$F$39*'Model inputs'!$F$40+'Model inputs'!$F$39*'Model inputs'!$F$40*'Model inputs'!$F$41)*'Model inputs'!$P$148+'Model inputs'!$G$38*('Model inputs'!$G$39+'Model inputs'!$G$39*'Model inputs'!$G$40+'Model inputs'!$G$39*'Model inputs'!$G$40*'Model inputs'!$G$41)*'Model inputs'!$P$149) -> 594390.0559 | S55: =IF(S17>0,S43+'Model inputs'!$P$146+'Model inputs'!$H34*('Model inputs'!$H$38*('Model inputs'!$H$39+'Model inputs'!$H$39*'Model inputs'!$H$40+'Model inputs'!$H$39*'Model inputs'!$H$40*'Model inputs'!$H$41)*'Model inputs'!$P$147+'Model inputs'!$I$38*('Model inputs'!$I$39+'Model inputs'!$I$39*'Model inputs'!$I$40+'Model inputs'!$I$39*'Model inputs'!$I$40*'Model inputs'!$I$41)*'Model inputs'!$P$148+'Model inputs'!$J$38*('Model inputs'!$J$39+'Model inputs'!$J$39*'Model inputs'!$J$40+'Model inputs'!$J$39*'Model inputs'!$J$40*'Model inputs'!$J$41)*'Model inputs'!$P$149),0) -> 0 | T55: 0 | U55: =IF('Model inputs'!$H34>0,U43+'Model inputs'!$H34*'Model inputs'!$D$103,0) -> 0 | X55: ='Model inputs'!$C34 -> 2029 | Y55: 836240.977 | Z55: =Z43+'Model inputs'!$V$145+'Model inputs'!$F34*('Model inputs'!$E$38*('Model inputs'!$E$39+'Model inputs'!$E$39*'Model inputs'!$E$40+'Model inputs'!$E$39*'Model inputs'!$E$40*'Model inputs'!$E$41)*'Model inputs'!$V$147+'Model inputs'!$F$38*('Model inputs'!$F$39+'Model inputs'!$F$39*'Model inputs'!$F$40+'Model inputs'!$F$39*'Model inputs'!$F$40*'Model inputs'!$F$41)*'Model inputs'!$V$148+'Model inputs'!$G$38*('Model inputs'!$G$39+'Model inputs'!$G$39*'Model inputs'!$G$40+'Model inputs'!$G$39*'Model inputs'!$G$40*'Model inputs'!$G$41)*'Model inputs'!$V$149) -> 836240.977 | AA55: =IF(AA17>0,AA43+'Model inputs'!$V$146+'Model inputs'!$H34*('Model inputs'!$H$38*('Model inputs'!$H$39+'Model inputs'!$H$39*'Model inputs'!$H$40+'Model inputs'!$H$39*'Model inputs'!$H$40*'Model inputs'!$H$41)*'Model inputs'!$V$147+'Model inputs'!$I$38*('Model inputs'!$I$39+'Model inputs'!$I$39*'Model inputs'!$I$40+'Model inputs'!$I$39*'Model inputs'!$I$40*'Model inputs'!$I$41)*'Model inputs'!$V$148+'Model inputs'!$J$38*('Model inputs'!$J$39+'Model inputs'!$J$39*'Model inputs'!$J$40+'Model inputs'!$J$39*'Model inputs'!$J$40*'Model inputs'!$J$41)*'Model inputs'!$V$149),0) -> 0 | AB55: 0 | AC55: =IF('Model inputs'!$H34>0,AC43+'Model inputs'!$H34*'Model inputs'!$D$103,0) -> 0 | AE55: ='Model inputs'!$C34 -> 2029 | AF55: 1027059.135 | AG55: =AG43+'Model inputs'!$AB$145+'Model inputs'!$F34*('Model inputs'!$E$38*('Model inputs'!$E$39+'Model inputs'!$E$39*'Model inputs'!$E$40+'Model inputs'!$E$39*'Model inputs'!$E$40*'Model inputs'!$E$41)*'Model inputs'!$AB$147+'Model inputs'!$F$38*('Model inputs'!$F$39+'Model inputs'!$F$39*'Model inputs'!$F$40+'Model inputs'!$F$39*'Model inputs'!$F$40*'Model inputs'!$F$41)*'Model inputs'!$AB$148+'Model inputs'!$G$38*('Model inputs'!$G$39+'Model inputs'!$G$39*'Model inputs'!$G$40+'Model inputs'!$G$39*'Model inputs'!$G$40*'Model inputs'!$G$41)*'Model inputs'!$AB$149) -> 1027059.135 | AH55: =IF(AH17>0,AH43+'Model inputs'!$AB$146+'Model inputs'!$H34*('Model inputs'!$H$38*('Model inputs'!$H$39+'Model inputs'!$H$39*'Model inputs'!$H$40+'Model inputs'!$H$39*'Model inputs'!$H$40*'Model inputs'!$H$41)*'Model inputs'!$AB$147+'Model inputs'!$I$38*('Model inputs'!$I$39+'Model inputs'!$I$39*'Model inputs'!$I$40+'Model inputs'!$I$39*'Model inputs'!$I$40*'Model inputs'!$I$41)*'Model inputs'!$AB$148+'Model inputs'!$J$38*('Model inputs'!$J$39+'Model inputs'!$J$39*'Model inputs'!$J$40+'Model inputs'!$J$39*'Model inputs'!$J$40*'Model inputs'!$J$41)*'Model inputs'!$AB$149),0) -> 0 | AI55: 0 | AJ55: =IF('Model inputs'!$H34>0,AJ43+'Model inputs'!$H34*'Model inputs'!$D$103,0) -> 0 | AL55: ='Model inputs'!$C34 -> 2029 | AM55: 594390.0559 | AN55: =AN43+'Model inputs'!$AH$145+'Model inputs'!$F34*('Model inputs'!$E$38*('Model inputs'!$E$39+'Model inputs'!$E$39*'Model inputs'!$E$40+'Model inputs'!$E$39*'Model inputs'!$E$40*'Model inputs'!$E$41)*'Model inputs'!$AH$147+'Model inputs'!$F$38*('Model inputs'!$F$39+'Model inputs'!$F$39*'Model inputs'!$F$40+'Model inputs'!$F$39*'Model inputs'!$F$40*'Model inputs'!$F$41)*'Model inputs'!$AH$148+'Model inputs'!$G$38*('Model inputs'!$G$39+'Model inputs'!$G$39*'Model inputs'!$G$40+'Model inputs'!$G$39*'Model inputs'!$G$40*'Model inputs'!$G$41)*'Model inputs'!$AH$149) -> 594390.0559 | AO55: =IF(AO17>0,AO43+'Model inputs'!$AH$146+'Model inputs'!$H34*('Model inputs'!$H$38*('Model inputs'!$H$39+'Model inputs'!$H$39*'Model inputs'!$H$40+'Model inputs'!$H$39*'Model inputs'!$H$40*'Model inputs'!$H$41)*'Model inputs'!$AH$147+'Model inputs'!$I$38*('Model inputs'!$I$39+'Model inputs'!$I$39*'Model inputs'!$I$40+'Model inputs'!$I$39*'Model inputs'!$I$40*'Model inputs'!$I$41)*'Model inputs'!$AH$148+'Model inputs'!$J$38*('Model inputs'!$J$39+'Model inputs'!$J$39*'Model inputs'!$J$40+'Model inputs'!$J$39*'Model inputs'!$J$40*'Model inputs'!$J$41)*'Model inputs'!$AH$149),0) -> 0 | AP55: 0 | AQ55: =IF('Model inputs'!$H34>0,AQ43+'Model inputs'!$H34*'Model inputs'!$D$103,0) -> 0
B56: ='Model inputs'!$C35 -> 2030 | C56: 832120.3191 | D56: =D44+'Model inputs'!$D$145+'Model inputs'!$F35*('Model inputs'!$E$38*('Model inputs'!$E$39+'Model inputs'!$E$39*'Model inputs'!$E$40+'Model inputs'!$E$39*'Model inputs'!$E$40*'Model inputs'!$E$41)*'Model inputs'!$D$147+'Model inputs'!$F$38*('Model inputs'!$F$39+'Model inputs'!$F$39*'Model inputs'!$F$40+'Model inputs'!$F$39*'Model inputs'!$F$40*'Model inputs'!$F$41)*'Model inputs'!$D$148+'Model inputs'!$G$38*('Model inputs'!$G$39+'Model inputs'!$G$39*'Model inputs'!$G$40+'Model inputs'!$G$39*'Model inputs'!$G$40*'Model inputs'!$G$41)*'Model inputs'!$D$149) -> 832120.3191 | E56: =IF(E18>0,E44+'Model inputs'!$D$146+'Model inputs'!$H35*('Model inputs'!$H$38*('Model inputs'!$H$39+'Model inputs'!$H$39*'Model inputs'!$H$40+'Model inputs'!$H$39*'Model inputs'!$H$40*'Model inputs'!$H$41)*'Model inputs'!$D$147+'Model inputs'!$I$38*('Model inputs'!$I$39+'Model inputs'!$I$39*'Model inputs'!$I$40+'Model inputs'!$I$39*'Model inputs'!$I$40*'Model inputs'!$I$41)*'Model inputs'!$D$148+'Model inputs'!$J$38*('Model inputs'!$J$39+'Model inputs'!$J$39*'Model inputs'!$J$40+'Model inputs'!$J$39*'Model inputs'!$J$40*'Model inputs'!$J$41)*'Model inputs'!$D$149),0) -> 0 | F56: 0 | G56: =IF('Model inputs'!$H35>0,G44+'Model inputs'!$H35*'Model inputs'!$D$103,0) -> 0 | I56: ='Model inputs'!$C35 -> 2030 | J56: 918337.1612 | K56: =K44+'Model inputs'!$J$145+'Model inputs'!$F35*('Model inputs'!$E$38*('Model inputs'!$E$39+'Model inputs'!$E$39*'Model inputs'!$E$40+'Model inputs'!$E$39*'Model inputs'!$E$40*'Model inputs'!$E$41)*'Model inputs'!$J$147+'Model inputs'!$F$38*('Model inputs'!$F$39+'Model inputs'!$F$39*'Model inputs'!$F$40+'Model inputs'!$F$39*'Model inputs'!$F$40*'Model inputs'!$F$41)*'Model inputs'!$J$148+'Model inputs'!$G$38*('Model inputs'!$G$39+'Model inputs'!$G$39*'Model inputs'!$G$40+'Model inputs'!$G$39*'Model inputs'!$G$40*'Model inputs'!$G$41)*'Model inputs'!$J$149) -> 918337.1612 | L56: =IF(L18>0,L44+'Model inputs'!$J$146+'Model inputs'!$H35*('Model inputs'!$H$38*('Model inputs'!$H$39+'Model inputs'!$H$39*'Model inputs'!$H$40+'Model inputs'!$H$39*'Model inputs'!$H$40*'Model inputs'!$H$41)*'Model inputs'!$J$147+'Model inputs'!$I$38*('Model inputs'!$I$39+'Model inputs'!$I$39*'Model inputs'!$I$40+'Model inputs'!$I$39*'Model inputs'!$I$40*'Model inputs'!$I$41)*'Model inputs'!$J$148+'Model inputs'!$J$38*('Model inputs'!$J$39+'Model inputs'!$J$39*'Model inputs'!$J$40+'Model inputs'!$J$39*'Model inputs'!$J$40*'Model inputs'!$J$41)*'Model inputs'!$J$149),0) -> 0 | M56: 0 | N56: =IF('Model inputs'!$H35>0,N44+'Model inputs'!$H35*'Model inputs'!$D$103,0) -> 0 | P56: ='Model inputs'!$C35 -> 2030 | Q56: 641936.1086 | R56: =R44+'Model inputs'!$P$145+'Model inputs'!$F35*('Model inputs'!$E$38*('Model inputs'!$E$39+'Model inputs'!$E$39*'Model inputs'!$E$40+'Model inputs'!$E$39*'Model inputs'!$E$40*'Model inputs'!$E$41)*'Model inputs'!$P$147+'Model inputs'!$F$38*('Model inputs'!$F$39+'Model inputs'!$F$39*'Model inputs'!$F$40+'Model inputs'!$F$39*'Model inputs'!$F$40*'Model inputs'!$F$41)*'Model inputs'!$P$148+'Model inputs'!$G$38*('Model inputs'!$G$39+'Model inputs'!$G$39*'Model inputs'!$G$40+'Model inputs'!$G$39*'Model inputs'!$G$40*'Model inputs'!$G$41)*'Model inputs'!$P$149) -> 641936.1086 | S56: =IF(S18>0,S44+'Model inputs'!$P$146+'Model inputs'!$H35*('Model inputs'!$H$38*('Model inputs'!$H$39+'Model inputs'!$H$39*'Model inputs'!$H$40+'Model inputs'!$H$39*'Model inputs'!$H$40*'Model inputs'!$H$41)*'Model inputs'!$P$147+'Model inputs'!$I$38*('Model inputs'!$I$39+'Model inputs'!$I$39*'Model inputs'!$I$40+'Model inputs'!$I$39*'Model inputs'!$I$40*'Model inputs'!$I$41)*'Model inputs'!$P$148+'Model inputs'!$J$38*('Model inputs'!$J$39+'Model inputs'!$J$39*'Model inputs'!$J$40+'Model inputs'!$J$39*'Model inputs'!$J$40*'Model inputs'!$J$41)*'Model inputs'!$P$149),0) -> 0 | T56: 0 | U56: =IF('Model inputs'!$H35>0,U44+'Model inputs'!$H35*'Model inputs'!$D$103,0) -> 0 | X56: ='Model inputs'!$C35 -> 2030 | Y56: 918337.1612 | Z56: =Z44+'Model inputs'!$V$145+'Model inputs'!$F35*('Model inputs'!$E$38*('Model inputs'!$E$39+'Model inputs'!$E$39*'Model inputs'!$E$40+'Model inputs'!$E$39*'Model inputs'!$E$40*'Model inputs'!$E$41)*'Model inputs'!$V$147+'Model inputs'!$F$38*('Model inputs'!$F$39+'Model inputs'!$F$39*'Model inputs'!$F$40+'Model inputs'!$F$39*'Model inputs'!$F$40*'Model inputs'!$F$41)*'Model inputs'!$V$148+'Model inputs'!$G$38*('Model inputs'!$G$39+'Model inputs'!$G$39*'Model inputs'!$G$40+'Model inputs'!$G$39*'Model inputs'!$G$40*'Model inputs'!$G$41)*'Model inputs'!$V$149) -> 918337.1612 | AA56: =IF(AA18>0,AA44+'Model inputs'!$V$146+'Model inputs'!$H35*('Model inputs'!$H$38*('Model inputs'!$H$39+'Model inputs'!$H$39*'Model inputs'!$H$40+'Model inputs'!$H$39*'Model inputs'!$H$40*'Model inputs'!$H$41)*'Model inputs'!$V$147+'Model inputs'!$I$38*('Model inputs'!$I$39+'Model inputs'!$I$39*'Model inputs'!$I$40+'Model inputs'!$I$39*'Model inputs'!$I$40*'Model inputs'!$I$41)*'Model inputs'!$V$148+'Model inputs'!$J$38*('Model inputs'!$J$39+'Model inputs'!$J$39*'Model inputs'!$J$40+'Model inputs'!$J$39*'Model inputs'!$J$40*'Model inputs'!$J$41)*'Model inputs'!$V$149),0) -> 0 | AB56: 0 | AC56: =IF('Model inputs'!$H35>0,AC44+'Model inputs'!$H35*'Model inputs'!$D$103,0) -> 0 | AE56: ='Model inputs'!$C35 -> 2030 | AF56: 1136415.056 | AG56: =AG44+'Model inputs'!$AB$145+'Model inputs'!$F35*('Model inputs'!$E$38*('Model inputs'!$E$39+'Model inputs'!$E$39*'Model inputs'!$E$40+'Model inputs'!$E$39*'Model inputs'!$E$40*'Model inputs'!$E$41)*'Model inputs'!$AB$147+'Model inputs'!$F$38*('Model inputs'!$F$39+'Model inputs'!$F$39*'Model inputs'!$F$40+'Model inputs'!$F$39*'Model inputs'!$F$40*'Model inputs'!$F$41)*'Model inputs'!$AB$148+'Model inputs'!$G$38*('Model inputs'!$G$39+'Model inputs'!$G$39*'Model inputs'!$G$40+'Model inputs'!$G$39*'Model inputs'!$G$40*'Model inputs'!$G$41)*'Model inputs'!$AB$149) -> 1136415.056 | AH56: =IF(AH18>0,AH44+'Model inputs'!$AB$146+'Model inputs'!$H35*('Model inputs'!$H$38*('Model inputs'!$H$39+'Model inputs'!$H$39*'Model inputs'!$H$40+'Model inputs'!$H$39*'Model inputs'!$H$40*'Model inputs'!$H$41)*'Model inputs'!$AB$147+'Model inputs'!$I$38*('Model inputs'!$I$39+'Model inputs'!$I$39*'Model inputs'!$I$40+'Model inputs'!$I$39*'Model inputs'!$I$40*'Model inputs'!$I$41)*'Model inputs'!$AB$148+'Model inputs'!$J$38*('Model inputs'!$J$39+'Model inputs'!$J$39*'Model inputs'!$J$40+'Model inputs'!$J$39*'Model inputs'!$J$40*'Model inputs'!$J$41)*'Model inputs'!$AB$149),0) -> 0 | AI56: 0 | AJ56: =IF('Model inputs'!$H35>0,AJ44+'Model inputs'!$H35*'Model inputs'!$D$103,0) -> 0 | AL56: ='Model inputs'!$C35 -> 2030 | AM56: 641936.1086 | AN56: =AN44+'Model inputs'!$AH$145+'Model inputs'!$F35*('Model inputs'!$E$38*('Model inputs'!$E$39+'Model inputs'!$E$39*'Model inputs'!$E$40+'Model inputs'!$E$39*'Model inputs'!$E$40*'Model inputs'!$E$41)*'Model inputs'!$AH$147+'Model inputs'!$F$38*('Model inputs'!$F$39+'Model inputs'!$F$39*'Model inputs'!$F$40+'Model inputs'!$F$39*'Model inputs'!$F$40*'Model inputs'!$F$41)*'Model inputs'!$AH$148+'Model inputs'!$G$38*('Model inputs'!$G$39+'Model inputs'!$G$39*'Model inputs'!$G$40+'Model inputs'!$G$39*'Model inputs'!$G$40*'Model inputs'!$G$41)*'Model inputs'!$AH$149) -> 641936.1086 | AO56: =IF(AO18>0,AO44+'Model inputs'!$AH$146+'Model inputs'!$H35*('Model inputs'!$H$38*('Model inputs'!$H$39+'Model inputs'!$H$39*'Model inputs'!$H$40+'Model inputs'!$H$39*'Model inputs'!$H$40*'Model inputs'!$H$41)*'Model inputs'!$AH$147+'Model inputs'!$I$38*('Model inputs'!$I$39+'Model inputs'!$I$39*'Model inputs'!$I$40+'Model inputs'!$I$39*'Model inputs'!$I$40*'Model inputs'!$I$41)*'Model inputs'!$AH$148+'Model inputs'!$J$38*('Model inputs'!$J$39+'Model inputs'!$J$39*'Model inputs'!$J$40+'Model inputs'!$J$39*'Model inputs'!$J$40*'Model inputs'!$J$41)*'Model inputs'!$AH$149),0) -> 0 | AP56: 0 | AQ56: =IF('Model inputs'!$H35>0,AQ44+'Model inputs'!$H35*'Model inputs'!$D$103,0) -> 0
B57: ='Model inputs'!$C36 -> 2031 | C57: 974758.477 | D57: =D45+'Model inputs'!$D$145+'Model inputs'!$F36*('Model inputs'!$E$38*('Model inputs'!$E$39+'Model inputs'!$E$39*'Model inputs'!$E$40+'Model inputs'!$E$39*'Model inputs'!$E$40*'Model inputs'!$E$41)*'Model inputs'!$D$147+'Model inputs'!$F$38*('Model inputs'!$F$39+'Model inputs'!$F$39*'Model inputs'!$F$40+'Model inputs'!$F$39*'Model inputs'!$F$40*'Model inputs'!$F$41)*'Model inputs'!$D$148+'Model inputs'!$G$38*('Model inputs'!$G$39+'Model inputs'!$G$39*'Model inputs'!$G$40+'Model inputs'!$G$39*'Model inputs'!$G$40*'Model inputs'!$G$41)*'Model inputs'!$D$149) -> 974758.477 | E57: =IF(E19>0,E45+'Model inputs'!$D$146+'Model inputs'!$H36*('Model inputs'!$H$38*('Model inputs'!$H$39+'Model inputs'!$H$39*'Model inputs'!$H$40+'Model inputs'!$H$39*'Model inputs'!$H$40*'Model inputs'!$H$41)*'Model inputs'!$D$147+'Model inputs'!$I$38*('Model inputs'!$I$39+'Model inputs'!$I$39*'Model inputs'!$I$40+'Model inputs'!$I$39*'Model inputs'!$I$40*'Model inputs'!$I$41)*'Model inputs'!$D$148+'Model inputs'!$J$38*('Model inputs'!$J$39+'Model inputs'!$J$39*'Model inputs'!$J$40+'Model inputs'!$J$39*'Model inputs'!$J$40*'Model inputs'!$J$41)*'Model inputs'!$D$149),0) -> 0 | F57: 0 | G57: =IF('Model inputs'!$H36>0,G45+'Model inputs'!$H36*'Model inputs'!$D$103,0) -> 0 | I57: ='Model inputs'!$C36 -> 2031 | J57: 1082529.53 | K57: =K45+'Model inputs'!$J$145+'Model inputs'!$F36*('Model inputs'!$E$38*('Model inputs'!$E$39+'Model inputs'!$E$39*'Model inputs'!$E$40+'Model inputs'!$E$39*'Model inputs'!$E$40*'Model inputs'!$E$41)*'Model inputs'!$J$147+'Model inputs'!$F$38*('Model inputs'!$F$39+'Model inputs'!$F$39*'Model inputs'!$F$40+'Model inputs'!$F$39*'Model inputs'!$F$40*'Model inputs'!$F$41)*'Model inputs'!$J$148+'Model inputs'!$G$38*('Model inputs'!$G$39+'Model inputs'!$G$39*'Model inputs'!$G$40+'Model inputs'!$G$39*'Model inputs'!$G$40*'Model inputs'!$G$41)*'Model inputs'!$J$149) -> 1082529.53 | L57: =IF(L19>0,L45+'Model inputs'!$J$146+'Model inputs'!$H36*('Model inputs'!$H$38*('Model inputs'!$H$39+'Model inputs'!$H$39*'Model inputs'!$H$40+'Model inputs'!$H$39*'Model inputs'!$H$40*'Model inputs'!$H$41)*'Model inputs'!$J$147+'Model inputs'!$I$38*('Model inputs'!$I$39+'Model inputs'!$I$39*'Model inputs'!$I$40+'Model inputs'!$I$39*'Model inputs'!$I$40*'Model inputs'!$I$41)*'Model inputs'!$J$148+'Model inputs'!$J$38*('Model inputs'!$J$39+'Model inputs'!$J$39*'Model inputs'!$J$40+'Model inputs'!$J$39*'Model inputs'!$J$40*'Model inputs'!$J$41)*'Model inputs'!$J$149),0) -> 0 | M57: 0 | N57: =IF('Model inputs'!$H36>0,N45+'Model inputs'!$H36*'Model inputs'!$D$103,0) -> 0 | P57: ='Model inputs'!$C36 -> 2031 | Q57: 737028.2138 | R57: =R45+'Model inputs'!$P$145+'Model inputs'!$F36*('Model inputs'!$E$38*('Model inputs'!$E$39+'Model inputs'!$E$39*'Model inputs'!$E$40+'Model inputs'!$E$39*'Model inputs'!$E$40*'Model inputs'!$E$41)*'Model inputs'!$P$147+'Model inputs'!$F$38*('Model inputs'!$F$39+'Model inputs'!$F$39*'Model inputs'!$F$40+'Model inputs'!$F$39*'Model inputs'!$F$40*'Model inputs'!$F$41)*'Model inputs'!$P$148+'Model inputs'!$G$38*('Model inputs'!$G$39+'Model inputs'!$G$39*'Model inputs'!$G$40+'Model inputs'!$G$39*'Model inputs'!$G$40*'Model inputs'!$G$41)*'Model inputs'!$P$149) -> 737028.2138 | S57: =IF(S19>0,S45+'Model inputs'!$P$146+'Model inputs'!$H36*('Model inputs'!$H$38*('Model inputs'!$H$39+'Model inputs'!$H$39*'Model inputs'!$H$40+'Model inputs'!$H$39*'Model inputs'!$H$40*'Model inputs'!$H$41)*'Model inputs'!$P$147+'Model inputs'!$I$38*('Model inputs'!$I$39+'Model inputs'!$I$39*'Model inputs'!$I$40+'Model inputs'!$I$39*'Model inputs'!$I$40*'Model inputs'!$I$41)*'Model inputs'!$P$148+'Model inputs'!$J$38*('Model inputs'!$J$39+'Model inputs'!$J$39*'Model inputs'!$J$40+'Model inputs'!$J$39*'Model inputs'!$J$40*'Model inputs'!$J$41)*'Model inputs'!$P$149),0) -> 0 | T57: 0 | U57: =IF('Model inputs'!$H36>0,U45+'Model inputs'!$H36*'Model inputs'!$D$103,0) -> 0 | X57: ='Model inputs'!$C36 -> 2031 | Y57: 1082529.53 | Z57: =Z45+'Model inputs'!$V$145+'Model inputs'!$F36*('Model inputs'!$E$38*('Model inputs'!$E$39+'Model inputs'!$E$39*'Model inputs'!$E$40+'Model inputs'!$E$39*'Model inputs'!$E$40*'Model inputs'!$E$41)*'Model inputs'!$V$147+'Model inputs'!$F$38*('Model inputs'!$F$39+'Model inputs'!$F$39*'Model inputs'!$F$40+'Model inputs'!$F$39*'Model inputs'!$F$40*'Model inputs'!$F$41)*'Model inputs'!$V$148+'Model inputs'!$G$38*('Model inputs'!$G$39+'Model inputs'!$G$39*'Model inputs'!$G$40+'Model inputs'!$G$39*'Model inputs'!$G$40*'Model inputs'!$G$41)*'Model inputs'!$V$149) -> 1082529.53 | AA57: =IF(AA19>0,AA45+'Model inputs'!$V$146+'Model inputs'!$H36*('Model inputs'!$H$38*('Model inputs'!$H$39+'Model inputs'!$H$39*'Model inputs'!$H$40+'Model inputs'!$H$39*'Model inputs'!$H$40*'Model inputs'!$H$41)*'Model inputs'!$V$147+'Model inputs'!$I$38*('Model inputs'!$I$39+'Model inputs'!$I$39*'Model inputs'!$I$40+'Model inputs'!$I$39*'Model inputs'!$I$40*'Model inputs'!$I$41)*'Model inputs'!$V$148+'Model inputs'!$J$38*('Model inputs'!$J$39+'Model inputs'!$J$39*'Model inputs'!$J$40+'Model inputs'!$J$39*'Model inputs'!$J$40*'Model inputs'!$J$41)*'Model inputs'!$V$149),0) -> 0 | AB57: 0 | AC57: =IF('Model inputs'!$H36>0,AC45+'Model inputs'!$H36*'Model inputs'!$D$103,0) -> 0 | AE57: ='Model inputs'!$C36 -> 2031 | AF57: 1355126.898 | AG57: =AG45+'Model inputs'!$AB$145+'Model inputs'!$F36*('Model inputs'!$E$38*('Model inputs'!$E$39+'Model inputs'!$E$39*'Model inputs'!$E$40+'Model inputs'!$E$39*'Model inputs'!$E$40*'Model inputs'!$E$41)*'Model inputs'!$AB$147+'Model inputs'!$F$38*('Model inputs'!$F$39+'Model inputs'!$F$39*'Model inputs'!$F$40+'Model inputs'!$F$39*'Model inputs'!$F$40*'Model inputs'!$F$41)*'Model inputs'!$AB$148+'Model inputs'!$G$38*('Model inputs'!$G$39+'Model inputs'!$G$39*'Model inputs'!$G$40+'Model inputs'!$G$39*'Model inputs'!$G$40*'Model inputs'!$G$41)*'Model inputs'!$AB$149) -> 1355126.898 | AH57: =IF(AH19>0,AH45+'Model inputs'!$AB$146+'Model inputs'!$H36*('Model inputs'!$H$38*('Model inputs'!$H$39+'Model inputs'!$H$39*'Model inputs'!$H$40+'Model inputs'!$H$39*'Model inputs'!$H$40*'Model inputs'!$H$41)*'Model inputs'!$AB$147+'Model inputs'!$I$38*('Model inputs'!$I$39+'Model inputs'!$I$39*'Model inputs'!$I$40+'Model inputs'!$I$39*'Model inputs'!$I$40*'Model inputs'!$I$41)*'Model inputs'!$AB$148+'Model inputs'!$J$38*('Model inputs'!$J$39+'Model inputs'!$J$39*'Model inputs'!$J$40+'Model inputs'!$J$39*'Model inputs'!$J$40*'Model inputs'!$J$41)*'Model inputs'!$AB$149),0) -> 0 | AI57: 0 | AJ57: =IF('Model inputs'!$H36>0,AJ45+'Model inputs'!$H36*'Model inputs'!$D$103,0) -> 0 | AL57: ='Model inputs'!$C36 -> 2031 | AM57: 737028.2138 | AN57: =AN45+'Model inputs'!$AH$145+'Model inputs'!$F36*('Model inputs'!$E$38*('Model inputs'!$E$39+'Model inputs'!$E$39*'Model inputs'!$E$40+'Model inputs'!$E$39*'Model inputs'!$E$40*'Model inputs'!$E$41)*'Model inputs'!$AH$147+'Model inputs'!$F$38*('Model inputs'!$F$39+'Model inputs'!$F$39*'Model inputs'!$F$40+'Model inputs'!$F$39*'Model inputs'!$F$40*'Model inputs'!$F$41)*'Model inputs'!$AH$148+'Model inputs'!$G$38*('Model inputs'!$G$39+'Model inputs'!$G$39*'Model inputs'!$G$40+'Model inputs'!$G$39*'Model inputs'!$G$40*'Model inputs'!$G$41)*'Model inputs'!$AH$149) -> 737028.2138 | AO57: =IF(AO19>0,AO45+'Model inputs'!$AH$146+'Model inputs'!$H36*('Model inputs'!$H$38*('Model inputs'!$H$39+'Model inputs'!$H$39*'Model inputs'!$H$40+'Model inputs'!$H$39*'Model inputs'!$H$40*'Model inputs'!$H$41)*'Model inputs'!$AH$147+'Model inputs'!$I$38*('Model inputs'!$I$39+'Model inputs'!$I$39*'Model inputs'!$I$40+'Model inputs'!$I$39*'Model inputs'!$I$40*'Model inputs'!$I$41)*'Model inputs'!$AH$148+'Model inputs'!$J$38*('Model inputs'!$J$39+'Model inputs'!$J$39*'Model inputs'!$J$40+'Model inputs'!$J$39*'Model inputs'!$J$40*'Model inputs'!$J$41)*'Model inputs'!$AH$149),0) -> 0 | AP57: 0 | AQ57: =IF('Model inputs'!$H36>0,AQ45+'Model inputs'!$H36*'Model inputs'!$D$103,0) -> 0
B59: COUNTRY + GAVI COST | I59: COUNTRY + GAVI COST | P59: COUNTRY + GAVI COST | X59: COUNTRY + GAVI COST | AE59: COUNTRY + GAVI COST | AL59: COUNTRY + GAVI COST
B60: Vaccine cost Cost of vaccines and supplies procurement | D60: Single aged cohort | E60: MAC | I60: Vaccine cost Cost of vaccines and supplies procurement | K60: Single aged cohort | L60: MAC | P60: Vaccine cost Cost of vaccines and supplies procurement | R60: Single aged cohort | S60: MAC | X60: Vaccine cost Cost of vaccines and supplies procurement | Z60: Single aged cohort | AA60: MAC | AE60: Vaccine cost Cost of vaccines and supplies procurement | AG60: Single aged cohort | AH60: MAC | AL60: Vaccine cost Cost of vaccines and supplies procurement | AN60: Single aged cohort | AO60: MAC
B61: Total for 10 years | C61: =SUM(C62:C71) -> 9901416.322 | D61: =SUM(D62:D71) -> 7194459.77 | E61: =SUM(E62:E71) -> 2706956.553 | I61: Total for 10 years | J61: =SUM(J62:J71) -> 11384621.59 | K61: =SUM(K62:K71) -> 8272170.296 | L61: =SUM(L62:L71) -> 3112451.289 | P61: Total for 10 years | Q61: =SUM(Q62:Q71) -> 6629640.007 | R61: =SUM(R62:R71) -> 4817157.138 | S61: =SUM(S62:S71) -> 1812482.868 | X61: Total for 10 years | Y61: =SUM(Y62:Y71) -> 11384621.59 | Z61: =SUM(Z62:Z71) -> 8272170.296 | AA61: =SUM(AA62:AA71) -> 3112451.289 | AE61: Total for 10 years | AF61: =SUM(AF62:AF71) -> 15136258.43 | AG61: =SUM(AG62:AG71) -> 10998143.98 | AH61: =SUM(AH62:AH71) -> 4138114.447 | AL61: Total for 10 years | AM61: =SUM(AM62:AM71) -> 6629640.007 | AN61: =SUM(AN62:AN71) -> 4817157.138 | AO61: =SUM(AO62:AO71) -> 1812482.868
B62: ='Model inputs'!$C27 -> 2022 | C62: =D62+E62 -> 3426402.53 | D62: =D22*('Model inputs'!$D$120+'Model inputs'!$D$120*'Model inputs'!$D$135+'Model inputs'!$D$120*'Model inputs'!$D$136)+(D10/'Model inputs'!$D$138*'Model inputs'!$D$137)+(D10*'Model inputs'!$D$139) -> 719445.977 | E62: =E22*('Model inputs'!$D$120+'Model inputs'!$D$120*'Model inputs'!$D$135+'Model inputs'!$D$120*'Model inputs'!$D$136)+(E10/'Model inputs'!$D$138*'Model inputs'!$D$137)+(E10*'Model inputs'!$D$139) -> 2706956.553 | I62: ='Model inputs'!$C27 -> 2022 | J62: =K62+L62 -> 3939668.319 | K62: =K22*('Model inputs'!$J$120+'Model inputs'!$J$120*'Model inputs'!$J$135+'Model inputs'!$J$120*'Model inputs'!$J$136)+(K10/'Model inputs'!$J$138*'Model inputs'!$J$137)+(K10*'Model inputs'!$J$139) -> 827217.0296 | L62: =L22*('Model inputs'!$J$120+'Model inputs'!$J$120*'Model inputs'!$J$135+'Model inputs'!$J$120*'Model inputs'!$J$136)+(L10/'Model inputs'!$J$138*'Model inputs'!$J$137)+(L10*'Model inputs'!$J$139) -> 3112451.289 | P62: ='Model inputs'!$C27 -> 2022 | Q62: =R62+S62 -> 2294198.582 | R62: =R22*('Model inputs'!$P$120+'Model inputs'!$P$120*'Model inputs'!$P$135+'Model inputs'!$P$120*'Model inputs'!$P$136)+(R10/'Model inputs'!$P$138*'Model inputs'!$P$137)+(R10*'Model inputs'!$P$139) -> 481715.7138 | S62: =S22*('Model inputs'!$P$120+'Model inputs'!$P$120*'Model inputs'!$P$135+'Model inputs'!$P$120*'Model inputs'!$P$136)+(S10/'Model inputs'!$P$138*'Model inputs'!$P$137)+(S10*'Model inputs'!$P$139) -> 1812482.868 | X62: ='Model inputs'!$C27 -> 2022 | Y62: =Z62+AA62 -> 3939668.319 | Z62: =Z22*('Model inputs'!$V$120+'Model inputs'!$V$120*'Model inputs'!$V$135+'Model inputs'!$V$120*'Model inputs'!$V$136)+(Z10/'Model inputs'!$V$138*'Model inputs'!$V$137)+(Z10*'Model inputs'!$V$139) -> 827217.0296 | AA62: =AA22*('Model inputs'!$V$120+'Model inputs'!$V$120*'Model inputs'!$V$135+'Model inputs'!$V$120*'Model inputs'!$V$136)+(AA10/'Model inputs'!$V$138*'Model inputs'!$V$137)+(AA10*'Model inputs'!$V$139) -> 3112451.289 | AE62: ='Model inputs'!$C27 -> 2022 | AF62: =AG62+AH62 -> 5237928.845 | AG62: =AG22*('Model inputs'!$AB$120+'Model inputs'!$AB$120*'Model inputs'!$AB$135+'Model inputs'!$AB$120*'Model inputs'!$AB$136)+(AG10/'Model inputs'!$AB$138*'Model inputs'!$AB$137)+(AG10*'Model inputs'!$AB$139) -> 1099814.398 | AH62: =AH22*('Model inputs'!$AB$120+'Model inputs'!$AB$120*'Model inputs'!$AB$135+'Model inputs'!$AB$120*'Model inputs'!$AB$136)+(AH10/'Model inputs'!$AB$138*'Model inputs'!$AB$137)+(AH10*'Model inputs'!$AB$139) -> 4138114.447 | AL62: ='Model inputs'!$C27 -> 2022 | AM62: =AN62+AO62 -> 2294198.582 | AN62: =AN22*('Model inputs'!$AH$120+'Model inputs'!$AH$120*'Model inputs'!$AH$135+'Model inputs'!$AH$120*'Model inputs'!$AH$136)+(AN10/'Model inputs'!$AH$138*'Model inputs'!$AH$137)+(AN10*'Model inputs'!$AH$139) -> 481715.7138 | AO62: =AO22*('Model inputs'!$AH$120+'Model inputs'!$AH$120*'Model inputs'!$AH$135+'Model inputs'!$AH$120*'Model inputs'!$AH$136)+(AO10/'Model inputs'!$AH$138*'Model inputs'!$AH$137)+(AO10*'Model inputs'!$AH$139) -> 1812482.868
B63: ='Model inputs'!$C28 -> 2023 | C63: =D63+E63 -> 719445.977 | D63: =D23*('Model inputs'!$D$120+'Model inputs'!$D$120*'Model inputs'!$D$135+'Model inputs'!$D$120*'Model inputs'!$D$136)+(D11/'Model inputs'!$D$138*'Model inputs'!$D$137)+(D11*'Model inputs'!$D$139) -> 719445.977 | E63: =E23*('Model inputs'!$D$120+'Model inputs'!$D$120*'Model inputs'!$D$135+'Model inputs'!$D$120*'Model inputs'!$D$136)+(E11/'Model inputs'!$D$138*'Model inputs'!$D$137)+(E11*'Model inputs'!$D$139) -> 0 | I63: ='Model inputs'!$C28 -> 2023 | J63: =K63+L63 -> 827217.0296 | K63: =K23*('Model inputs'!$J$120+'Model inputs'!$J$120*'Model inputs'!$J$135+'Model inputs'!$J$120*'Model inputs'!$J$136)+(K11/'Model inputs'!$J$138*'Model inputs'!$J$137)+(K11*'Model inputs'!$J$139) -> 827217.0296 | L63: =L23*('Model inputs'!$J$120+'Model inputs'!$J$120*'Model inputs'!$J$135+'Model inputs'!$J$120*'Model inputs'!$J$136)+(L11/'Model inputs'!$J$138*'Model inputs'!$J$137)+(L11*'Model inputs'!$J$139) -> 0 | P63: ='Model inputs'!$C28 -> 2023 | Q63: =R63+S63 -> 481715.7138 | R63: =R23*('Model inputs'!$P$120+'Model inputs'!$P$120*'Model inputs'!$P$135+'Model inputs'!$P$120*'Model inputs'!$P$136)+(R11/'Model inputs'!$P$138*'Model inputs'!$P$137)+(R11*'Model inputs'!$P$139) -> 481715.7138 | S63: =S23*('Model inputs'!$P$120+'Model inputs'!$P$120*'Model inputs'!$P$135+'Model inputs'!$P$120*'Model inputs'!$P$136)+(S11/'Model inputs'!$P$138*'Model inputs'!$P$137)+(S11*'Model inputs'!$P$139) -> 0 | X63: ='Model inputs'!$C28 -> 2023 | Y63: =Z63+AA63 -> 827217.0296 | Z63: =Z23*('Model inputs'!$V$120+'Model inputs'!$V$120*'Model inputs'!$V$135+'Model inputs'!$V$120*'Model inputs'!$V$136)+(Z11/'Model inputs'!$V$138*'Model inputs'!$V$137)+(Z11*'Model inputs'!$V$139) -> 827217.0296 | AA63: =AA23*('Model inputs'!$V$120+'Model inputs'!$V$120*'Model inputs'!$V$135+'Model inputs'!$V$120*'Model inputs'!$V$136)+(AA11/'Model inputs'!$V$138*'Model inputs'!$V$137)+(AA11*'Model inputs'!$V$139) -> 0 | AE63: ='Model inputs'!$C28 -> 2023 | AF63: =AG63+AH63 -> 1099814.398 | AG63: =AG23*('Model inputs'!$AB$120+'Model inputs'!$AB$120*'Model inputs'!$AB$135+'Model inputs'!$AB$120*'Model inputs'!$AB$136)+(AG11/'Model inputs'!$AB$138*'Model inputs'!$AB$137)+(AG11*'Model inputs'!$AB$139) -> 1099814.398 | AH63: =AH23*('Model inputs'!$AB$120+'Model inputs'!$AB$120*'Model inputs'!$AB$135+'Model inputs'!$AB$120*'Model inputs'!$AB$136)+(AH11/'Model inputs'!$AB$138*'Model inputs'!$AB$137)+(AH11*'Model inputs'!$AB$139) -> 0 | AL63: ='Model inputs'!$C28 -> 2023 | AM63: =AN63+AO63 -> 481715.7138 | AN63: =AN23*('Model inputs'!$AH$120+'Model inputs'!$AH$120*'Model inputs'!$AH$135+'Model inputs'!$AH$120*'Model inputs'!$AH$136)+(AN11/'Model inputs'!$AH$138*'Model inputs'!$AH$137)+(AN11*'Model inputs'!$AH$139) -> 481715.7138 | AO63: =AO23*('Model inputs'!$AH$120+'Model inputs'!$AH$120*'Model inputs'!$AH$135+'Model inputs'!$AH$120*'Model inputs'!$AH$136)+(AO11/'Model inputs'!$AH$138*'Model inputs'!$AH$137)+(AO11*'Model inputs'!$AH$139) -> 0
B64: ='Model inputs'!$C29 -> 2024 | C64: 719445.977 | D64: =D24*('Model inputs'!$D$120+'Model inputs'!$D$120*'Model inputs'!$D$135+'Model inputs'!$D$120*'Model inputs'!$D$136)+(D12/'Model inputs'!$D$138*'Model inputs'!$D$137)+(D12*'Model inputs'!$D$139) -> 719445.977 | E64: =E24*('Model inputs'!$D$120+'Model inputs'!$D$120*'Model inputs'!$D$135+'Model inputs'!$D$120*'Model inputs'!$D$136)+(E12/'Model inputs'!$D$138*'Model inputs'!$D$137)+(E12*'Model inputs'!$D$139) -> 0 | I64: ='Model inputs'!$C29 -> 2024 | J64: 827217.0296 | K64: =K24*('Model inputs'!$J$120+'Model inputs'!$J$120*'Model inputs'!$J$135+'Model inputs'!$J$120*'Model inputs'!$J$136)+(K12/'Model inputs'!$J$138*'Model inputs'!$J$137)+(K12*'Model inputs'!$J$139) -> 827217.0296 | L64: =L24*('Model inputs'!$J$120+'Model inputs'!$J$120*'Model inputs'!$J$135+'Model inputs'!$J$120*'Model inputs'!$J$136)+(L12/'Model inputs'!$J$138*'Model inputs'!$J$137)+(L12*'Model inputs'!$J$139) -> 0 | P64: ='Model inputs'!$C29 -> 2024 | Q64: 481715.7138 | R64: =R24*('Model inputs'!$P$120+'Model inputs'!$P$120*'Model inputs'!$P$135+'Model inputs'!$P$120*'Model inputs'!$P$136)+(R12/'Model inputs'!$P$138*'Model inputs'!$P$137)+(R12*'Model inputs'!$P$139) -> 481715.7138 | S64: =S24*('Model inputs'!$P$120+'Model inputs'!$P$120*'Model inputs'!$P$135+'Model inputs'!$P$120*'Model inputs'!$P$136)+(S12/'Model inputs'!$P$138*'Model inputs'!$P$137)+(S12*'Model inputs'!$P$139) -> 0 | X64: ='Model inputs'!$C29 -> 2024 | Y64: 827217.0296 | Z64: =Z24*('Model inputs'!$V$120+'Model inputs'!$V$120*'Model inputs'!$V$135+'Model inputs'!$V$120*'Model inputs'!$V$136)+(Z12/'Model inputs'!$V$138*'Model inputs'!$V$137)+(Z12*'Model inputs'!$V$139) -> 827217.0296 | AA64: =AA24*('Model inputs'!$V$120+'Model inputs'!$V$120*'Model inputs'!$V$135+'Model inputs'!$V$120*'Model inputs'!$V$136)+(AA12/'Model inputs'!$V$138*'Model inputs'!$V$137)+(AA12*'Model inputs'!$V$139) -> 0 | AE64: ='Model inputs'!$C29 -> 2024 | AF64: 1099814.398 | AG64: =AG24*('Model inputs'!$AB$120+'Model inputs'!$AB$120*'Model inputs'!$AB$135+'Model inputs'!$AB$120*'Model inputs'!$AB$136)+(AG12/'Model inputs'!$AB$138*'Model inputs'!$AB$137)+(AG12*'Model inputs'!$AB$139) -> 1099814.398 | AH64: =AH24*('Model inputs'!$AB$120+'Model inputs'!$AB$120*'Model inputs'!$AB$135+'Model inputs'!$AB$120*'Model inputs'!$AB$136)+(AH12/'Model inputs'!$AB$138*'Model inputs'!$AB$137)+(AH12*'Model inputs'!$AB$139) -> 0 | AL64: ='Model inputs'!$C29 -> 2024 | AM64: 481715.7138 | AN64: =AN24*('Model inputs'!$AH$120+'Model inputs'!$AH$120*'Model inputs'!$AH$135+'Model inputs'!$AH$120*'Model inputs'!$AH$136)+(AN12/'Model inputs'!$AH$138*'Model inputs'!$AH$137)+(AN12*'Model inputs'!$AH$139) -> 481715.7138 | AO64: =AO24*('Model inputs'!$AH$120+'Model inputs'!$AH$120*'Model inputs'!$AH$135+'Model inputs'!$AH$120*'Model inputs'!$AH$136)+(AO12/'Model inputs'!$AH$138*'Model inputs'!$AH$137)+(AO12*'Model inputs'!$AH$139) -> 0
B65: ='Model inputs'!$C30 -> 2025 | C65: 719445.977 | D65: =D25*('Model inputs'!$D$120+'Model inputs'!$D$120*'Model inputs'!$D$135+'Model inputs'!$D$120*'Model inputs'!$D$136)+(D13/'Model inputs'!$D$138*'Model inputs'!$D$137)+(D13*'Model inputs'!$D$139) -> 719445.977 | E65: =E25*('Model inputs'!$D$120+'Model inputs'!$D$120*'Model inputs'!$D$135+'Model inputs'!$D$120*'Model inputs'!$D$136)+(E13/'Model inputs'!$D$138*'Model inputs'!$D$137)+(E13*'Model inputs'!$D$139) -> 0 | I65: ='Model inputs'!$C30 -> 2025 | J65: 827217.0296 | K65: =K25*('Model inputs'!$J$120+'Model inputs'!$J$120*'Model inputs'!$J$135+'Model inputs'!$J$120*'Model inputs'!$J$136)+(K13/'Model inputs'!$J$138*'Model inputs'!$J$137)+(K13*'Model inputs'!$J$139) -> 827217.0296 | L65: =L25*('Model inputs'!$J$120+'Model inputs'!$J$120*'Model inputs'!$J$135+'Model inputs'!$J$120*'Model inputs'!$J$136)+(L13/'Model inputs'!$J$138*'Model inputs'!$J$137)+(L13*'Model inputs'!$J$139) -> 0 | P65: ='Model inputs'!$C30 -> 2025 | Q65: 481715.7138 | R65: =R25*('Model inputs'!$P$120+'Model inputs'!$P$120*'Model inputs'!$P$135+'Model inputs'!$P$120*'Model inputs'!$P$136)+(R13/'Model inputs'!$P$138*'Model inputs'!$P$137)+(R13*'Model inputs'!$P$139) -> 481715.7138 | S65: =S25*('Model inputs'!$P$120+'Model inputs'!$P$120*'Model inputs'!$P$135+'Model inputs'!$P$120*'Model inputs'!$P$136)+(S13/'Model inputs'!$P$138*'Model inputs'!$P$137)+(S13*'Model inputs'!$P$139) -> 0 | X65: ='Model inputs'!$C30 -> 2025 | Y65: 827217.0296 | Z65: =Z25*('Model inputs'!$V$120+'Model inputs'!$V$120*'Model inputs'!$V$135+'Model inputs'!$V$120*'Model inputs'!$V$136)+(Z13/'Model inputs'!$V$138*'Model inputs'!$V$137)+(Z13*'Model inputs'!$V$139) -> 827217.0296 | AA65: =AA25*('Model inputs'!$V$120+'Model inputs'!$V$120*'Model inputs'!$V$135+'Model inputs'!$V$120*'Model inputs'!$V$136)+(AA13/'Model inputs'!$V$138*'Model inputs'!$V$137)+(AA13*'Model inputs'!$V$139) -> 0 | AE65: ='Model inputs'!$C30 -> 2025 | AF65: 1099814.398 | AG65: =AG25*('Model inputs'!$AB$120+'Model inputs'!$AB$120*'Model inputs'!$AB$135+'Model inputs'!$AB$120*'Model inputs'!$AB$136)+(AG13/'Model inputs'!$AB$138*'Model inputs'!$AB$137)+(AG13*'Model inputs'!$AB$139) -> 1099814.398 | AH65: =AH25*('Model inputs'!$AB$120+'Model inputs'!$AB$120*'Model inputs'!$AB$135+'Model inputs'!$AB$120*'Model inputs'!$AB$136)+(AH13/'Model inputs'!$AB$138*'Model inputs'!$AB$137)+(AH13*'Model inputs'!$AB$139) -> 0 | AL65: ='Model inputs'!$C30 -> 2025 | AM65: 481715.7138 | AN65: =AN25*('Model inputs'!$AH$120+'Model inputs'!$AH$120*'Model inputs'!$AH$135+'Model inputs'!$AH$120*'Model inputs'!$AH$136)+(AN13/'Model inputs'!$AH$138*'Model inputs'!$AH$137)+(AN13*'Model inputs'!$AH$139) -> 481715.7138 | AO65: =AO25*('Model inputs'!$AH$120+'Model inputs'!$AH$120*'Model inputs'!$AH$135+'Model inputs'!$AH$120*'Model inputs'!$AH$136)+(AO13/'Model inputs'!$AH$138*'Model inputs'!$AH$137)+(AO13*'Model inputs'!$AH$139) -> 0
B66: ='Model inputs'!$C31 -> 2026 | C66: 719445.977 | D66: =D26*('Model inputs'!$D$120+'Model inputs'!$D$120*'Model inputs'!$D$135+'Model inputs'!$D$120*'Model inputs'!$D$136)+(D14/'Model inputs'!$D$138*'Model inputs'!$D$137)+(D14*'Model inputs'!$D$139) -> 719445.977 | E66: =E26*('Model inputs'!$D$120+'Model inputs'!$D$120*'Model inputs'!$D$135+'Model inputs'!$D$120*'Model inputs'!$D$136)+(E14/'Model inputs'!$D$138*'Model inputs'!$D$137)+(E14*'Model inputs'!$D$139) -> 0 | I66: ='Model inputs'!$C31 -> 2026 | J66: 827217.0296 | K66: =K26*('Model inputs'!$J$120+'Model inputs'!$J$120*'Model inputs'!$J$135+'Model inputs'!$J$120*'Model inputs'!$J$136)+(K14/'Model inputs'!$J$138*'Model inputs'!$J$137)+(K14*'Model inputs'!$J$139) -> 827217.0296 | L66: =L26*('Model inputs'!$J$120+'Model inputs'!$J$120*'Model inputs'!$J$135+'Model inputs'!$J$120*'Model inputs'!$J$136)+(L14/'Model inputs'!$J$138*'Model inputs'!$J$137)+(L14*'Model inputs'!$J$139) -> 0 | P66: ='Model inputs'!$C31 -> 2026 | Q66: 481715.7138 | R66: =R26*('Model inputs'!$P$120+'Model inputs'!$P$120*'Model inputs'!$P$135+'Model inputs'!$P$120*'Model inputs'!$P$136)+(R14/'Model inputs'!$P$138*'Model inputs'!$P$137)+(R14*'Model inputs'!$P$139) -> 481715.7138 | S66: =S26*('Model inputs'!$P$120+'Model inputs'!$P$120*'Model inputs'!$P$135+'Model inputs'!$P$120*'Model inputs'!$P$136)+(S14/'Model inputs'!$P$138*'Model inputs'!$P$137)+(S14*'Model inputs'!$P$139) -> 0 | X66: ='Model inputs'!$C31 -> 2026 | Y66: 827217.0296 | Z66: =Z26*('Model inputs'!$V$120+'Model inputs'!$V$120*'Model inputs'!$V$135+'Model inputs'!$V$120*'Model inputs'!$V$136)+(Z14/'Model inputs'!$V$138*'Model inputs'!$V$137)+(Z14*'Model inputs'!$V$139) -> 827217.0296 | AA66: =AA26*('Model inputs'!$V$120+'Model inputs'!$V$120*'Model inputs'!$V$135+'Model inputs'!$V$120*'Model inputs'!$V$136)+(AA14/'Model inputs'!$V$138*'Model inputs'!$V$137)+(AA14*'Model inputs'!$V$139) -> 0 | AE66: ='Model inputs'!$C31 -> 2026 | AF66: 1099814.398 | AG66: =AG26*('Model inputs'!$AB$120+'Model inputs'!$AB$120*'Model inputs'!$AB$135+'Model inputs'!$AB$120*'Model inputs'!$AB$136)+(AG14/'Model inputs'!$AB$138*'Model inputs'!$AB$137)+(AG14*'Model inputs'!$AB$139) -> 1099814.398 | AH66: =AH26*('Model inputs'!$AB$120+'Model inputs'!$AB$120*'Model inputs'!$AB$135+'Model inputs'!$AB$120*'Model inputs'!$AB$136)+(AH14/'Model inputs'!$AB$138*'Model inputs'!$AB$137)+(AH14*'Model inputs'!$AB$139) -> 0 | AL66: ='Model inputs'!$C31 -> 2026 | AM66: 481715.7138 | AN66: =AN26*('Model inputs'!$AH$120+'Model inputs'!$AH$120*'Model inputs'!$AH$135+'Model inputs'!$AH$120*'Model inputs'!$AH$136)+(AN14/'Model inputs'!$AH$138*'Model inputs'!$AH$137)+(AN14*'Model inputs'!$AH$139) -> 481715.7138 | AO66: =AO26*('Model inputs'!$AH$120+'Model inputs'!$AH$120*'Model inputs'!$AH$135+'Model inputs'!$AH$120*'Model inputs'!$AH$136)+(AO14/'Model inputs'!$AH$138*'Model inputs'!$AH$137)+(AO14*'Model inputs'!$AH$139) -> 0
B67: ='Model inputs'!$C32 -> 2027 | C67: 719445.977 | D67: =D27*('Model inputs'!$D$120+'Model inputs'!$D$120*'Model inputs'!$D$135+'Model inputs'!$D$120*'Model inputs'!$D$136)+(D15/'Model inputs'!$D$138*'Model inputs'!$D$137)+(D15*'Model inputs'!$D$139) -> 719445.977 | E67: =E27*('Model inputs'!$D$120+'Model inputs'!$D$120*'Model inputs'!$D$135+'Model inputs'!$D$120*'Model inputs'!$D$136)+(E15/'Model inputs'!$D$138*'Model inputs'!$D$137)+(E15*'Model inputs'!$D$139) -> 0 | I67: ='Model inputs'!$C32 -> 2027 | J67: 827217.0296 | K67: =K27*('Model inputs'!$J$120+'Model inputs'!$J$120*'Model inputs'!$J$135+'Model inputs'!$J$120*'Model inputs'!$J$136)+(K15/'Model inputs'!$J$138*'Model inputs'!$J$137)+(K15*'Model inputs'!$J$139) -> 827217.0296 | L67: =L27*('Model inputs'!$J$120+'Model inputs'!$J$120*'Model inputs'!$J$135+'Model inputs'!$J$120*'Model inputs'!$J$136)+(L15/'Model inputs'!$J$138*'Model inputs'!$J$137)+(L15*'Model inputs'!$J$139) -> 0 | P67: ='Model inputs'!$C32 -> 2027 | Q67: 481715.7138 | R67: =R27*('Model inputs'!$P$120+'Model inputs'!$P$120*'Model inputs'!$P$135+'Model inputs'!$P$120*'Model inputs'!$P$136)+(R15/'Model inputs'!$P$138*'Model inputs'!$P$137)+(R15*'Model inputs'!$P$139) -> 481715.7138 | S67: =S27*('Model inputs'!$P$120+'Model inputs'!$P$120*'Model inputs'!$P$135+'Model inputs'!$P$120*'Model inputs'!$P$136)+(S15/'Model inputs'!$P$138*'Model inputs'!$P$137)+(S15*'Model inputs'!$P$139) -> 0 | X67: ='Model inputs'!$C32 -> 2027 | Y67: 827217.0296 | Z67: =Z27*('Model inputs'!$V$120+'Model inputs'!$V$120*'Model inputs'!$V$135+'Model inputs'!$V$120*'Model inputs'!$V$136)+(Z15/'Model inputs'!$V$138*'Model inputs'!$V$137)+(Z15*'Model inputs'!$V$139) -> 827217.0296 | AA67: =AA27*('Model inputs'!$V$120+'Model inputs'!$V$120*'Model inputs'!$V$135+'Model inputs'!$V$120*'Model inputs'!$V$136)+(AA15/'Model inputs'!$V$138*'Model inputs'!$V$137)+(AA15*'Model inputs'!$V$139) -> 0 | AE67: ='Model inputs'!$C32 -> 2027 | AF67: 1099814.398 | AG67: =AG27*('Model inputs'!$AB$120+'Model inputs'!$AB$120*'Model inputs'!$AB$135+'Model inputs'!$AB$120*'Model inputs'!$AB$136)+(AG15/'Model inputs'!$AB$138*'Model inputs'!$AB$137)+(AG15*'Model inputs'!$AB$139) -> 1099814.398 | AH67: =AH27*('Model inputs'!$AB$120+'Model inputs'!$AB$120*'Model inputs'!$AB$135+'Model inputs'!$AB$120*'Model inputs'!$AB$136)+(AH15/'Model inputs'!$AB$138*'Model inputs'!$AB$137)+(AH15*'Model inputs'!$AB$139) -> 0 | AL67: ='Model inputs'!$C32 -> 2027 | AM67: 481715.7138 | AN67: =AN27*('Model inputs'!$AH$120+'Model inputs'!$AH$120*'Model inputs'!$AH$135+'Model inputs'!$AH$120*'Model inputs'!$AH$136)+(AN15/'Model inputs'!$AH$138*'Model inputs'!$AH$137)+(AN15*'Model inputs'!$AH$139) -> 481715.7138 | AO67: =AO27*('Model inputs'!$AH$120+'Model inputs'!$AH$120*'Model inputs'!$AH$135+'Model inputs'!$AH$120*'Model inputs'!$AH$136)+(AO15/'Model inputs'!$AH$138*'Model inputs'!$AH$137)+(AO15*'Model inputs'!$AH$139) -> 0
B68: ='Model inputs'!$C33 -> 2028 | C68: 719445.977 | D68: =D28*('Model inputs'!$D$120+'Model inputs'!$D$120*'Model inputs'!$D$135+'Model inputs'!$D$120*'Model inputs'!$D$136)+(D16/'Model inputs'!$D$138*'Model inputs'!$D$137)+(D16*'Model inputs'!$D$139) -> 719445.977 | E68: =E28*('Model inputs'!$D$120+'Model inputs'!$D$120*'Model inputs'!$D$135+'Model inputs'!$D$120*'Model inputs'!$D$136)+(E16/'Model inputs'!$D$138*'Model inputs'!$D$137)+(E16*'Model inputs'!$D$139) -> 0 | I68: ='Model inputs'!$C33 -> 2028 | J68: 827217.0296 | K68: =K28*('Model inputs'!$J$120+'Model inputs'!$J$120*'Model inputs'!$J$135+'Model inputs'!$J$120*'Model inputs'!$J$136)+(K16/'Model inputs'!$J$138*'Model inputs'!$J$137)+(K16*'Model inputs'!$J$139) -> 827217.0296 | L68: =L28*('Model inputs'!$J$120+'Model inputs'!$J$120*'Model inputs'!$J$135+'Model inputs'!$J$120*'Model inputs'!$J$136)+(L16/'Model inputs'!$J$138*'Model inputs'!$J$137)+(L16*'Model inputs'!$J$139) -> 0 | P68: ='Model inputs'!$C33 -> 2028 | Q68: 481715.7138 | R68: =R28*('Model inputs'!$P$120+'Model inputs'!$P$120*'Model inputs'!$P$135+'Model inputs'!$P$120*'Model inputs'!$P$136)+(R16/'Model inputs'!$P$138*'Model inputs'!$P$137)+(R16*'Model inputs'!$P$139) -> 481715.7138 | S68: =S28*('Model inputs'!$P$120+'Model inputs'!$P$120*'Model inputs'!$P$135+'Model inputs'!$P$120*'Model inputs'!$P$136)+(S16/'Model inputs'!$P$138*'Model inputs'!$P$137)+(S16*'Model inputs'!$P$139) -> 0 | X68: ='Model inputs'!$C33 -> 2028 | Y68: 827217.0296 | Z68: =Z28*('Model inputs'!$V$120+'Model inputs'!$V$120*'Model inputs'!$V$135+'Model inputs'!$V$120*'Model inputs'!$V$136)+(Z16/'Model inputs'!$V$138*'Model inputs'!$V$137)+(Z16*'Model inputs'!$V$139) -> 827217.0296 | AA68: =AA28*('Model inputs'!$V$120+'Model inputs'!$V$120*'Model inputs'!$V$135+'Model inputs'!$V$120*'Model inputs'!$V$136)+(AA16/'Model inputs'!$V$138*'Model inputs'!$V$137)+(AA16*'Model inputs'!$V$139) -> 0 | AE68: ='Model inputs'!$C33 -> 2028 | AF68: 1099814.398 | AG68: =AG28*('Model inputs'!$AB$120+'Model inputs'!$AB$120*'Model inputs'!$AB$135+'Model inputs'!$AB$120*'Model inputs'!$AB$136)+(AG16/'Model inputs'!$AB$138*'Model inputs'!$AB$137)+(AG16*'Model inputs'!$AB$139) -> 1099814.398 | AH68: =AH28*('Model inputs'!$AB$120+'Model inputs'!$AB$120*'Model inputs'!$AB$135+'Model inputs'!$AB$120*'Model inputs'!$AB$136)+(AH16/'Model inputs'!$AB$138*'Model inputs'!$AB$137)+(AH16*'Model inputs'!$AB$139) -> 0 | AL68: ='Model inputs'!$C33 -> 2028 | AM68: 481715.7138 | AN68: =AN28*('Model inputs'!$AH$120+'Model inputs'!$AH$120*'Model inputs'!$AH$135+'Model inputs'!$AH$120*'Model inputs'!$AH$136)+(AN16/'Model inputs'!$AH$138*'Model inputs'!$AH$137)+(AN16*'Model inputs'!$AH$139) -> 481715.7138 | AO68: =AO28*('Model inputs'!$AH$120+'Model inputs'!$AH$120*'Model inputs'!$AH$135+'Model inputs'!$AH$120*'Model inputs'!$AH$136)+(AO16/'Model inputs'!$AH$138*'Model inputs'!$AH$137)+(AO16*'Model inputs'!$AH$139) -> 0
B69: ='Model inputs'!$C34 -> 2029 | C69: 719445.977 | D69: =D29*('Model inputs'!$D$120+'Model inputs'!$D$120*'Model inputs'!$D$135+'Model inputs'!$D$120*'Model inputs'!$D$136)+(D17/'Model inputs'!$D$138*'Model inputs'!$D$137)+(D17*'Model inputs'!$D$139) -> 719445.977 | E69: =E29*('Model inputs'!$D$120+'Model inputs'!$D$120*'Model inputs'!$D$135+'Model inputs'!$D$120*'Model inputs'!$D$136)+(E17/'Model inputs'!$D$138*'Model inputs'!$D$137)+(E17*'Model inputs'!$D$139) -> 0 | I69: ='Model inputs'!$C34 -> 2029 | J69: 827217.0296 | K69: =K29*('Model inputs'!$J$120+'Model inputs'!$J$120*'Model inputs'!$J$135+'Model inputs'!$J$120*'Model inputs'!$J$136)+(K17/'Model inputs'!$J$138*'Model inputs'!$J$137)+(K17*'Model inputs'!$J$139) -> 827217.0296 | L69: =L29*('Model inputs'!$J$120+'Model inputs'!$J$120*'Model inputs'!$J$135+'Model inputs'!$J$120*'Model inputs'!$J$136)+(L17/'Model inputs'!$J$138*'Model inputs'!$J$137)+(L17*'Model inputs'!$J$139) -> 0 | P69: ='Model inputs'!$C34 -> 2029 | Q69: 481715.7138 | R69: =R29*('Model inputs'!$P$120+'Model inputs'!$P$120*'Model inputs'!$P$135+'Model inputs'!$P$120*'Model inputs'!$P$136)+(R17/'Model inputs'!$P$138*'Model inputs'!$P$137)+(R17*'Model inputs'!$P$139) -> 481715.7138 | S69: =S29*('Model inputs'!$P$120+'Model inputs'!$P$120*'Model inputs'!$P$135+'Model inputs'!$P$120*'Model inputs'!$P$136)+(S17/'Model inputs'!$P$138*'Model inputs'!$P$137)+(S17*'Model inputs'!$P$139) -> 0 | X69: ='Model inputs'!$C34 -> 2029 | Y69: 827217.0296 | Z69: =Z29*('Model inputs'!$V$120+'Model inputs'!$V$120*'Model inputs'!$V$135+'Model inputs'!$V$120*'Model inputs'!$V$136)+(Z17/'Model inputs'!$V$138*'Model inputs'!$V$137)+(Z17*'Model inputs'!$V$139) -> 827217.0296 | AA69: =AA29*('Model inputs'!$V$120+'Model inputs'!$V$120*'Model inputs'!$V$135+'Model inputs'!$V$120*'Model inputs'!$V$136)+(AA17/'Model inputs'!$V$138*'Model inputs'!$V$137)+(AA17*'Model inputs'!$V$139) -> 0 | AE69: ='Model inputs'!$C34 -> 2029 | AF69: 1099814.398 | AG69: =AG29*('Model inputs'!$AB$120+'Model inputs'!$AB$120*'Model inputs'!$AB$135+'Model inputs'!$AB$120*'Model inputs'!$AB$136)+(AG17/'Model inputs'!$AB$138*'Model inputs'!$AB$137)+(AG17*'Model inputs'!$AB$139) -> 1099814.398 | AH69: =AH29*('Model inputs'!$AB$120+'Model inputs'!$AB$120*'Model inputs'!$AB$135+'Model inputs'!$AB$120*'Model inputs'!$AB$136)+(AH17/'Model inputs'!$AB$138*'Model inputs'!$AB$137)+(AH17*'Model inputs'!$AB$139) -> 0 | AL69: ='Model inputs'!$C34 -> 2029 | AM69: 481715.7138 | AN69: =AN29*('Model inputs'!$AH$120+'Model inputs'!$AH$120*'Model inputs'!$AH$135+'Model inputs'!$AH$120*'Model inputs'!$AH$136)+(AN17/'Model inputs'!$AH$138*'Model inputs'!$AH$137)+(AN17*'Model inputs'!$AH$139) -> 481715.7138 | AO69: =AO29*('Model inputs'!$AH$120+'Model inputs'!$AH$120*'Model inputs'!$AH$135+'Model inputs'!$AH$120*'Model inputs'!$AH$136)+(AO17/'Model inputs'!$AH$138*'Model inputs'!$AH$137)+(AO17*'Model inputs'!$AH$139) -> 0
B70: ='Model inputs'!$C35 -> 2030 | C70: 719445.977 | D70: =D30*('Model inputs'!$D$120+'Model inputs'!$D$120*'Model inputs'!$D$135+'Model inputs'!$D$120*'Model inputs'!$D$136)+(D18/'Model inputs'!$D$138*'Model inputs'!$D$137)+(D18*'Model inputs'!$D$139) -> 719445.977 | E70: =E30*('Model inputs'!$D$120+'Model inputs'!$D$120*'Model inputs'!$D$135+'Model inputs'!$D$120*'Model inputs'!$D$136)+(E18/'Model inputs'!$D$138*'Model inputs'!$D$137)+(E18*'Model inputs'!$D$139) -> 0 | I70: ='Model inputs'!$C35 -> 2030 | J70: 827217.0296 | K70: =K30*('Model inputs'!$J$120+'Model inputs'!$J$120*'Model inputs'!$J$135+'Model inputs'!$J$120*'Model inputs'!$J$136)+(K18/'Model inputs'!$J$138*'Model inputs'!$J$137)+(K18*'Model inputs'!$J$139) -> 827217.0296 | L70: =L30*('Model inputs'!$J$120+'Model inputs'!$J$120*'Model inputs'!$J$135+'Model inputs'!$J$120*'Model inputs'!$J$136)+(L18/'Model inputs'!$J$138*'Model inputs'!$J$137)+(L18*'Model inputs'!$J$139) -> 0 | P70: ='Model inputs'!$C35 -> 2030 | Q70: 481715.7138 | R70: =R30*('Model inputs'!$P$120+'Model inputs'!$P$120*'Model inputs'!$P$135+'Model inputs'!$P$120*'Model inputs'!$P$136)+(R18/'Model inputs'!$P$138*'Model inputs'!$P$137)+(R18*'Model inputs'!$P$139) -> 481715.7138 | S70: =S30*('Model inputs'!$P$120+'Model inputs'!$P$120*'Model inputs'!$P$135+'Model inputs'!$P$120*'Model inputs'!$P$136)+(S18/'Model inputs'!$P$138*'Model inputs'!$P$137)+(S18*'Model inputs'!$P$139) -> 0 | X70: ='Model inputs'!$C35 -> 2030 | Y70: 827217.0296 | Z70: =Z30*('Model inputs'!$V$120+'Model inputs'!$V$120*'Model inputs'!$V$135+'Model inputs'!$V$120*'Model inputs'!$V$136)+(Z18/'Model inputs'!$V$138*'Model inputs'!$V$137)+(Z18*'Model inputs'!$V$139) -> 827217.0296 | AA70: =AA30*('Model inputs'!$V$120+'Model inputs'!$V$120*'Model inputs'!$V$135+'Model inputs'!$V$120*'Model inputs'!$V$136)+(AA18/'Model inputs'!$V$138*'Model inputs'!$V$137)+(AA18*'Model inputs'!$V$139) -> 0 | AE70: ='Model inputs'!$C35 -> 2030 | AF70: 1099814.398 | AG70: =AG30*('Model inputs'!$AB$120+'Model inputs'!$AB$120*'Model inputs'!$AB$135+'Model inputs'!$AB$120*'Model inputs'!$AB$136)+(AG18/'Model inputs'!$AB$138*'Model inputs'!$AB$137)+(AG18*'Model inputs'!$AB$139) -> 1099814.398 | AH70: =AH30*('Model inputs'!$AB$120+'Model inputs'!$AB$120*'Model inputs'!$AB$135+'Model inputs'!$AB$120*'Model inputs'!$AB$136)+(AH18/'Model inputs'!$AB$138*'Model inputs'!$AB$137)+(AH18*'Model inputs'!$AB$139) -> 0 | AL70: ='Model inputs'!$C35 -> 2030 | AM70: 481715.7138 | AN70: =AN30*('Model inputs'!$AH$120+'Model inputs'!$AH$120*'Model inputs'!$AH$135+'Model inputs'!$AH$120*'Model inputs'!$AH$136)+(AN18/'Model inputs'!$AH$138*'Model inputs'!$AH$137)+(AN18*'Model inputs'!$AH$139) -> 481715.7138 | AO70: =AO30*('Model inputs'!$AH$120+'Model inputs'!$AH$120*'Model inputs'!$AH$135+'Model inputs'!$AH$120*'Model inputs'!$AH$136)+(AO18/'Model inputs'!$AH$138*'Model inputs'!$AH$137)+(AO18*'Model inputs'!$AH$139) -> 0
